{"text_format":"1","workbook":"xlsx","n_sheets":10,"sheets":["SolCotizacion","CUADROS","ResumenCotizacion","LISTAS","CSV","Cotizacion","Cuadro Totales","CantMinimas","Minimos","Consolidado"],"not_rendered":{"charts":0,"images":0,"macros":1,"external_links":0,"defined_names":122,"comments":3,"pivot_tables":0},"unopened":[],"bounds":{"document_bytes":16777216,"sheet_cells":100000,"rows_first":2000,"rows_last":500,"rows_between":2000,"halvings":0,"cell_chars":16384,"cell_head_chars":4096},"cells_cut":0,"cells_raw":0,"read":"whole","date_system":"1900"}

{"sheet":"SolCotizacion","index":0,"n_rows":40,"n_cols":13,"rows_kept":40,"cut":false,"hidden":false,"merged":[[0,0,1,14],[3,0,3,14],[5,0,5,1],[5,2,5,6],[5,8,5,9],[5,10,5,14],[7,10,7,14],[9,0,9,1],[9,2,9,6],[7,0,7,1],[7,2,7,6],[9,8,9,9],[9,10,9,14],[7,8,7,9],[17,6,17,8],[17,2,17,4],[37,3,37,4],[35,1,35,4],[36,1,36,4],[23,0,23,1],[23,2,23,6],[23,7,23,8],[25,0,25,3],[25,4,25,13],[26,0,26,3],[26,4,26,8],[27,3,27,9],[27,10,27,13],[28,3,28,9],[28,10,28,13],[11,0,11,1],[11,2,11,6],[13,0,13,1],[13,2,13,6],[15,0,15,13],[23,9,23,10],[23,12,23,13],[24,0,24,3],[24,4,24,8],[24,9,24,12]]}
["Solicitud de Cotización - Dotación Escolar"]
[]
[null,"Versión: 21","2018-11-30"]
["Información de la Entidad Compradora"]
[]
["Nombre de la Entidad:",null,null,null,null,null,null,null,"NIT:"]
[]
["Dirección de la Entidad:",null,null,null,null,null,null,null,"Correo de contacto:"]
[]
["Municipio:",null,null,null,null,null,null,null,"Teléfono de contacto:"]
[]
["Nombre funcionario Comprador:"]
[]
["Fecha de inicio estimada:",null,"2018-12-05"]
[]
["Solicitud de Cotización"]
[]
[null,"Segmento:",null,null,null,"Región:"]
[]
[null,"Cantidad de Sedes educativas:"]
[]
[null,1]
[]
["Dirección de entrega",null,null,null,null,null,null,"Ciudad",null,null,null,"Municipio"]
["Horario en el que se puede entregar (Días y horas de lunes a viernes de 7:00 a.m a 6:00 p.m.)",null,null,null,null,null,null,null,null,"Requiere Instalada la Dotación Escolar?"]
["Detalle como requiere la instacion"]
["Fecha de entrega",null,null,null,{"$f":"WORKDAY($C$14,20)","v":"2019-01-02"},null,null,null,null,"Agregar filas:",1,"Agregar","Eliminar"]
["No.","Artículo","Item","Detalle",null,null,null,null,null,null,"Cantidad"]
[1]
[]
[]
[]
["Gravámenes adicionales*"]
[]
["Gravámenes adicionales (estampillas)"]
["No","Descripción",null,null,null,"Porcentaje"]
[1,"",null,null,null,""]
[null,null,null,"Total porcentaje:",null,{"$f":"SUM(F37:F37)","v":0}]
[null,"Filas a agregar o eliminar Gravámenes:"]
[null,1]

{"sheet":"CUADROS","index":1,"n_rows":6,"n_cols":13,"rows_kept":6,"cut":false,"hidden":true,"merged":[[5,10,5,13],[0,0,0,1],[0,2,0,6],[0,7,0,8],[4,3,4,9],[2,0,2,3],[2,4,2,13],[1,9,1,12],[0,9,0,10],[0,12,0,13],[4,10,4,13],[3,0,3,3],[3,4,3,8],[1,4,1,8],[5,3,5,9],[1,0,1,3]]}
["Dirección de entrega",null,null,null,null,null,null,"Ciudad",null,null,null,"Municipio"]
["Horario en el que se puede entregar (Días y horas)",null,null,null,null,null,null,null,null,"Requiere Instalada la Dotación Escolar?"]
["Detalle como requiere la instacion",null,null,null,{"$f":"IF(N2=\"SI\",\"Instalación de tablero y distribución de mobiliario\",IF(N2=\"NO\",\"Entrega en la sede educativa sin instalación\",\"\"))","v":""}]
["Fecha de entrega",null,null,null,{"$f":"WORKDAY($C$14,10)","v":"1900-01-13"},null,null,null,null,"Agregar filas:",1,"Agregar","Eliminar"]
["No.","Artículo","Item","Detalle",null,null,null,null,null,null,"Cantidad"]
[1]

{"sheet":"ResumenCotizacion","index":2,"n_rows":35,"n_cols":21,"rows_kept":35,"cut":false,"hidden":false,"merged":[[29,20,29,22],[27,20,27,22],[28,20,28,22],[25,14,25,16],[25,17,25,19],[25,20,25,22],[26,14,26,16],[26,17,26,19],[26,20,26,22],[9,0,9,1],[9,8,9,9],[9,10,9,14],[9,2,9,6],[7,0,7,1],[34,3,34,4],[32,1,32,4],[33,1,33,4],[31,0,31,5],[7,2,7,6],[17,6,17,8],[11,0,11,1],[11,2,11,6],[13,0,13,1],[13,2,13,6],[15,0,15,14],[17,2,17,4],[7,8,7,9],[7,10,7,14],[21,0,21,1],[21,7,21,8],[0,0,1,14],[3,0,3,14],[5,0,5,1],[5,2,5,6],[5,8,5,9],[5,10,5,14],[21,9,21,10],[21,12,21,13],[22,0,22,3],[22,4,22,8],[22,9,22,12],[21,2,21,6],[26,3,26,9],[26,10,26,13],[23,0,23,3],[23,4,23,13],[25,10,25,13],[24,0,24,3],[24,4,24,8],[25,3,25,9]]}
["Resumen de Cotización - Dotación Escolar",null,null,null,null,null,null,null,null,null,null,null,null,null,null,null,null,{"$f":"F35","v":0}]
[]
[]
["Información de la Entidad Compradora"]
[]
["Nombre de la Entidad:",null,null,null,null,null,null,null,"NIT:"]
[]
["Dirección de la Entidad:",null,null,null,null,null,null,null,"Correo de contacto:"]
[]
["Municipio:",null,null,null,null,null,null,null,"Teléfono de contacto:"]
[]
["Nombre funcionario Comprador:"]
[]
["Fecha de inicio estimada:",null,"2018-12-05"]
[]
["Solicitud de Cotización"]
[]
[null,"Segmento:",null,null,null,"Región:"]
[]
[]
[]
["Dirección de entrega",null,null,null,null,null,null,"Ciudad",null,null,null,"Municipio"]
["Horario en el que se puede entregar (Días y horas)",null,null,null,null,null,null,null,null,"Requiere Instalada la Dotación Escolar?"]
["Detalle como requiere la instacion"]
["Fecha de entrega",null,null,null,{"$f":"WORKDAY($C$14,20)","v":"2019-01-02"},null,null,null,null,"Agregar filas:",1,"Agregar","Eliminar"]
["No.","Artículo","Item","Detalle",null,null,null,null,null,null,"Cantidad",null,null,null,"Precio",null,null,"Gravámenes",null,null,"Valor"]
[1]
[null,null,null,null,null,null,null,null,null,null,null,null,null,null,null,null,null,null,null,"Sub Total",{"$f":"SUM($U$27:$W$27)","v":0}]
[null,null,null,null,null,null,null,null,null,null,null,null,null,null,null,null,null,null,null,"IVA",{"$f":"ROUND(U28*0.19,2)","v":0}]
[null,null,null,null,null,null,null,null,null,null,null,null,null,null,null,null,null,null,null,"Valor Total",{"$f":"SUM(U28:W29)","v":0}]
[]
["Gravámenes adicionales (estampillas)"]
["No","Descripción",null,null,null,"Porcentaje"]
[1,"",null,null,null,""]
[null,null,null,"Total porcentaje:",null,{"$f":"SUM(F34:F34)","v":0}]

{"sheet":"LISTAS","index":3,"n_rows":120,"n_cols":117,"rows_kept":120,"cut":false,"hidden":true,"merged":[]}
["segmento","MobiliarioEscolarArticulo","MobiliariodeCocinaArticulo","MobiliarioSEDArticulo","MobiliarioEscolarProveedor","MobiliariodeCocinaProveedor","MobiliarioSEDProveedor","MobiliarioSED","MobiliariodeCocina","MobiliarioEscolar","Región1","Región2","Región3","BogotáD.C.","Armenia","Barranquilla","Bello","BogotáDC","Bucaramanga","Cali","CartagenadeIndias","Chía","Envigado","Facatativá","Ibagué","Itagüí","Jamundí","Medellín","Mosquera","Pereira","Rionegro","SantaMarta","Soacha","Villavicencio","Zipaquirá","Antioquia","Apartadó","Atlántico","Barrancabermeja","Bolívar","Boyacá","Buenaventura","Caldas","Caquetá","Cartago","Casanare","Cauca","Cesar","Ciénaga","Córdoba","Cúcuta","Cundinamarca","Dosquebradas","Duitama","Florencia","Floridablanca","Fusagasugá","Girardot","Girón","GuadalajaraDeBuga","Huila","Ipiales","LaGuajira","Lorica","Magangué","Magdalena","Maicao","Malambo","Manizales","Meta","Montería","Nariño","Neiva","NorteDeSantander","Palmira","Pasto","Piedecuesta","Pitalito","Popayán","Putumayo","Quibdó","Quindío","Riohacha","Risaralda","Sabaneta","Sahagún","SanAndrésDeTumaco","Santander","Sincelejo","Sogamoso","Soledad","Sucre","Tolima","Tuluá","Tunja","Turbo","Uribia","ValleDelCauca","Valledupar","Yopal","Yumbo","Amazonas","Arauca","ArchipiélagoDeSanAndrésProvidenciaYSantaCatalina","Chocó","Guainía","Guaviare","Vaupés","Vichada","MobiliarioEscolarAMBIENTE","MobiliarioEscolarCONJUNTO","MobiliarioEscolarPRODUCTO","MobiliarioSEDPRODUCTO","MobiliariodeCocinaAMBIENTE","MobiliariodeCocinaPRODUCTO","SIInstalacion","NoInstalacion"]
["Mobiliario Escolar","AMBIENTE","AMBIENTE","PRODUCTO","DOTAESCOL LTDA","DOTAESCOL LTDA","DOTAESCOL LTDA","Bogotá D.C.","Región 1","Región 1","Armenia","Antioquia","Amazonas","Bogotá D.C.","Armenia","Barranquilla","Bello","Bogotá D.C.","Bucaramanga","Cali","Cartagena de Indias","Chía","Envigado","Facatativá","Ibagué","Itagüí","Jamundí","Medellín","Mosquera","Pereira","Rionegro","Santa Marta","Soacha","Villavicencio","Zipaquirá","Abejorral","Apartadó","Baranoa","Barrancabermeja","Achí","Almeida","Buenaventura","Aguadas","Albania","Cartago","Aguazul","Almaguer","Aguachica","Ciénaga","Ayapel","Cúcuta","Agua de Dios","Dosquebradas","Duitama","Florencia","Floridablanca","Fusagasugá","Girardot","Girón","Guadalajara de Buga","Acevedo","Ipiales","Albania","Lorica","Magangué","Algarrobo","Maicao","Malambo","Manizales","Acacías","Montería","Albán","Neiva","Ábrego","Palmira","Pasto","Piedecuesta","Pitalito","Popayán","Colón","Quibdó","Buenavista","Riohacha","Apía","Sabaneta","Sahagún","San Andrés De Tumaco","Aguada","Sincelejo","Sogamoso","Soledad","Buenavista","Alpujarra","Tuluá","Tunja","Turbo","Uribia","Alcalá","Valledupar","Yopal","Yumba","El Encanto","Arauca","Providencia y San Andrés","Acandí","Barranco Minas","Calamar","Carurú","Cumaribo","AULA PREESCOLAR","ALMACENAMIENTO AULA TIM","ARCHIVADOR GRANDE - DOCUMENTACION","ASIENTO INFANTIL","COMEDOR-COCINA 1","Báscula dogital con lector de pie","Instalación de tablero y distribución de mobiliario"]
["Mobiliario SED","CONJUNTO","PRODUCTO",null,"INDUSTRIAS CRUZ HERMANOS SA","INDUSTRIAS CRUZ HERMANOS SA","INDUSTRIAS CRUZ HERMANOS SA",null,"Región 2","Región 2","Barranquilla","Apartadó","Arauca",null,null,null,null,null,null,null,null,null,null,null,null,null,null,null,null,null,null,null,null,null,null,"Abriaquí",null,"Campo de la Cruz",null,"Altos del Rosario","Aquitania",null,"Anserma","Belén de los Andaquíes",null,"Chámeza","Argelia","Agustín Codazzi",null,"Buenavista",null,"Albán",null,null,null,null,null,null,null,null,"Agrado",null,"Barrancas",null,null,"Aracataca",null,null,null,"Barranca de Upía",null,"Aldana",null,"Arboledas",null,null,null,null,null,"Mocoa",null,"Calarcá",null,"Balboa",null,null,null,"Albania",null,null,null,"Caimito","Alvarado",null,null,null,null,"Andalucía",null,null,null,"La Chorrera","Arauquita",null,"Alto Baudó","Cacahual","El Retorno","Mitú","La Primavera","AULA PRIMARIA","ALMACENAMIENTO BILINGÜISMO","ARCHIVADOR REGIÓN 1 UNIDAD","BIBLIOBANCO","COMEDOR-COCINA 2","Carro cubiertero"]
["Mobiliario de Cocina","PRODUCTO",null,null,"INDUSTRIAS METAL MADERA INMEMA LTDA","INDUSTRIAS METAL MADERA INMEMA LTDA","INDUSTRIAS METAL MADERA INMEMA LTDA",null,"Región 3","Región 3","Bello","Atlántico","Archipiélago De San Andrés, Providencia Y Santa Catalina",null,null,null,null,null,null,null,null,null,null,null,null,null,null,null,null,null,null,null,null,null,null,"Alejandría",null,"Candelaria",null,"Arenal","Arcabuco",null,"Aranzazu","Cartagena del Chairá",null,"Hato Corozal","Balboa","Astrea",null,"Canalete",null,"Anapoima",null,null,null,null,null,null,null,null,"Aipe",null,"Dibulla",null,null,"Ariguaní",null,null,null,"Cabuyaro",null,"Ancuyá",null,"Bochalema",null,null,null,null,null,"Orito",null,"Circasia",null,"Belén de Umbría",null,null,null,"Aratoca",null,null,null,"Chalán","Ambalema",null,null,null,null,"Ansermanuevo",null,null,null,"La Pedrera","Cravo Norte",null,"Atrato","Inírida","Miraflores y San José del Guaviare","Pacoa","Puerto Carreño y Santa Rosalía","AULA SECUNDARIA","CUBÍCULOS DOBLES DE TRABAJO SALA DOCENTE","BANCO DE TRABAJO MANTENIMIENTO ","CARTERLERA INFORMACIÓN INSTITUCIONAL","COMEDOR-COCINA 3","Carro porta azafates"]
[null,null,null,null,"INVERSIONES GUERFOR SA","RAFAEL BEJARANO GUALDRON","INVERSIONES GUERFOR SA",null,null,null,"Bogotá D.C.","Barrancabermeja","Chocó",null,null,null,null,null,null,null,null,null,null,null,null,null,null,null,null,null,null,null,null,null,null,"Amagá",null,"Galapa",null,"Arjona","Belén",null,"Belalcázar","Curillo",null,"La Salina","Bolívar","Becerril",null,"Cereté",null,"Anolaima",null,null,null,null,null,null,null,null,"Algeciras",null,"Distracción",null,null,"Cerro de San Antonio",null,null,null,"Castilla la Nueva",null,"Arboleda",null,"Bucarasica",null,null,null,null,null,"Puerto Asís",null,"Córdoba",null,"Guática",null,null,null,"Barbosa",null,null,null,"Coloso","Anzoátegui",null,null,null,null,"Argelia",null,null,null,"La Victoria","Fortul",null,"Bagadó","La Guadalupe",null,"Papunaua",null,"AULA TIM","DESCANSO SALA DOCENTE (OPCIONAL)","BIOMBO ","ESTANTERÍA ALTA",null,"Carro porta bandejas"]
[null,null,null,null,"JOSE SADY SUAVITA ROJAS",null,"JOSE SADY SUAVITA ROJAS",null,null,null,"Bucaramanga","Bolívar","Guainía",null,null,null,null,null,null,null,null,null,null,null,null,null,null,null,null,null,null,null,null,null,null,"Amalfi",null,"Juan de Acosta",null,"Arroyohondo","Berbeo",null,"Chinchiná","El Doncello",null,"Maní","Buenos Aires","Bosconia",null,"Chimá",null,"Apulo",null,null,null,null,null,null,null,null,"Altamira",null,"el Molino",null,null,"Chivolo",null,null,null,"Cumaral",null,"Barbacoas",null,"Cáchira",null,null,null,null,null,"Puerto Caicedo",null,"Filandia",null,"La Celia",null,null,null,"Barichara",null,null,null,"Corozal","Armero Guayabal",null,null,null,null,"Bolívar",null,null,null,"Leticia","Puerto Rondón",null,"Bahía Solano","Mapiripana",null,"Taraira y Yavaraté",null,"BIBLIOTECA BÁSICA 1","EXHIBICIÓN","BUTACO AUXILIAR BIBLIOTECA ","PERCHERO",null,"Congelador vertical"]
[null,null,null,null,"MANUFACTURAS SUMAPAZ SA",null,"MANUFACTURAS SUMAPAZ SA",null,null,null,"Cali","Boyacá","Guaviare",null,null,null,null,null,null,null,null,null,null,null,null,null,null,null,null,null,null,null,null,null,null,"Andes",null,"Luruaco",null,"Barranco de Loba","Betéitiva",null,"Filadelfia","El Paujíl",null,"Monterrey","Cajibío","Chimichagua",null,"Chinú",null,"Arbeláez",null,null,null,null,null,null,null,null,"Baraya",null,"Fonseca",null,null,"Concordia",null,null,null,"El Calvario",null,"Belén",null,"Cácota",null,null,null,null,null,"Puerto Guzmán",null,"Génova",null,"La Virginia",null,null,null,"Betulia",null,null,null,"Coveñas","Ataco",null,null,null,null,"Bugalagrande",null,null,null,"Mirití – Paraná","Saravena y Tame",null,"Bajo Baudó","Morichal",null,null,null,"BIBLIOTECA BÁSICA 2","PUESTO DE COMEDOR","BUTACO BANCO DE TRABAJO MANTENIMIENTO ","REPISA PERCHERO",null,"Escabiladero"]
[null,null,null,null,"MUEBLES ROMERO SAS",null,"MUEBLES ROMERO SAS",null,null,null,"Cartagena de Indias","Buenaventura","Vaupés",null,null,null,null,null,null,null,null,null,null,null,null,null,null,null,null,null,null,null,null,null,null,"Angelópolis",null,"Manatí",null,"Calamar","Boavita",null,"La Dorada","La Montañita",null,"Nunchía","Caldono","Chiriguaná",null,"Ciénaga de Oro",null,"Beltrán",null,null,null,null,null,null,null,null,"Campoalegre",null,"Hatonuevo",null,null,"El Banco",null,null,null,"El Castillo",null,"Buesaco",null,"Chinácota",null,null,null,null,null,"Puerto Leguízamo",null,"La Tebaida",null,"Marsella",null,null,null,"Bolívar",null,null,null,"El Roble","Cajamarca",null,null,null,null,"Caicedonia",null,null,null,"Puerto Alegría",null,null,"Bojayá","Pana Pana",null,null,null,"BILINGÜISMO","PUESTO DE TRABAJO ADMINISTRATIVO","BUTACO DE LABORATORIO INTEGRADO FÍSICA Y QUÍMICA","Pupitre preescolar 5 mesas (x5 sillas c/u)",null,"ESTUFA DE TRES (3) PUESTOS PREPARACION ALIMENTOS"]
[null,null,null,null,"PROVIDER CIA LIMITADA",null,"PROVIDER CIA LIMITADA",null,null,null,"Chía","Caldas","Vichada",null,null,null,null,null,null,null,null,null,null,null,null,null,null,null,null,null,null,null,null,null,null,"Angostura",null,"Palmar de Varela",null,"Cantagallo","Boyacá",null,"La Merced","Milán",null,"Orocué","Caloto","Curumaní",null,"Cotorra",null,"Bituima",null,null,null,null,null,null,null,null,"Colombia",null,"La Jagua del Pilar",null,null,"El Piñón",null,null,null,"El Dorado",null,"Chachagüí",null,"Chitagá",null,null,null,null,null,"San Francisco",null,"Montenegro",null,"Mistrató",null,null,null,"Cabrera",null,null,null,"Galeras","Carmen de Apicalá",null,null,null,null,"Calima",null,null,null,"Puerto Arica",null,null,"Carmen del Darién","Puerto Colombia y San Felipe",null,null,null,"LABORATORIO CIENCIA ARTES PRIMARIA","PUESTO DE TRABAJO AULA PREESCOLAR","BUTACO LABORATORIO PRIMARIA CIENCIAS Y ARTES ","Pupitre primaria mesa y silla",null,"ESTUFA ENANA (1) QUEMADOR PREPARACION ALIMENTOS"]
[null,null,null,null,"RAFAEL BEJARANO GUALDRON",null,"RAFAEL BEJARANO GUALDRON",null,null,null,"Envigado","Caquetá","Otro",null,null,null,null,null,null,null,null,null,null,null,null,null,null,null,null,null,null,null,null,null,null,"Anorí",null,"Piojó",null,"Cicuco","Briceño",null,"Manzanares","Morelia",null,"Paz de Ariporo","Corinto","El Copey",null,"La Apartada",null,"Bojacá",null,null,null,null,null,null,null,null,"Elías",null,"Manaure",null,null,"El Retén",null,null,null,"Fuente de Oro",null,"Colón",null,"Convención",null,null,null,null,null,"San Miguel",null,"Pijao",null,"Pueblo Rico",null,null,null,"California",null,null,null,"Guaranda","Casabianca",null,null,null,null,"Candelaria",null,null,null,"Puerto Nariño",null,null,"Cértegui",null,null,null,null,"LABORATORIO INTEGRADO FÍSICA QUÍMICA SECUNDARIA","PUESTO DE TRABAJO AULA PRIMARIA","CASILLERO ALUMNOS ALMACENAR OBJETOS ALUMNOS","Pupitre bachillerato mesa y silla",null,"Estufa enana a gas natural"]
[null,null,null,null,null,null,null,null,null,null,"Facatativá","Cartago",null,null,null,null,null,null,null,null,null,null,null,null,null,null,null,null,null,null,null,null,null,null,null,"Anzá",null,"Polonuevo",null,"Clemencia","Buenavista",null,"Marmato","Puerto Rico",null,"Pore","El Tambo","El Paso",null,"Los Córdobas",null,"Cabrera",null,null,null,null,null,null,null,null,"Garzón",null,"San Juan del Cesar",null,null,"Fundación",null,null,null,"Granada",null,"Consacá",null,"Cucutilla",null,null,null,null,null,"Santiago",null,"Quimbaya y Salento",null,"Quinchía",null,null,null,"Capitanejo",null,null,null,"La Unión","Chaparral",null,null,null,null,"Dagua",null,null,null,"Puerto Santander y Tarapacá",null,null,"Condoto",null,null,null,null,"MANTENIMIENTO","PUESTO DE TRABAJO AULA SECUNDARIA","CUBÍCULO DOBLE DE TRABAJO BIBLIOTECA ","Puesto universitario diestro",null,"Estufa enana a gas propano"]
[null,null,null,null,null,null,null,null,null,null,"Ibagué","Casanare",null,null,null,null,null,null,null,null,null,null,null,null,null,null,null,null,null,null,null,null,null,null,null,"Arboletes",null,"Ponedera",null,"Córdoba","Busbanzá",null,"Marquetalia","San José del Fragua",null,"Recetor","Florencia","Gamarra",null,"Momil",null,"Cachipay",null,null,null,null,null,null,null,null,"Gigante",null,"Urumita y Villanueva",null,null,"Guamal",null,null,null,"Guamal",null,"Contadero",null,"Durania",null,null,null,null,null,"Sibundoy",null,null,null,"Santa Rosa de Cabal y Santuario",null,null,null,"Carcasí",null,null,null,"Los Palmitos","Coello",null,null,null,null,"El Águila",null,null,null,null,null,null,"El Cantón del San Pablo",null,null,null,null,"OFICINA ADMINISTRATIVA","PUESTO DE TRABAJO AULA TIM","CUBÍCULO DOBLE DE TRABAJO SALA DOCENTE ","Puesto universitario zurdo",null,"Estufa industrial 4 fogones a gas natural"]
[null,null,null,null,null,null,null,null,null,null,"Itagüí","Cauca",null,null,null,null,null,null,null,null,null,null,null,null,null,null,null,null,null,null,null,null,null,null,null,"Argelia",null,"Puerto Colombia",null,"El Carmen de Bolívar","Caldas",null,"Marulanda","San Vicente del Caguán",null,"Sabanalarga","Guachené","González",null,"Montelíbano",null,"Cajicá",null,null,null,null,null,null,null,null,"Guadalupe",null,null,null,null,"Nueva Granada",null,null,null,"La Macarena",null,"Córdoba",null,"El Carmen",null,null,null,null,null,"Valle del Guamuez y Villagarzón",null,null,null,null,null,null,null,"Cepitá",null,null,null,"Majagual","Coyaima",null,null,null,null,"El Cairo",null,null,null,null,null,null,"El Carmen de Atrato",null,null,null,null,"PUESTO RECTORÍA","PUESTO DE TRABAJO BIBLIOTECA OPCIÓN 1 - PREDETERMINADA","CUERPO CASILLERO DOCENTE ALMACENAMIENTO OBJETOS DOCENTES","Bibliobanco",null,"Estufa industrial 4 fogones a gas propano"]
[null,null,null,null,null,null,null,null,null,null,"Jamundí","Cesar",null,null,null,null,null,null,null,null,null,null,null,null,null,null,null,null,null,null,null,null,null,null,null,"Armenia",null,"Repelón",null,"El Guamo","Campohermoso",null,"Neira","Solano",null,"Sácama","Guapí","La Gloria",null,"Moñitos",null,"Caparrapí",null,null,null,null,null,null,null,null,"Hobo",null,null,null,null,"Pedraza",null,null,null,"Lejanías",null,"Cuaspúd",null,"El Tarra",null,null,null,null,null,null,null,null,null,null,null,null,null,"Cerrito",null,null,null,"Morroa","Cunday",null,null,null,null,"El Cerrito",null,null,null,null,null,null,"El Litoral del San Juan",null,null,null,null,"SALA DOCENTE 1","PUESTO DE TRABAJO BIBLIOTECA OPCIÓN 2","ESTANTE DE BIBLIOTECA 1,30 MTS ADMINISTRACION Y RESGUARDO DE TEXTOS EN LA BIBLIOTECA","Tablero",null,"Estufa industrial 6 fogones"]
[null,null,null,null,null,null,null,null,null,null,"Medellín","Ciénaga",null,null,null,null,null,null,null,null,null,null,null,null,null,null,null,null,null,null,null,null,null,null,null,"Barbosa",null,"Sabanagrande",null,"El Peñón","Cerinza",null,"Norcasia","Solita y Valparaíso",null,"San Luis de Palenque","Inzá","La Jagua De Ibirico",null,"Planeta Rica",null,"Cáqueza",null,null,null,null,null,null,null,null,"Íquira",null,null,null,null,"Pijiño del Carmen",null,null,null,"Mapiripán",null,"Cumbal",null,"El Zulia",null,null,null,null,null,null,null,null,null,null,null,null,null,"Charalá",null,null,null,"Ovejas","Dolores",null,null,null,null,"El Dovio",null,null,null,null,null,null,"Istmina",null,null,null,null,"SALA DOCENTE 2","PUESTO DE TRABAJO BILINGÜISMO 1","ESTANTE DE DEPOSITO","Casilleros estudiantes",null,"Gramera digital"]
[null,null,null,null,null,null,null,null,null,null,"Mosquera","Córdoba",null,null,null,null,null,null,null,null,null,null,null,null,null,null,null,null,null,null,null,null,null,null,null,"Belmira",null,"Sabanalarga",null,"Hatillo de Loba","Chinavita",null,"Pácora",null,null,"Támara","Jambaló","La Paz",null,"Pueblo Nuevo",null,"Carmen de Carupa",null,null,null,null,null,null,null,null,"Isnos",null,null,null,null,"Pivijay",null,null,null,"Mesetas",null,"Cumbitara",null,"Gramalote",null,null,null,null,null,null,null,null,null,null,null,null,null,"Charta",null,null,null,"Palmito","Espinal",null,null,null,null,"Florida",null,null,null,null,null,null,"Juradó",null,null,null,null,null,"PUESTO DE TRABAJO BILINGÜISMO 2","MALETERO - SEGURIDAD EN LA BIBLIOTECA","Catedra mesa y silla",null,"Horno combi"]
[null,null,null,null,null,null,null,null,null,null,"Pereira","Cúcuta",null,null,null,null,null,null,null,null,null,null,null,null,null,null,null,null,null,null,null,null,null,null,null,"Betania",null,"Santa Lucía",null,"Mahates","Chiquinquirá",null,"Palestina",null,null,"Tauramena","La Sierra","Manaure Balcón del Cesar",null,"Puerto Escondido",null,"Chaguaní",null,null,null,null,null,null,null,null,"La Argentina",null,null,null,null,"Plato",null,null,null,"Puerto Concordia",null,"El Charco",null,"Hacarí",null,null,null,null,null,null,null,null,null,null,null,null,null,"Chima",null,null,null,"Sampués","Falan",null,null,null,null,"Ginebra",null,null,null,null,null,null,"Lloró",null,null,null,null,null,"PUESTO DE TRABAJO BILINGÜISMO 3","MESA AUXILIAR PUESTO DE TRABAJO PREESCOLAR","Silla comedor",null,"Lava vajilla"]
[null,null,null,null,null,null,null,null,null,null,"Rionegro","Cundinamarca",null,null,null,null,null,null,null,null,null,null,null,null,null,null,null,null,null,null,null,null,null,null,null,"Betulia",null,"Santo Tomás",null,"Margarita","Chíquiza",null,"Pensilvania",null,null,"Trinidad y Villanueva","La Vega","Pailitas",null,"Puerto Libertador",null,"Chipaque",null,null,null,null,null,null,null,null,"La Plata",null,null,null,null,"Puebloviejo",null,null,null,"Puerto Gaitán",null,"El Peñol",null,"Herrán",null,null,null,null,null,null,null,null,null,null,null,null,null,"Chipatá",null,null,null,"San Benito Abad","Flandes",null,null,null,null,"Guacarí",null,null,null,null,null,null,"Medio Atrato",null,null,null,null,null,"PUESTO DE TRABAJO DOCENTE","MESA AUXILIAR SALA DOCENTE ","Silla interlocutora",null,"Licuadora indistrial"]
[null,null,null,null,null,null,null,null,null,null,"Santa Marta","Dosquebradas",null,null,null,null,null,null,null,null,null,null,null,null,null,null,null,null,null,null,null,null,null,null,null,"Briceño",null,"Suan",null,"María La Baja","Chiscas",null,"Riosucio",null,null,null,"López de Micay","Pelaya",null,"Purísima de la Concepción",null,"Choachí",null,null,null,null,null,null,null,null,"Nátaga",null,null,null,null,"Remolino",null,null,null,"Puerto Lleras",null,"El Rosario",null,"La Esperanza",null,null,null,null,null,null,null,null,null,null,null,null,null,"Cimitarra",null,null,null,"San Juan de Betulia","Fresno",null,null,null,null,"La Cumbre",null,null,null,null,null,null,"Medio Baudó",null,null,null,null,null,"PUESTO DE TRABAJO LABORATORIO CIENCIAS PRIMARIA","MESA DE ATENCIÓN RECEPCIÓN ","Archivador horizontal 3 gavetas",null,"Línea de autoservicio - Baño María"]
[null,null,null,null,null,null,null,null,null,null,"Soacha","Duitama",null,null,null,null,null,null,null,null,null,null,null,null,null,null,null,null,null,null,null,null,null,null,null,"Buriticá",null,"Tubará y Usiacurí",null,"Mompós","Chita",null,"Risaralda",null,null,null,"Mercaderes","Pueblo Bello",null,"San Andrés de Sotavento",null,"Chocontá",null,null,null,null,null,null,null,null,"Oporapa",null,null,null,null,"Sabanas de San Ángel",null,null,null,"Puerto López",null,"El Tablón de Gómez",null,"La Playa",null,null,null,null,null,null,null,null,null,null,null,null,null,"Concepción",null,null,null,"San Luis de Sincé","Guamo",null,null,null,null,"La Unión",null,null,null,null,null,null,"Medio San Juan",null,null,null,null,null,"PUESTO DE TRABAJO LABORATORIO CIENCIAS PRIMARIA 1","MESA DE ATENCIÓN RECTORÍA ","Archivador aereo",null,"Línea de autoservicio elèctrica - Baño María"]
[null,null,null,null,null,null,null,null,null,null,"Villavicencio","Florencia",null,null,null,null,null,null,null,null,null,null,null,null,null,null,null,null,null,null,null,null,null,null,null,"Cáceres",null,null,null,"Kmontecristo","Chitaraque",null,"Salamina",null,null,null,"Miranda","Río de Oro",null,"San Antero",null,"Cogua",null,null,null,null,null,null,null,null,"Paicol",null,null,null,null,"Salamina",null,null,null,"Puerto Rico",null,"El Tambo",null,"Labateca",null,null,null,null,null,null,null,null,null,null,null,null,null,"Confines",null,null,null,"San Marcos","Herveo",null,null,null,null,"La Victoria",null,null,null,null,null,null,"Nóvita",null,null,null,null,null,"PUESTO DE TRABAJO LABORATORIO INTEGRADO FÍSICA - QUÍMICA","MESA DE CAFETERÍA PLEGABLE","Archivador metalico",null,"Mantenedor de alimentos"]
[null,null,null,null,null,null,null,null,null,null,"Zipaquirá","Floridablanca",null,null,null,null,null,null,null,null,null,null,null,null,null,null,null,null,null,null,null,null,null,null,null,"Caicedo",null,null,null,"Morales","Chivatá",null,"Samaná",null,null,null,"Morales","San Alberto",null,"San Bernardo del Viento",null,"Cota",null,null,null,null,null,null,null,null,"Palermo",null,null,null,null,"San Sebastián de Buenavista",null,null,null,"Restrepo",null,"Francisco Pizarro",null,"Los Patios",null,null,null,null,null,null,null,null,null,null,null,null,null,"Contratación",null,null,null,"San Onofre","Honda",null,null,null,null,"Obando",null,null,null,null,null,null,"Nuquí",null,null,null,null,null,"PUESTO DE TRABAJO LABORATORIO INTEGRADO FÍSICA - QUÍMICA 1","MESA DE CONSULTA TRAPEZOIDAL BIBLIOTECA","Biombo enfermeria",null,"Marmita"]
[null,null,null,null,null,null,null,null,null,null,null,"Fusagasugá",null,null,null,null,null,null,null,null,null,null,null,null,null,null,null,null,null,null,null,null,null,null,null,"Caldas",null,null,null,"Norosí","Chivor",null,"San José",null,null,null,"Padilla","San Diego",null,"San Carlos",null,"Cucunubá",null,null,null,null,null,null,null,null,"Palestina",null,null,null,null,"San Zenón",null,null,null,"San Carlos de Guaroa",null,"Funes",null,"Lourdes",null,null,null,null,null,null,null,null,null,null,null,null,null,"Coromoro",null,null,null,"San Pedro","Icononzo",null,null,null,null,"Pradera",null,null,null,null,null,null,"Río Iró",null,null,null,null,null,"PUESTO DE TRABAJO MANTENIMIENTO","MESA DE JUNTAS RECTORÍA ","Butaco para laboratorio alto",null,"MESÓN CON AZAFATES -  DISTRIBUCION ALIMENTOS EN EL COMEDOR"]
[null,null,null,null,null,null,null,null,null,null,null,"Girardot",null,null,null,null,null,null,null,null,null,null,null,null,null,null,null,null,null,null,null,null,null,null,null,"Campamento",null,null,null,"Pinillos","Ciénega",null,"Supía",null,null,null,"Páez","San Martín y Tamalameque",null,"San José de Uré",null,"El Colegio",null,null,null,null,null,null,null,null,"Pital",null,null,null,null,"Santa Ana",null,null,null,"San Juan de Arama",null,"Guachucal",null,"Mutiscua",null,null,null,null,null,null,null,null,null,null,null,null,null,"Curití",null,null,null,"Santiago de Tolú","Lérida",null,null,null,null,"Restrepo",null,null,null,null,null,null,"Río Quito",null,null,null,null,null,"PUESTO DE TRABAJO PREESCOLAR","MESA DE JUNTAS SALA DOCENTE ","Cartelera de informacion institucional",null,"MESÓN CON POCETA LAVAR MENAJE COCINA"]
[null,null,null,null,null,null,null,null,null,null,null,"Girón",null,null,null,null,null,null,null,null,null,null,null,null,null,null,null,null,null,null,null,null,null,null,null,"Cañasgordas",null,null,null,"Regidor","Cómbita",null,"Victoria",null,null,null,"Patía",null,null,"San Pelayo",null,"El Peñón",null,null,null,null,null,null,null,null,"Rivera",null,null,null,null,"Santa Bárbara de Pinto",null,null,null,"San Juanito",null,"Guaitarilla",null,"Ocaña",null,null,null,null,null,null,null,null,null,null,null,null,null,"El Carmen de Chucurí",null,null,null,"Sucre y Tolú Viejo","Líbano",null,null,null,null,"Riofrío",null,null,null,null,null,null,"Riosucio",null,null,null,null,null,"PUESTO DE TRABAJO RECEPCIÓN","MESA DE TRABAJO BILINGUISMO","Comedor preescolar",null,"MESÓN DE TRABAJO CORTAR PICAR TRABAJO EN LA COCINA"]
[null,null,null,null,null,null,null,null,null,null,null,"Guadalajara De Buga",null,null,null,null,null,null,null,null,null,null,null,null,null,null,null,null,null,null,null,null,null,null,null,"Caracolí",null,null,null,"Río Viejo","Coper",null,"Villamaría y Viterbo",null,null,null,"Piamonte",null,null,"Tierralta",null,"El Rosal",null,null,null,null,null,null,null,null,"Saladoblanco",null,null,null,null,"Sitionuevo",null,null,null,"San Luis de Cubarral",null,"Gualmatán",null,"Pamplona",null,null,null,null,null,null,null,null,null,null,null,null,null,"El Guacamayo",null,null,null,null,"Melgar",null,null,null,null,"Roldanillo",null,null,null,null,null,null,"San José del Palmar",null,null,null,null,null,"PUESTO DE TRABAJO RECTORÍA","MESA DE TRABAJO CONSULTA LECTURA BIBLIOTECA","Escritorio y silla aula docente",null,"Pelador de tuberculos"]
[null,null,null,null,null,null,null,null,null,null,null,"Huila",null,null,null,null,null,null,null,null,null,null,null,null,null,null,null,null,null,null,null,null,null,null,null,"Caramanta",null,null,null,"San Cristóbal","Corrales",null,null,null,null,null,"Piendamó",null,null,"Tuchín y Valencia",null,"Fómeque",null,null,null,null,null,null,null,null,"San Agustín",null,null,null,null,"Tenerife",null,null,null,"San Martín",null,"Iles",null,"Pamplonita",null,null,null,null,null,null,null,null,null,null,null,null,null,"El Peñón",null,null,null,null,"Murillo",null,null,null,null,"San Pedro",null,null,null,null,null,null,"Sipí",null,null,null,null,null,"SALA DE JUNTAS  SALA DOCENTE","MESA INFANTIL BIBLIOTECA ","Estanteria alta",null,"Peocesador de alimentos"]
[null,null,null,null,null,null,null,null,null,null,null,"Ipiales",null,null,null,null,null,null,null,null,null,null,null,null,null,null,null,null,null,null,null,null,null,null,null,"Carepa",null,null,null,"San Estanislao","Covarachía",null,null,null,null,null,"Puerto Tejada",null,null,null,null,"Fosca",null,null,null,null,null,null,null,null,"Santa María",null,null,null,null,"Zapayán y Zona Bananera",null,null,null,"Uribe y Vistahermosa",null,"Imués",null,"Puerto Santander",null,null,null,null,null,null,null,null,null,null,null,null,null,"El Playón",null,null,null,null,"Natagaima",null,null,null,null,"Sevilla",null,null,null,null,null,null,"Tadó",null,null,null,null,null,"TRABAJO BIPERSONAL BIBLIOTECA","MESA MODULAR AULA TIM","Estanteria baja",null,"Refrigerador vertical"]
[null,null,null,null,null,null,null,null,null,null,null,"La Guajira",null,null,null,null,null,null,null,null,null,null,null,null,null,null,null,null,null,null,null,null,null,null,null,"Carolina",null,null,null,"San Fernando","Cubará",null,null,null,null,null,"Puracé",null,null,null,null,"Funza",null,null,null,null,null,null,null,null,"Suaza",null,null,null,null,null,null,null,null,null,null,"La Cruz",null,"Ragonvalia",null,null,null,null,null,null,null,null,null,null,null,null,null,"Encino",null,null,null,null,"Ortega",null,null,null,null,"Toro",null,null,null,null,null,null,"Unguía y Unión Panamericana",null,null,null,null,null,null,"MESA MODULAR CIRCUNFERENCIAS","Estanteria deposito",null,"Sarten basculante"]
[null,null,null,null,null,null,null,null,null,null,null,"Lorica",null,null,null,null,null,null,null,null,null,null,null,null,null,null,null,null,null,null,null,null,null,null,null,"Caucasia",null,null,null,"San Jacinto","Cucaita",null,null,null,null,null,"Rosas",null,null,null,null,"Fúquene",null,null,null,null,null,null,null,null,"Tarqui",null,null,null,null,null,null,null,null,null,null,"La Florida",null,"Salazar",null,null,null,null,null,null,null,null,null,null,null,null,null,"Enciso",null,null,null,null,"Palocabildo",null,null,null,null,"Trujillo",null,null,null,null,null,null,null,null,null,null,null,null,null,"MESA MODULAR TIM CON MULTITOMA RETRÁCTIL ","Juguetero"]
[null,null,null,null,null,null,null,null,null,null,null,"Magangué",null,null,null,null,null,null,null,null,null,null,null,null,null,null,null,null,null,null,null,null,null,null,null,"Chigorodó",null,null,null,"San Jacinto del Cauca","Cuítiva",null,null,null,null,null,"San Sebastián",null,null,null,null,"Gachalá",null,null,null,null,null,null,null,null,"Tello",null,null,null,null,null,null,null,null,null,null,"La Llanada",null,"San Calixto",null,null,null,null,null,null,null,null,null,null,null,null,null,"Florián",null,null,null,null,"Piedras",null,null,null,null,"Ulloa",null,null,null,null,null,null,null,null,null,null,null,null,null,"MESA PARA CÓMPUTO RECTOR ","Kit canecas grandes"]
[null,null,null,null,null,null,null,null,null,null,null,"Magdalena",null,null,null,null,null,null,null,null,null,null,null,null,null,null,null,null,null,null,null,null,null,null,null,"Cisneros",null,null,null,"San Juan Nepomuceno","El Cocuy",null,null,null,null,null,"Santa Rosa",null,null,null,null,"Gachancipá",null,null,null,null,null,null,null,null,"Teruel",null,null,null,null,null,null,null,null,null,null,"La Tola",null,"San Cayetano",null,null,null,null,null,null,null,null,null,null,null,null,null,"Galán",null,null,null,null,"Planadas",null,null,null,null,"Versalles",null,null,null,null,null,null,null,null,null,null,null,null,null,"MESÓN LABORATORIO INTEGRADO SECUNDARIA FÍSICA - QUÍMICA ","Kit canecas medianas para aulas de clase"]
[null,null,null,null,null,null,null,null,null,null,null,"Maicao",null,null,null,null,null,null,null,null,null,null,null,null,null,null,null,null,null,null,null,null,null,null,null,"Ciudad Bolívar",null,null,null,"San Martín de Loba","El Espino",null,null,null,null,null,"Santander de Quilichao",null,null,null,null,"Gachetá",null,null,null,null,null,null,null,null,"Tesalia",null,null,null,null,null,null,null,null,null,null,"La Unión",null,"Santiago",null,null,null,null,null,null,null,null,null,null,null,null,null,"Gámbita",null,null,null,null,"Prado",null,null,null,null,"Vijes",null,null,null,null,null,null,null,null,null,null,null,null,null,"MESÓN LABORATORIO PRIMARIA ","Locker sala docentes x 5"]
[null,null,null,null,null,null,null,null,null,null,null,"Malambo",null,null,null,null,null,null,null,null,null,null,null,null,null,null,null,null,null,null,null,null,null,null,null,"Cocorná",null,null,null,"San Pablo","Firavitoba",null,null,null,null,null,"Silvia",null,null,null,null,"Gama",null,null,null,null,null,null,null,null,"Timaná",null,null,null,null,null,null,null,null,null,null,"Leiva",null,"Sardinata",null,null,null,null,null,null,null,null,null,null,null,null,null,"Guaca",null,null,null,null,"Purificación",null,null,null,null,"Yotoco y Zarzal",null,null,null,null,null,null,null,null,null,null,null,null,null,"MÓDULO DE CUATRO (4) CASILLEROS PARA SERVICIOS GENERALES","Maletero preescolar"]
[null,null,null,null,null,null,null,null,null,null,null,"Manizales",null,null,null,null,null,null,null,null,null,null,null,null,null,null,null,null,null,null,null,null,null,null,null,"Concepción",null,null,null,"Santa Catalina","Floresta",null,null,null,null,null,"Sotara",null,null,null,null,"Granada",null,null,null,null,null,null,null,null,"Villavieja y Yaguará",null,null,null,null,null,null,null,null,null,null,"Linares",null,"Silos",null,null,null,null,null,null,null,null,null,null,null,null,null,"Guadalupe",null,null,null,null,"Rioblanco",null,null,null,null,null,null,null,null,null,null,null,null,null,null,null,null,null,null,"MUEBLE DE ALMACENAMIENTO AULA CON TRES CAJONES","Mesa comedor"]
[null,null,null,null,null,null,null,null,null,null,null,"Meta",null,null,null,null,null,null,null,null,null,null,null,null,null,null,null,null,null,null,null,null,null,null,null,"Concordia",null,null,null,"Santa Rosa","Gachantivá",null,null,null,null,null,"Suárez",null,null,null,null,"Guachetá",null,null,null,null,null,null,null,null,null,null,null,null,null,null,null,null,null,null,null,"Los Andes",null,"Teorama",null,null,null,null,null,null,null,null,null,null,null,null,null,"Guapotá",null,null,null,null,"Roncesvalles",null,null,null,null,null,null,null,null,null,null,null,null,null,null,null,null,null,null,"MUEBLE DE ALMACENAMIENTO AULA TIM","Mesa comedor preescolar"]
[null,null,null,null,null,null,null,null,null,null,null,"Montería",null,null,null,null,null,null,null,null,null,null,null,null,null,null,null,null,null,null,null,null,null,null,null,"Copacabana",null,null,null,"Santa Rosa del Sur","Gámeza",null,null,null,null,null,"Sucre",null,null,null,null,"Guaduas",null,null,null,null,null,null,null,null,null,null,null,null,null,null,null,null,null,null,null,"Magüí",null,"Tibú",null,null,null,null,null,null,null,null,null,null,null,null,null,"Guavatá",null,null,null,null,"Rovira",null,null,null,null,null,null,null,null,null,null,null,null,null,null,null,null,null,null,"MUEBLE DE ALMACENAMIENTO BIBLIOTECA EQUIPOS AUDIOVISUALES Y ELEMENTOS DE ALTO COSTO O DELICADOS EN LA BIBLIOTECA","Mesa arte"]
[null,null,null,null,null,null,null,null,null,null,null,"Nariño",null,null,null,null,null,null,null,null,null,null,null,null,null,null,null,null,null,null,null,null,null,null,null,"Dabeiba",null,null,null,"Simití","Garagoa",null,null,null,null,null,"Timbío",null,null,null,null,"Guasca",null,null,null,null,null,null,null,null,null,null,null,null,null,null,null,null,null,null,null,"Mallama",null,"Toledo",null,null,null,null,null,null,null,null,null,null,null,null,null,"Güepsa",null,null,null,null,"Saldaña",null,null,null,null,null,null,null,null,null,null,null,null,null,null,null,null,null,null,"MUEBLE DE ALMACENAMIENTO DE LABORATORIO INTEGRADO FÍSICA-QUÍMICA SECUNDARIA","Mesa tecnologia"]
[null,null,null,null,null,null,null,null,null,null,null,"Neiva",null,null,null,null,null,null,null,null,null,null,null,null,null,null,null,null,null,null,null,null,null,null,null,"Donmatías",null,null,null,"Soplaviento","Guacamayas",null,null,null,null,null,"Timbiquí",null,null,null,null,"Guataquí",null,null,null,null,null,null,null,null,null,null,null,null,null,null,null,null,null,null,null,"Mosquera",null,"Villa Caro y Villa del Rosario",null,null,null,null,null,null,null,null,null,null,null,null,null,"Hato",null,null,null,null,"San Antonio",null,null,null,null,null,null,null,null,null,null,null,null,null,null,null,null,null,null,"MUEBLE DE ALMACENAMIENTO DE LABORATORIO PRIMARIA CIENCIAS Y ARTES ","Mesa para aula de informatica"]
[null,null,null,null,null,null,null,null,null,null,null,"Norte De Santander",null,null,null,null,null,null,null,null,null,null,null,null,null,null,null,null,null,null,null,null,null,null,null,"Ebéjico",null,null,null,"Talaigua Nuevo","Guateque",null,null,null,null,null,"Toribío",null,null,null,null,"Guatavita",null,null,null,null,null,null,null,null,null,null,null,null,null,null,null,null,null,null,null,"Nariño",null,null,null,null,null,null,null,null,null,null,null,null,null,null,null,"Jesús María",null,null,null,null,"San Luis",null,null,null,null,null,null,null,null,null,null,null,null,null,null,null,null,null,null,"MUEBLE MÓVIL DE CONTENIDOS AULA TIM ","Mesa para laboratorio"]
[null,null,null,null,null,null,null,null,null,null,null,"Palmira",null,null,null,null,null,null,null,null,null,null,null,null,null,null,null,null,null,null,null,null,null,null,null,"El Bagre",null,null,null,"Tiquisio","Guayatá",null,null,null,null,null,"Totoró y Villa Rica",null,null,null,null,"Guayabal de Síquima",null,null,null,null,null,null,null,null,null,null,null,null,null,null,null,null,null,null,null,"Olaya Herrera",null,null,null,null,null,null,null,null,null,null,null,null,null,null,null,"Jordán",null,null,null,null,"San Sebastián de Mariquita",null,null,null,null,null,null,null,null,null,null,null,null,null,null,null,null,null,null,"MUEBLE MÓVIL DE RECOLECCIÓN DE LIBROS","Mesa plegable"]
[null,null,null,null,null,null,null,null,null,null,null,"Pasto",null,null,null,null,null,null,null,null,null,null,null,null,null,null,null,null,null,null,null,null,null,null,null,"El Carmen de Viboral",null,null,null,"Turbaco","Güicán",null,null,null,null,null,null,null,null,null,null,"Guayabetal",null,null,null,null,null,null,null,null,null,null,null,null,null,null,null,null,null,null,null,"Ospina",null,null,null,null,null,null,null,null,null,null,null,null,null,null,null,"La Belleza",null,null,null,null,"Santa Isabel",null,null,null,null,null,null,null,null,null,null,null,null,null,null,null,null,null,null,"MUEBLE MÓVIL LABORATORIO ","Pupitre colaborativo"]
[null,null,null,null,null,null,null,null,null,null,null,"Piedecuesta",null,null,null,null,null,null,null,null,null,null,null,null,null,null,null,null,null,null,null,null,null,null,null,"El Santuario",null,null,null,"Turbaná","Iza",null,null,null,null,null,null,null,null,null,null,"Gutiérrez",null,null,null,null,null,null,null,null,null,null,null,null,null,null,null,null,null,null,null,"Policarpa",null,null,null,null,null,null,null,null,null,null,null,null,null,null,null,"La Paz",null,null,null,null,"Suárez",null,null,null,null,null,null,null,null,null,null,null,null,null,null,null,null,null,null,"PAPELERA MANEJO DE RESIDUOS SOLIDOS","Mesa banco de electricidad y electronica"]
[null,null,null,null,null,null,null,null,null,null,null,"Pitalito",null,null,null,null,null,null,null,null,null,null,null,null,null,null,null,null,null,null,null,null,null,null,null,"Entrerríos",null,null,null,"Villanueva y Zambrano","Jenesano",null,null,null,null,null,null,null,null,null,null,"Jerusalén",null,null,null,null,null,null,null,null,null,null,null,null,null,null,null,null,null,null,null,"Potosí",null,null,null,null,null,null,null,null,null,null,null,null,null,null,null,"Landázuri",null,null,null,null,"Valle de San Juan",null,null,null,null,null,null,null,null,null,null,null,null,null,null,null,null,null,null,"PUESTO DE TRABAJO ESTÁNDAR","Mesa banca redonda exterior"]
[null,null,null,null,null,null,null,null,null,null,null,"Popayán",null,null,null,null,null,null,null,null,null,null,null,null,null,null,null,null,null,null,null,null,null,null,null,"Fredonia",null,null,null,null,"Jericó",null,null,null,null,null,null,null,null,null,null,"Junín",null,null,null,null,null,null,null,null,null,null,null,null,null,null,null,null,null,null,null,"Providencia",null,null,null,null,null,null,null,null,null,null,null,null,null,null,null,"Lebrija",null,null,null,null,"Venadillo",null,null,null,null,null,null,null,null,null,null,null,null,null,null,null,null,null,null,"PUNTO ECOLÓGICO EXTERIOR CON TRES CANECAS MANEJO DE RESIDUOS SOLIDOS","Mesa biblioteca"]
[null,null,null,null,null,null,null,null,null,null,null,"Putumayo",null,null,null,null,null,null,null,null,null,null,null,null,null,null,null,null,null,null,null,null,null,null,null,"Frontino",null,null,null,null,"La Capilla",null,null,null,null,null,null,null,null,null,null,"La Calera",null,null,null,null,null,null,null,null,null,null,null,null,null,null,null,null,null,null,null,"Puerres",null,null,null,null,null,null,null,null,null,null,null,null,null,null,null,"Los Santos",null,null,null,null,"Villahermosa y Villarrica",null,null,null,null,null,null,null,null,null,null,null,null,null,null,null,null,null,null,"REVISTERO","Mesa biblioteca infantil"]
[null,null,null,null,null,null,null,null,null,null,null,"Quibdó",null,null,null,null,null,null,null,null,null,null,null,null,null,null,null,null,null,null,null,null,null,null,null,"Giraldo",null,null,null,null,"La Uvita",null,null,null,null,null,null,null,null,null,null,"La Mesa",null,null,null,null,null,null,null,null,null,null,null,null,null,null,null,null,null,null,null,"Pupiales",null,null,null,null,null,null,null,null,null,null,null,null,null,null,null,"Macaravita",null,null,null,null,null,null,null,null,null,null,null,null,null,null,null,null,null,null,null,null,null,null,null,"SILLA CAFETERIA - AUDITORIO","Mesa de juntas 4 puestos con silla"]
[null,null,null,null,null,null,null,null,null,null,null,"Quindío",null,null,null,null,null,null,null,null,null,null,null,null,null,null,null,null,null,null,null,null,null,null,null,"Girardota",null,null,null,null,"La Victoria",null,null,null,null,null,null,null,null,null,null,"La Palma",null,null,null,null,null,null,null,null,null,null,null,null,null,null,null,null,null,null,null,"Ricaurte",null,null,null,null,null,null,null,null,null,null,null,null,null,null,null,"Málaga",null,null,null,null,null,null,null,null,null,null,null,null,null,null,null,null,null,null,null,null,null,null,null,"SILLA INTERLOCUTORA BIBLIOTECA ","Mesa de juntas 6 puestos con silla"]
[null,null,null,null,null,null,null,null,null,null,null,"Riohacha",null,null,null,null,null,null,null,null,null,null,null,null,null,null,null,null,null,null,null,null,null,null,null,"Gómez Plata",null,null,null,null,"Labranzagrande",null,null,null,null,null,null,null,null,null,null,"La Peña",null,null,null,null,null,null,null,null,null,null,null,null,null,null,null,null,null,null,null,"Roberto Payán",null,null,null,null,null,null,null,null,null,null,null,null,null,null,null,"Matanza",null,null,null,null,null,null,null,null,null,null,null,null,null,null,null,null,null,null,null,null,null,null,null,"SILLA INTERLOCUTORA BIBLIOTECA - BILINGUISMO","Mesa de juntas 8 puestos con silla"]
[null,null,null,null,null,null,null,null,null,null,null,"Risaralda",null,null,null,null,null,null,null,null,null,null,null,null,null,null,null,null,null,null,null,null,null,null,null,"Granada",null,null,null,null,"Macanal",null,null,null,null,null,null,null,null,null,null,"La Vega",null,null,null,null,null,null,null,null,null,null,null,null,null,null,null,null,null,null,null,"Samaniego",null,null,null,null,null,null,null,null,null,null,null,null,null,null,null,"Mogotes",null,null,null,null,null,null,null,null,null,null,null,null,null,null,null,null,null,null,null,null,null,null,null,"SILLA INTERLOCUTORA RECEPCIÓN ","Mesa de juntas 10 puestos con silla"]
[null,null,null,null,null,null,null,null,null,null,null,"Sabaneta",null,null,null,null,null,null,null,null,null,null,null,null,null,null,null,null,null,null,null,null,null,null,null,"Guadalupe",null,null,null,null,"Maripí",null,null,null,null,null,null,null,null,null,null,"Lenguazaque",null,null,null,null,null,null,null,null,null,null,null,null,null,null,null,null,null,null,null,"San Bernardo",null,null,null,null,null,null,null,null,null,null,null,null,null,null,null,"Molagavita",null,null,null,null,null,null,null,null,null,null,null,null,null,null,null,null,null,null,null,null,null,null,null,"SILLA INTERLOCUTORA RECTORÍA ","Mesa de juntas 12 puestos con silla"]
[null,null,null,null,null,null,null,null,null,null,null,"Sahagún",null,null,null,null,null,null,null,null,null,null,null,null,null,null,null,null,null,null,null,null,null,null,null,"Guarne",null,null,null,null,"Miraflores",null,null,null,null,null,null,null,null,null,null,"Machetá",null,null,null,null,null,null,null,null,null,null,null,null,null,null,null,null,null,null,null,"San Lorenzo",null,null,null,null,null,null,null,null,null,null,null,null,null,null,null,"Ocamonte",null,null,null,null,null,null,null,null,null,null,null,null,null,null,null,null,null,null,null,null,null,null,null,"SILLA INTERLOCUTORA SALA DOCENTE ","Silla comedor primera infancia"]
[null,null,null,null,null,null,null,null,null,null,null,"San Andrés De Tumaco",null,null,null,null,null,null,null,null,null,null,null,null,null,null,null,null,null,null,null,null,null,null,null,"Guatapé",null,null,null,null,"Mongua",null,null,null,null,null,null,null,null,null,null,"Madrid",null,null,null,null,null,null,null,null,null,null,null,null,null,null,null,null,null,null,null,"San Pablo",null,null,null,null,null,null,null,null,null,null,null,null,null,null,null,"Oiba",null,null,null,null,null,null,null,null,null,null,null,null,null,null,null,null,null,null,null,null,null,null,null,"SILLA NEUMÁTICA ADMINISTRATIVA","Silla plástica comedor"]
[null,null,null,null,null,null,null,null,null,null,null,"Santander",null,null,null,null,null,null,null,null,null,null,null,null,null,null,null,null,null,null,null,null,null,null,null,"Heliconia",null,null,null,null,"Monguí",null,null,null,null,null,null,null,null,null,null,"Manta",null,null,null,null,null,null,null,null,null,null,null,null,null,null,null,null,null,null,null,"San Pedro de Cartago",null,null,null,null,null,null,null,null,null,null,null,null,null,null,null,"Onzaga",null,null,null,null,null,null,null,null,null,null,null,null,null,null,null,null,null,null,null,null,null,null,null,"SILLA NEUMÁTICA GIRATORIA MONO CONCHA","Silla plegable"]
[null,null,null,null,null,null,null,null,null,null,null,"Sincelejo",null,null,null,null,null,null,null,null,null,null,null,null,null,null,null,null,null,null,null,null,null,null,null,"Hispania",null,null,null,null,"Moniquirá",null,null,null,null,null,null,null,null,null,null,"Medina",null,null,null,null,null,null,null,null,null,null,null,null,null,null,null,null,null,null,null,"Sandoná",null,null,null,null,null,null,null,null,null,null,null,null,null,null,null,"Palmar",null,null,null,null,null,null,null,null,null,null,null,null,null,null,null,null,null,null,null,null,null,null,null,"SILLA NEUMÁTICA GIRATORIA MONO CONCHA AULA TIM","Sala de espera tres puestos"]
[null,null,null,null,null,null,null,null,null,null,null,"Sogamoso",null,null,null,null,null,null,null,null,null,null,null,null,null,null,null,null,null,null,null,null,null,null,null,"Ituango",null,null,null,null,"Motavita",null,null,null,null,null,null,null,null,null,null,"Nariño",null,null,null,null,null,null,null,null,null,null,null,null,null,null,null,null,null,null,null,"Santa Bárbara",null,null,null,null,null,null,null,null,null,null,null,null,null,null,null,"Palmas del Socorro",null,null,null,null,null,null,null,null,null,null,null,null,null,null,null,null,null,null,null,null,null,null,null,"SILLA NEUMÁTICA GIRATORIA MONO CONCHA SALA DOCENTE","Tandem espera 3 puestos"]
[null,null,null,null,null,null,null,null,null,null,null,"Soledad",null,null,null,null,null,null,null,null,null,null,null,null,null,null,null,null,null,null,null,null,null,null,null,"Jardín",null,null,null,null,"Muzo",null,null,null,null,null,null,null,null,null,null,"Nemocón",null,null,null,null,null,null,null,null,null,null,null,null,null,null,null,null,null,null,null,"Santacruz",null,null,null,null,null,null,null,null,null,null,null,null,null,null,null,"Páramo",null,null,null,null,null,null,null,null,null,null,null,null,null,null,null,null,null,null,null,null,null,null,null,"SILLA NEUMÁTICA RECTORÍA CON DESCANSA BRAZOS","Mesa para laboratorio trafico pesado"]
[null,null,null,null,null,null,null,null,null,null,null,"Sucre",null,null,null,null,null,null,null,null,null,null,null,null,null,null,null,null,null,null,null,null,null,null,null,"Jericó",null,null,null,null,"Nobsa",null,null,null,null,null,null,null,null,null,null,"Nilo",null,null,null,null,null,null,null,null,null,null,null,null,null,null,null,null,null,null,null,"Sapuyes",null,null,null,null,null,null,null,null,null,null,null,null,null,null,null,"Pinchote",null,null,null,null,null,null,null,null,null,null,null,null,null,null,null,null,null,null,null,null,null,null,null,"SILLA PUESTO DE TRABAJO INFANTIL BIBLIOTECA","Mesa plástica comedor"]
[null,null,null,null,null,null,null,null,null,null,null,"Tolima",null,null,null,null,null,null,null,null,null,null,null,null,null,null,null,null,null,null,null,null,null,null,null,"La Ceja",null,null,null,null,"Nuevo Colón",null,null,null,null,null,null,null,null,null,null,"Nimaima",null,null,null,null,null,null,null,null,null,null,null,null,null,null,null,null,null,null,null,"Taminango",null,null,null,null,null,null,null,null,null,null,null,null,null,null,null,"Puente Nacional",null,null,null,null,null,null,null,null,null,null,null,null,null,null,null,null,null,null,null,null,null,null,null,"SOFÁ DE DOS (2) PUESTOS","Mesa internet adultos"]
[null,null,null,null,null,null,null,null,null,null,null,"Tuluá",null,null,null,null,null,null,null,null,null,null,null,null,null,null,null,null,null,null,null,null,null,null,null,"La Estrella",null,null,null,null,"Oicatá",null,null,null,null,null,null,null,null,null,null,"Nocaima",null,null,null,null,null,null,null,null,null,null,null,null,null,null,null,null,null,null,null,"Tangua",null,null,null,null,null,null,null,null,null,null,null,null,null,null,null,"Puerto Parra",null,null,null,null,null,null,null,null,null,null,null,null,null,null,null,null,null,null,null,null,null,null,null,"SOFÁ DE TRES (3) PUESTOS LECTURA RELAJADA EN LA BIBLIOTECA Y AULA DE BILINGUISMO","Casilleros docentes"]
[null,null,null,null,null,null,null,null,null,null,null,"Tunja",null,null,null,null,null,null,null,null,null,null,null,null,null,null,null,null,null,null,null,null,null,null,null,"La Pintada",null,null,null,null,"Otanche",null,null,null,null,null,null,null,null,null,null,"Pacho",null,null,null,null,null,null,null,null,null,null,null,null,null,null,null,null,null,null,null,"Túquerres y Yacuanquer",null,null,null,null,null,null,null,null,null,null,null,null,null,null,null,"Puerto Wilches",null,null,null,null,null,null,null,null,null,null,null,null,null,null,null,null,null,null,null,null,null,null,null,"TABLERO MÓVIL DOS CARAS","Silla mesa biblioteca infantil"]
[null,null,null,null,null,null,null,null,null,null,null,"Turbo",null,null,null,null,null,null,null,null,null,null,null,null,null,null,null,null,null,null,null,null,null,null,null,"La Unión",null,null,null,null,"Pachavita",null,null,null,null,null,null,null,null,null,null,"Paime",null,null,null,null,null,null,null,null,null,null,null,null,null,null,null,null,null,null,null,null,null,null,null,null,null,null,null,null,null,null,null,null,null,null,null,"Rionegro",null,null,null,null,null,null,null,null,null,null,null,null,null,null,null,null,null,null,null,null,null,null,null,"TABLERO PARA MARCADOR BORRABLE","Silla ergonomica"]
[null,null,null,null,null,null,null,null,null,null,null,"Uribia",null,null,null,null,null,null,null,null,null,null,null,null,null,null,null,null,null,null,null,null,null,null,null,"Liborina",null,null,null,null,"Páez",null,null,null,null,null,null,null,null,null,null,"Pandi",null,null,null,null,null,null,null,null,null,null,null,null,null,null,null,null,null,null,null,null,null,null,null,null,null,null,null,null,null,null,null,null,null,null,null,"Sabana de Torres",null,null,null,null,null,null,null,null,null,null,null,null,null,null,null,null,null,null,null,null,null,null,null,"TÁNDEM CANECAS AULA MANEJO DE RESIDUOS SOLIDOS","Silla mesa laboratorio"]
[null,null,null,null,null,null,null,null,null,null,null,"Valle Del Cauca",null,null,null,null,null,null,null,null,null,null,null,null,null,null,null,null,null,null,null,null,null,null,null,"Maceo",null,null,null,null,"Paipa",null,null,null,null,null,null,null,null,null,null,"Paratebueno",null,null,null,null,null,null,null,null,null,null,null,null,null,null,null,null,null,null,null,null,null,null,null,null,null,null,null,null,null,null,null,null,null,null,null,"San Andrés",null,null,null,null,null,null,null,null,null,null,null,null,null,null,null,null,null,null,null,null,null,null,null,"TÁNDEM DE ESPERA PARA ESPACIOS EXTERIORES CUBIERTOS","Silla aula tecnologia"]
[null,null,null,null,null,null,null,null,null,null,null,"Valledupar",null,null,null,null,null,null,null,null,null,null,null,null,null,null,null,null,null,null,null,null,null,null,null,"Marinilla",null,null,null,null,"Pajarito",null,null,null,null,null,null,null,null,null,null,"Pasca",null,null,null,null,null,null,null,null,null,null,null,null,null,null,null,null,null,null,null,null,null,null,null,null,null,null,null,null,null,null,null,null,null,null,null,"San Benito",null,null,null,null,null,null,null,null,null,null,null,null,null,null,null,null,null,null,null,null,null,null,null,null,"Silla aula artes"]
[null,null,null,null,null,null,null,null,null,null,null,"Yopal",null,null,null,null,null,null,null,null,null,null,null,null,null,null,null,null,null,null,null,null,null,null,null,"Montebello",null,null,null,null,"Panqueba",null,null,null,null,null,null,null,null,null,null,"Puerto Salgar",null,null,null,null,null,null,null,null,null,null,null,null,null,null,null,null,null,null,null,null,null,null,null,null,null,null,null,null,null,null,null,null,null,null,null,"San Gil",null,null,null,null,null,null,null,null,null,null,null,null,null,null,null,null,null,null,null,null,null,null,null,null,"Sala de espera pequeña"]
[null,null,null,null,null,null,null,null,null,null,null,"Yumbo",null,null,null,null,null,null,null,null,null,null,null,null,null,null,null,null,null,null,null,null,null,null,null,"Murindó",null,null,null,null,"Pauna",null,null,null,null,null,null,null,null,null,null,"Pulí",null,null,null,null,null,null,null,null,null,null,null,null,null,null,null,null,null,null,null,null,null,null,null,null,null,null,null,null,null,null,null,null,null,null,null,"San Joaquín",null,null,null,null,null,null,null,null,null,null,null,null,null,null,null,null,null,null,null,null,null,null,null,null,"Puff"]
[null,null,null,null,null,null,null,null,null,null,null,null,null,null,null,null,null,null,null,null,null,null,null,null,null,null,null,null,null,null,null,null,null,null,null,"Mutatá",null,null,null,null,"Paya",null,null,null,null,null,null,null,null,null,null,"Quebradanegra",null,null,null,null,null,null,null,null,null,null,null,null,null,null,null,null,null,null,null,null,null,null,null,null,null,null,null,null,null,null,null,null,null,null,null,"San José de Miranda",null,null,null,null,null,null,null,null,null,null,null,null,null,null,null,null,null,null,null,null,null,null,null,null,"Mobiliario urbano silla parque"]
[null,null,null,null,null,null,null,null,null,null,null,null,null,null,null,null,null,null,null,null,null,null,null,null,null,null,null,null,null,null,null,null,null,null,null,"Nariño",null,null,null,null,"Paz de Río",null,null,null,null,null,null,null,null,null,null,"Quetame",null,null,null,null,null,null,null,null,null,null,null,null,null,null,null,null,null,null,null,null,null,null,null,null,null,null,null,null,null,null,null,null,null,null,null,"San Miguel",null,null,null,null,null,null,null,null,null,null,null,null,null,null,null,null,null,null,null,null,null,null,null,null,"Perchero preescolar"]
[null,null,null,null,null,null,null,null,null,null,null,null,null,null,null,null,null,null,null,null,null,null,null,null,null,null,null,null,null,null,null,null,null,null,null,"Nechí",null,null,null,null,"Pesca",null,null,null,null,null,null,null,null,null,null,"Quipile",null,null,null,null,null,null,null,null,null,null,null,null,null,null,null,null,null,null,null,null,null,null,null,null,null,null,null,null,null,null,null,null,null,null,null,"San Vicente de Chucurí",null,null,null,null,null,null,null,null,null,null,null,null,null,null,null,null,null,null,null,null,null,null,null,null,"Mueble locutor auditorio"]
[null,null,null,null,null,null,null,null,null,null,null,null,null,null,null,null,null,null,null,null,null,null,null,null,null,null,null,null,null,null,null,null,null,null,null,"Necoclí",null,null,null,null,"Pisba",null,null,null,null,null,null,null,null,null,null,"Ricaurte",null,null,null,null,null,null,null,null,null,null,null,null,null,null,null,null,null,null,null,null,null,null,null,null,null,null,null,null,null,null,null,null,null,null,null,"Santa Bárbara",null,null,null,null,null,null,null,null,null,null,null,null,null,null,null,null,null,null,null,null,null,null,null,null,"Puesto administrativo en l con silla"]
[null,null,null,null,null,null,null,null,null,null,null,null,null,null,null,null,null,null,null,null,null,null,null,null,null,null,null,null,null,null,null,null,null,null,null,"Olaya",null,null,null,null,"Puerto Boyacá",null,null,null,null,null,null,null,null,null,null,"San Antonio del Tequendama",null,null,null,null,null,null,null,null,null,null,null,null,null,null,null,null,null,null,null,null,null,null,null,null,null,null,null,null,null,null,null,null,null,null,null,"Santa Helena del Opón",null,null,null,null,null,null,null,null,null,null,null,null,null,null,null,null,null,null,null,null,null,null,null,null,"Puesto administrativo sencillo con silla"]
[null,null,null,null,null,null,null,null,null,null,null,null,null,null,null,null,null,null,null,null,null,null,null,null,null,null,null,null,null,null,null,null,null,null,null,"Peñol",null,null,null,null,"Quípama",null,null,null,null,null,null,null,null,null,null,"San Bernardo",null,null,null,null,null,null,null,null,null,null,null,null,null,null,null,null,null,null,null,null,null,null,null,null,null,null,null,null,null,null,null,null,null,null,null,"Simacota",null,null,null,null,null,null,null,null,null,null,null,null,null,null,null,null,null,null,null,null,null,null,null,null,"Puesto de trabajo rectoria con silla"]
[null,null,null,null,null,null,null,null,null,null,null,null,null,null,null,null,null,null,null,null,null,null,null,null,null,null,null,null,null,null,null,null,null,null,null,"Peque",null,null,null,null,"Ramiriquí",null,null,null,null,null,null,null,null,null,null,"San Cayetano",null,null,null,null,null,null,null,null,null,null,null,null,null,null,null,null,null,null,null,null,null,null,null,null,null,null,null,null,null,null,null,null,null,null,null,"Socorro",null,null,null,null,null,null,null,null,null,null,null,null,null,null,null,null,null,null,null,null,null,null,null,null,"Puesto administrativo de recepcion y atencion a usuarios tipo counter con silla."]
[null,null,null,null,null,null,null,null,null,null,null,null,null,null,null,null,null,null,null,null,null,null,null,null,null,null,null,null,null,null,null,null,null,null,null,"Pueblorrico",null,null,null,null,"Ráquira",null,null,null,null,null,null,null,null,null,null,"San Francisco",null,null,null,null,null,null,null,null,null,null,null,null,null,null,null,null,null,null,null,null,null,null,null,null,null,null,null,null,null,null,null,null,null,null,null,"Suaita",null,null,null,null,null,null,null,null,null,null,null,null,null,null,null,null,null,null,null,null,null,null,null,null,"Mueble tipo tren ludoteca"]
[null,null,null,null,null,null,null,null,null,null,null,null,null,null,null,null,null,null,null,null,null,null,null,null,null,null,null,null,null,null,null,null,null,null,null,"Puerto Berrío",null,null,null,null,"Rondón",null,null,null,null,null,null,null,null,null,null,"San Juan de Rioseco",null,null,null,null,null,null,null,null,null,null,null,null,null,null,null,null,null,null,null,null,null,null,null,null,null,null,null,null,null,null,null,null,null,null,null,"Sucre",null,null,null,null,null,null,null,null,null,null,null,null,null,null,null,null,null,null,null,null,null,null,null,null,"Mueble tipo escalera almacenamiento - ludoteca"]
[null,null,null,null,null,null,null,null,null,null,null,null,null,null,null,null,null,null,null,null,null,null,null,null,null,null,null,null,null,null,null,null,null,null,null,"Puerto Nare",null,null,null,null,"Saboyá",null,null,null,null,null,null,null,null,null,null,"Sasaima",null,null,null,null,null,null,null,null,null,null,null,null,null,null,null,null,null,null,null,null,null,null,null,null,null,null,null,null,null,null,null,null,null,null,null,"Suratá",null,null,null,null,null,null,null,null,null,null,null,null,null,null,null,null,null,null,null,null,null,null,null,null,"Mueble revistero - ludoteca"]
[null,null,null,null,null,null,null,null,null,null,null,null,null,null,null,null,null,null,null,null,null,null,null,null,null,null,null,null,null,null,null,null,null,null,null,"Puerto Triunfo",null,null,null,null,"Sáchica",null,null,null,null,null,null,null,null,null,null,"Sesquilé",null,null,null,null,null,null,null,null,null,null,null,null,null,null,null,null,null,null,null,null,null,null,null,null,null,null,null,null,null,null,null,null,null,null,null,"Tona",null,null,null,null,null,null,null,null,null,null,null,null,null,null,null,null,null,null,null,null,null,null,null,null,"Mueble almaceniamiento con canastillas - ludoteca"]
[null,null,null,null,null,null,null,null,null,null,null,null,null,null,null,null,null,null,null,null,null,null,null,null,null,null,null,null,null,null,null,null,null,null,null,"Remedios",null,null,null,null,"Samacá",null,null,null,null,null,null,null,null,null,null,"Sibaté",null,null,null,null,null,null,null,null,null,null,null,null,null,null,null,null,null,null,null,null,null,null,null,null,null,null,null,null,null,null,null,null,null,null,null,"Valle de San José"]
[null,null,null,null,null,null,null,null,null,null,null,null,null,null,null,null,null,null,null,null,null,null,null,null,null,null,null,null,null,null,null,null,null,null,null,"Retiro",null,null,null,null,"San Eduardo",null,null,null,null,null,null,null,null,null,null,"Silvania",null,null,null,null,null,null,null,null,null,null,null,null,null,null,null,null,null,null,null,null,null,null,null,null,null,null,null,null,null,null,null,null,null,null,null,"Vélez"]
[null,null,null,null,null,null,null,null,null,null,null,null,null,null,null,null,null,null,null,null,null,null,null,null,null,null,null,null,null,null,null,null,null,null,null,"Sabanalarga",null,null,null,null,"San José de Pare",null,null,null,null,null,null,null,null,null,null,"Simijaca",null,null,null,null,null,null,null,null,null,null,null,null,null,null,null,null,null,null,null,null,null,null,null,null,null,null,null,null,null,null,null,null,null,null,null,"Vetas"]
[null,null,null,null,null,null,null,null,null,null,null,null,null,null,null,null,null,null,null,null,null,null,null,null,null,null,null,null,null,null,null,null,null,null,null,"Salgar",null,null,null,null,"San Luis de Gaceno",null,null,null,null,null,null,null,null,null,null,"Sopó",null,null,null,null,null,null,null,null,null,null,null,null,null,null,null,null,null,null,null,null,null,null,null,null,null,null,null,null,null,null,null,null,null,null,null,"Villanueva y Zapatoca"]
[null,null,null,null,null,null,null,null,null,null,null,null,null,null,null,null,null,null,null,null,null,null,null,null,null,null,null,null,null,null,null,null,null,null,null,"San Andrés De Cuerquía",null,null,null,null,"San Mateo",null,null,null,null,null,null,null,null,null,null,"Subachoque"]
[null,null,null,null,null,null,null,null,null,null,null,null,null,null,null,null,null,null,null,null,null,null,null,null,null,null,null,null,null,null,null,null,null,null,null,"San Carlos",null,null,null,null,"San Miguel de Sema",null,null,null,null,null,null,null,null,null,null,"Suesca"]
[null,null,null,null,null,null,null,null,null,null,null,null,null,null,null,null,null,null,null,null,null,null,null,null,null,null,null,null,null,null,null,null,null,null,null,"San Francisco",null,null,null,null,"San Pablo de Borbur",null,null,null,null,null,null,null,null,null,null,"Supatá"]
[null,null,null,null,null,null,null,null,null,null,null,null,null,null,null,null,null,null,null,null,null,null,null,null,null,null,null,null,null,null,null,null,null,null,null,"San Jerónimo",null,null,null,null,"Santa María",null,null,null,null,null,null,null,null,null,null,"Susa"]
[null,null,null,null,null,null,null,null,null,null,null,null,null,null,null,null,null,null,null,null,null,null,null,null,null,null,null,null,null,null,null,null,null,null,null,"San José de la Montaña",null,null,null,null,"Santa Rosa de Viterbo",null,null,null,null,null,null,null,null,null,null,"Sutatausa"]
[null,null,null,null,null,null,null,null,null,null,null,null,null,null,null,null,null,null,null,null,null,null,null,null,null,null,null,null,null,null,null,null,null,null,null,"San Juan de Urabá",null,null,null,null,"Santa Sofía",null,null,null,null,null,null,null,null,null,null,"Tabio"]
[null,null,null,null,null,null,null,null,null,null,null,null,null,null,null,null,null,null,null,null,null,null,null,null,null,null,null,null,null,null,null,null,null,null,null,"San Luis",null,null,null,null,"Santana",null,null,null,null,null,null,null,null,null,null,"Tausa"]
[null,null,null,null,null,null,null,null,null,null,null,null,null,null,null,null,null,null,null,null,null,null,null,null,null,null,null,null,null,null,null,null,null,null,null,"San Pedro de los Milagros",null,null,null,null,"Sativanorte",null,null,null,null,null,null,null,null,null,null,"Tena"]
[null,null,null,null,null,null,null,null,null,null,null,null,null,null,null,null,null,null,null,null,null,null,null,null,null,null,null,null,null,null,null,null,null,null,null,"San Pedro de Urabá",null,null,null,null,"Sativasur",null,null,null,null,null,null,null,null,null,null,"Tenjo"]
[null,null,null,null,null,null,null,null,null,null,null,null,null,null,null,null,null,null,null,null,null,null,null,null,null,null,null,null,null,null,null,null,null,null,null,"San Rafael",null,null,null,null,"Siachoque",null,null,null,null,null,null,null,null,null,null,"Tibacuy"]
[null,null,null,null,null,null,null,null,null,null,null,null,null,null,null,null,null,null,null,null,null,null,null,null,null,null,null,null,null,null,null,null,null,null,null,"San Roque",null,null,null,null,"Soatá",null,null,null,null,null,null,null,null,null,null,"Tibirita"]
[null,null,null,null,null,null,null,null,null,null,null,null,null,null,null,null,null,null,null,null,null,null,null,null,null,null,null,null,null,null,null,null,null,null,null,"San Vicente Ferrer",null,null,null,null,"Socha",null,null,null,null,null,null,null,null,null,null,"Tocaima"]
[null,null,null,null,null,null,null,null,null,null,null,null,null,null,null,null,null,null,null,null,null,null,null,null,null,null,null,null,null,null,null,null,null,null,null,"Santa Bárbara",null,null,null,null,"Socotá",null,null,null,null,null,null,null,null,null,null,"Tocancipá"]
[null,null,null,null,null,null,null,null,null,null,null,null,null,null,null,null,null,null,null,null,null,null,null,null,null,null,null,null,null,null,null,null,null,null,null,"Santa Fé de Antioquia",null,null,null,null,"Somondoco",null,null,null,null,null,null,null,null,null,null,"Topaipí"]
[null,null,null,null,null,null,null,null,null,null,null,null,null,null,null,null,null,null,null,null,null,null,null,null,null,null,null,null,null,null,null,null,null,null,null,"Santa Rosa de Osos",null,null,null,null,"Sora",null,null,null,null,null,null,null,null,null,null,"Ubalá"]
[null,null,null,null,null,null,null,null,null,null,null,null,null,null,null,null,null,null,null,null,null,null,null,null,null,null,null,null,null,null,null,null,null,null,null,"Santo Domingo",null,null,null,null,"Soracá",null,null,null,null,null,null,null,null,null,null,"Ubaque"]
[null,null,null,null,null,null,null,null,null,null,null,null,null,null,null,null,null,null,null,null,null,null,null,null,null,null,null,null,null,null,null,null,null,null,null,"Segovia",null,null,null,null,"Sotaquirá",null,null,null,null,null,null,null,null,null,null,"Une"]
[null,null,null,null,null,null,null,null,null,null,null,null,null,null,null,null,null,null,null,null,null,null,null,null,null,null,null,null,null,null,null,null,null,null,null,"Sonsón",null,null,null,null,"Susacón",null,null,null,null,null,null,null,null,null,null,"Útica"]
[null,null,null,null,null,null,null,null,null,null,null,null,null,null,null,null,null,null,null,null,null,null,null,null,null,null,null,null,null,null,null,null,null,null,null,"Sopetrán",null,null,null,null,"Sutamarchán",null,null,null,null,null,null,null,null,null,null,"Venecia"]
[null,null,null,null,null,null,null,null,null,null,null,null,null,null,null,null,null,null,null,null,null,null,null,null,null,null,null,null,null,null,null,null,null,null,null,"Támesis",null,null,null,null,"Sutatenza",null,null,null,null,null,null,null,null,null,null,"Vergara"]
[null,null,null,null,null,null,null,null,null,null,null,null,null,null,null,null,null,null,null,null,null,null,null,null,null,null,null,null,null,null,null,null,null,null,null,"Tarazá",null,null,null,null,"Tasco",null,null,null,null,null,null,null,null,null,null,"Vianí"]
[null,null,null,null,null,null,null,null,null,null,null,null,null,null,null,null,null,null,null,null,null,null,null,null,null,null,null,null,null,null,null,null,null,null,null,"Tarso",null,null,null,null,"Tenza",null,null,null,null,null,null,null,null,null,null,"Villa De San Diego de Ubaté"]
[null,null,null,null,null,null,null,null,null,null,null,null,null,null,null,null,null,null,null,null,null,null,null,null,null,null,null,null,null,null,null,null,null,null,null,"Titiribí",null,null,null,null,"Tibaná",null,null,null,null,null,null,null,null,null,null,"Villagómez"]
[null,null,null,null,null,null,null,null,null,null,null,null,null,null,null,null,null,null,null,null,null,null,null,null,null,null,null,null,null,null,null,null,null,null,null,"Toledo",null,null,null,null,"Tibasosa",null,null,null,null,null,null,null,null,null,null,"Villapinzón"]
[null,null,null,null,null,null,null,null,null,null,null,null,null,null,null,null,null,null,null,null,null,null,null,null,null,null,null,null,null,null,null,null,null,null,null,"Uramita",null,null,null,null,"Tinjacá",null,null,null,null,null,null,null,null,null,null,"Villeta"]
[null,null,null,null,null,null,null,null,null,null,null,null,null,null,null,null,null,null,null,null,null,null,null,null,null,null,null,null,null,null,null,null,null,null,null,"Urrao",null,null,null,null,"Tipacoque",null,null,null,null,null,null,null,null,null,null,"Viotá"]
[null,null,null,null,null,null,null,null,null,null,null,null,null,null,null,null,null,null,null,null,null,null,null,null,null,null,null,null,null,null,null,null,null,null,null,"Valdivia",null,null,null,null,"Toca",null,null,null,null,null,null,null,null,null,null,"Yacopí y Zipacón"]
[null,null,null,null,null,null,null,null,null,null,null,null,null,null,null,null,null,null,null,null,null,null,null,null,null,null,null,null,null,null,null,null,null,null,null,"Valparaíso",null,null,null,null,"Togüí"]
[null,null,null,null,null,null,null,null,null,null,null,null,null,null,null,null,null,null,null,null,null,null,null,null,null,null,null,null,null,null,null,null,null,null,null,"Vegachí",null,null,null,null,"Tópaga"]
[null,null,null,null,null,null,null,null,null,null,null,null,null,null,null,null,null,null,null,null,null,null,null,null,null,null,null,null,null,null,null,null,null,null,null,"Venecia",null,null,null,null,"Tota"]
[null,null,null,null,null,null,null,null,null,null,null,null,null,null,null,null,null,null,null,null,null,null,null,null,null,null,null,null,null,null,null,null,null,null,null,"Vigía del Fuerte",null,null,null,null,"Tununguá"]
[null,null,null,null,null,null,null,null,null,null,null,null,null,null,null,null,null,null,null,null,null,null,null,null,null,null,null,null,null,null,null,null,null,null,null,"Yalí",null,null,null,null,"Turmequé"]
[null,null,null,null,null,null,null,null,null,null,null,null,null,null,null,null,null,null,null,null,null,null,null,null,null,null,null,null,null,null,null,null,null,null,null,"Yarumal",null,null,null,null,"Tuta"]
[null,null,null,null,null,null,null,null,null,null,null,null,null,null,null,null,null,null,null,null,null,null,null,null,null,null,null,null,null,null,null,null,null,null,null,"Yolombó",null,null,null,null,"Tutazá"]
[null,null,null,null,null,null,null,null,null,null,null,null,null,null,null,null,null,null,null,null,null,null,null,null,null,null,null,null,null,null,null,null,null,null,null,"Yondó y Zaragoza",null,null,null,null,"Úmbita"]
[null,null,null,null,null,null,null,null,null,null,null,null,null,null,null,null,null,null,null,null,null,null,null,null,null,null,null,null,null,null,null,null,null,null,null,null,null,null,null,null,"Ventaquemada"]
[null,null,null,null,null,null,null,null,null,null,null,null,null,null,null,null,null,null,null,null,null,null,null,null,null,null,null,null,null,null,null,null,null,null,null,null,null,null,null,null,"Villa de Leyva"]
[null,null,null,null,null,null,null,null,null,null,null,null,null,null,null,null,null,null,null,null,null,null,null,null,null,null,null,null,null,null,null,null,null,null,null,null,null,null,null,null,"Viracachá y Zetaquira"]

{"sheet":"CSV","index":4,"n_rows":6,"n_cols":8,"rows_kept":6,"cut":false,"hidden":true,"merged":[]}
["Tipo (servicio o artÃ­culo)","Cantidad","CÃ³digo de unidad de medida*","PosiciÃ³n","Precio base","Divisa","DescripciÃ³n","MercancÃ­a"]
["item",10,"Und",null,"\"59123,71\"","COP","dte01--BUTACO DE LABORATORIO INTEGRADO FÃ\u008dSICA Y QUÃ\u008dMICA"]
["item",10,"Und",null,"\"520618,56\"","COP","dte01--ARCHIVADOR GRANDE - DOCUMENTACION"]
["item",10,"Und",null,"\"5150360,82\"","COP","dte01--AULA PREESCOLAR"]
["item",10,"Und",null,"\"2443711,34\"","COP","dte01--ALMACENAMIENTO AULA TIM"]
["item",1,"Und",null,"\"15530247,42\"","COP","dte01--IVA"]

{"sheet":"Cotizacion","index":5,"n_rows":35,"n_cols":25,"rows_kept":35,"cut":false,"hidden":false,"merged":[[27,21,27,23],[27,24,27,26],[28,21,28,23],[28,24,28,26],[29,21,29,23],[29,24,29,26],[24,0,24,3],[24,4,24,8],[25,3,25,9],[26,3,26,9],[22,0,22,3],[22,4,22,8],[22,9,22,12],[23,0,23,3],[23,4,23,13],[21,0,21,1],[21,2,21,6],[21,7,21,8],[21,9,21,10],[21,12,21,13],[25,24,25,26],[26,24,26,26],[25,14,25,16],[25,10,25,13],[26,10,26,13],[26,21,26,23],[26,14,26,16],[25,21,25,23],[25,17,25,19],[26,17,26,19],[11,0,11,1],[11,2,11,6],[13,0,13,1],[13,2,13,6],[7,10,7,14],[9,0,9,1],[9,2,9,6],[9,8,9,9],[9,10,9,14],[7,0,7,1],[34,3,34,4],[31,0,31,5],[33,1,33,4],[32,1,32,4],[0,0,1,14],[3,0,3,14],[5,0,5,1],[5,2,5,6],[5,8,5,9],[5,10,5,14],[15,0,15,14],[17,6,17,8],[17,2,17,4],[19,1,19,8],[7,2,7,6],[7,8,7,9]]}
["Resumen de Cotización - Dotación Escolar",null,null,null,null,null,null,null,null,null,null,null,null,null,null,null,null,{"$f":"F35","v":0}]
[]
[]
["Información de la Entidad Compradora"]
[]
["Nombre de la Entidad:",null,null,null,null,null,null,null,"NIT:"]
[]
["Dirección de la Entidad:",null,null,null,null,null,null,null,"Correo de contacto:"]
[]
["Municipio:",null,null,null,null,null,null,null,"Teléfono de contacto:"]
[]
["Nombre funcionario Comprador:"]
[]
["Fecha de inicio estimada:",null,"2018-12-05"]
[]
["Solicitud de Cotización"]
[]
[null,"Segmento:",null,null,null,"Región:"]
[null,"Seleccione el nombre del proveedor:"]
[]
[]
["Dirección de entrega",null,null,null,null,null,null,"Ciudad",null,null,null,"Municipio"]
["Horario en el que se puede entregar (Días y horas)",null,null,null,null,null,null,null,null,"Requiere Instalada la Dotación Escolar?"]
["Detalle como requiere la instacion"]
["Fecha de entrega",null,null,null,{"$f":"WORKDAY($C$14,20)","v":"2019-01-02"},null,null,null,null,"Agregar filas:",1,"Agregar","Eliminar"]
["No.","Artículo","Item","Detalle",null,null,null,null,null,null,"Cantidad",null,null,null,"Precio",null,null,"Precio + Gravámenes",null,null,"Descuento","Percio con Descuento",null,null,"Valor"]
[1]
[null,null,null,null,null,null,null,null,null,null,null,null,null,null,null,null,null,null,null,null,null,"Sub Total",null,null,{"$f":"SUM($Y$27:$AA$27)","v":0}]
[null,null,null,null,null,null,null,null,null,null,null,null,null,null,null,null,null,null,null,null,null,"IVA",null,null,{"$f":"ROUND(Y28*0.19,2)","v":0}]
[null,null,null,null,null,null,null,null,null,null,null,null,null,null,null,null,null,null,null,null,null,"Valor Total",null,null,{"$f":"SUM(Y28:AA29)","v":0}]
[]
["Gravámenes adicionales (estampillas)"]
["No","Descripción",null,null,null,"Porcentaje"]
[1,"",null,null,null,""]
[null,null,null,"Total porcentaje:",null,{"$f":"SUM(F34:F34)","v":0}]

{"sheet":"Cuadro Totales","index":6,"n_rows":12,"n_cols":11,"rows_kept":12,"cut":false,"hidden":true,"merged":[[10,10,10,12],[11,10,11,12],[7,10,7,12],[8,0,8,2],[8,7,8,9],[8,3,8,5],[8,10,8,12],[9,10,9,12],[9,7,9,9],[10,7,10,9],[11,7,11,9],[2,6,2,8],[3,6,3,8],[4,6,4,8],[7,0,7,2],[7,7,7,9],[7,3,7,5],[0,0,0,2],[0,3,0,5],[0,6,0,8],[1,0,1,2],[1,3,1,5],[1,6,1,8]]}
["Precio",null,null,"Gravámenes",null,null,"Valor"]
[]
[null,null,null,null,null,"Sub Total"]
[null,null,null,null,null,"IVA",{"$f":"ROUND(G3*0.19,2)","v":0}]
[null,null,null,null,null,"Valor Total",{"$f":"SUM(G3:I4)","v":0}]
[]
[]
["Precio",null,null,"Precio + Gravámenes",null,null,"Descuento","Percio con Descuento",null,null,"Valor"]
[]
[null,null,null,null,null,null,null,"Sub Total"]
[null,null,null,null,null,null,null,"IVA",null,null,{"$f":"ROUND(K10*0.19,2)","v":0}]
[null,null,null,null,null,null,null,"Valor Total",null,null,{"$f":"SUM(K10:M11)","v":0}]

{"sheet":"CantMinimas","index":7,"n_rows":233,"n_cols":4,"rows_kept":233,"cut":false,"hidden":true,"merged":[]}
["Segmento","Artículo","Item","CantMinima"]
["Mobiliario de Cocina","AMBIENTE","COMEDOR-COCINA 1",1]
["Mobiliario de Cocina","AMBIENTE","COMEDOR-COCINA 2",1]
["Mobiliario de Cocina","AMBIENTE","COMEDOR-COCINA 3",1]
["Mobiliario de Cocina","PRODUCTO","ESTUFA DE TRES (3) PUESTOS PREPARACION ALIMENTOS",1]
["Mobiliario de Cocina","PRODUCTO","ESTUFA ENANA (1) QUEMADOR PREPARACION ALIMENTOS",1]
["Mobiliario de Cocina","PRODUCTO","MESÓN CON AZAFATES -  DISTRIBUCION ALIMENTOS EN EL COMEDOR",1]
["Mobiliario de Cocina","PRODUCTO","MESÓN CON POCETA LAVAR MENAJE COCINA",1]
["Mobiliario de Cocina","PRODUCTO","MESÓN DE TRABAJO CORTAR PICAR TRABAJO EN LA COCINA",1]
["Mobiliario Escolar","AMBIENTE","AULA PREESCOLAR",1]
["Mobiliario Escolar","AMBIENTE","AULA PRIMARIA",1]
["Mobiliario Escolar","AMBIENTE","AULA SECUNDARIA",1]
["Mobiliario Escolar","AMBIENTE","AULA TIM",1]
["Mobiliario Escolar","AMBIENTE","BIBLIOTECA BÁSICA 1",1]
["Mobiliario Escolar","AMBIENTE","BIBLIOTECA BÁSICA 2",1]
["Mobiliario Escolar","AMBIENTE","BILINGÜISMO",1]
["Mobiliario Escolar","AMBIENTE","LABORATORIO CIENCIA ARTES PRIMARIA",1]
["Mobiliario Escolar","AMBIENTE","LABORATORIO INTEGRADO FÍSICA QUÍMICA SECUNDARIA",1]
["Mobiliario Escolar","AMBIENTE","MANTENIMIENTO",1]
["Mobiliario Escolar","AMBIENTE","OFICINA ADMINISTRATIVA",1]
["Mobiliario Escolar","AMBIENTE","PUESTO RECTORÍA",1]
["Mobiliario Escolar","AMBIENTE","SALA DOCENTE 1",1]
["Mobiliario Escolar","AMBIENTE","SALA DOCENTE 2",1]
["Mobiliario Escolar","CONJUNTO","ALMACENAMIENTO AULA TIM",1]
["Mobiliario Escolar","CONJUNTO","ALMACENAMIENTO BILINGÜISMO",1]
["Mobiliario Escolar","CONJUNTO","CUBÍCULOS DOBLES DE TRABAJO SALA DOCENTE",2]
["Mobiliario Escolar","CONJUNTO","DESCANSO SALA DOCENTE (OPCIONAL)",1]
["Mobiliario Escolar","CONJUNTO","EXHIBICIÓN",1]
["Mobiliario Escolar","CONJUNTO","PUESTO DE COMEDOR",5]
["Mobiliario Escolar","CONJUNTO","PUESTO DE TRABAJO ADMINISTRATIVO",1]
["Mobiliario Escolar","CONJUNTO","PUESTO DE TRABAJO AULA PREESCOLAR",1]
["Mobiliario Escolar","CONJUNTO","PUESTO DE TRABAJO AULA PRIMARIA",10]
["Mobiliario Escolar","CONJUNTO","PUESTO DE TRABAJO AULA SECUNDARIA",10]
["Mobiliario Escolar","CONJUNTO","PUESTO DE TRABAJO AULA TIM",7]
["Mobiliario Escolar","CONJUNTO","PUESTO DE TRABAJO BIBLIOTECA OPCIÓN 1 - PREDETERMINADA",5]
["Mobiliario Escolar","CONJUNTO","PUESTO DE TRABAJO BIBLIOTECA OPCIÓN 2",6]
["Mobiliario Escolar","CONJUNTO","PUESTO DE TRABAJO BILINGÜISMO 1",2]
["Mobiliario Escolar","CONJUNTO","PUESTO DE TRABAJO BILINGÜISMO 2",1]
["Mobiliario Escolar","CONJUNTO","PUESTO DE TRABAJO BILINGÜISMO 3",1]
["Mobiliario Escolar","CONJUNTO","PUESTO DE TRABAJO DOCENTE",1]
["Mobiliario Escolar","CONJUNTO","PUESTO DE TRABAJO LABORATORIO CIENCIAS PRIMARIA",1]
["Mobiliario Escolar","CONJUNTO","PUESTO DE TRABAJO LABORATORIO INTEGRADO FÍSICA - QUÍMICA",1]
["Mobiliario Escolar","CONJUNTO","PUESTO DE TRABAJO MANTENIMIENTO",1]
["Mobiliario Escolar","CONJUNTO","PUESTO DE TRABAJO PREESCOLAR",1]
["Mobiliario Escolar","CONJUNTO","PUESTO DE TRABAJO RECEPCIÓN",1]
["Mobiliario Escolar","CONJUNTO","PUESTO DE TRABAJO RECTORÍA",1]
["Mobiliario Escolar","CONJUNTO","SALA DE JUNTAS  SALA DOCENTE",1]
["Mobiliario Escolar","CONJUNTO","TRABAJO BIPERSONAL BIBLIOTECA",2]
["Mobiliario Escolar","PRODUCTO","ARCHIVADOR GRANDE - DOCUMENTACION",1]
["Mobiliario Escolar","PRODUCTO","BUTACO DE LABORATORIO INTEGRADO FÍSICA Y QUÍMICA",5]
["Mobiliario Escolar","PRODUCTO","CASILLERO ALUMNOS ALMACENAR OBJETOS ALUMNOS",1]
["Mobiliario Escolar","PRODUCTO","CUERPO CASILLERO DOCENTE ALMACENAMIENTO OBJETOS DOCENTES",1]
["Mobiliario Escolar","PRODUCTO","ESTANTE DE BIBLIOTECA 1,30 MTS ADMINISTRACION Y RESGUARDO DE TEXTOS EN LA BIBLIOTECA",1]
["Mobiliario Escolar","PRODUCTO","ESTANTE DE DEPOSITO",1]
["Mobiliario Escolar","PRODUCTO","MALETERO - SEGURIDAD EN LA BIBLIOTECA",1]
["Mobiliario Escolar","PRODUCTO","MUEBLE DE ALMACENAMIENTO AULA CON TRES CAJONES",1]
["Mobiliario Escolar","PRODUCTO","MUEBLE DE ALMACENAMIENTO AULA TIM",1]
["Mobiliario Escolar","PRODUCTO","MUEBLE DE ALMACENAMIENTO BIBLIOTECA EQUIPOS AUDIOVISUALES Y ELEMENTOS DE ALTO COSTO O DELICADOS EN LA BIBLIOTECA",1]
["Mobiliario Escolar","PRODUCTO","MUEBLE MÓVIL DE RECOLECCIÓN DE LIBROS",1]
["Mobiliario Escolar","PRODUCTO","PAPELERA MANEJO DE RESIDUOS SOLIDOS",1]
["Mobiliario Escolar","PRODUCTO","PUNTO ECOLÓGICO EXTERIOR CON TRES CANECAS MANEJO DE RESIDUOS SOLIDOS",1]
["Mobiliario Escolar","PRODUCTO","SOFÁ DE TRES (3) PUESTOS LECTURA RELAJADA EN LA BIBLIOTECA Y AULA DE BILINGUISMO",1]
["Mobiliario Escolar","PRODUCTO","TABLERO MÓVIL DOS CARAS",1]
["Mobiliario Escolar","PRODUCTO","TABLERO PARA MARCADOR BORRABLE",1]
["Mobiliario Escolar","PRODUCTO","TÁNDEM CANECAS AULA MANEJO DE RESIDUOS SOLIDOS",1]
["Mobiliario Escolar","PRODUCTO","TÁNDEM DE ESPERA PARA ESPACIOS EXTERIORES CUBIERTOS",1]
["Mobiliario Escolar","PRODUCTO","SILLA CAFETERIA - AUDITORIO",1]
["Mobiliario Escolar","PRODUCTO","SILLA PUESTO DE TRABAJO DOCENTE",1]
["Mobiliario Escolar","PRODUCTO","SILLA PUESTO DE TRABAJO PREESCOLAR",1]
["Mobiliario Escolar","PRODUCTO","SILLA PUESTO DE TRABAJO PRIMARIA",1]
["Mobiliario Escolar","PRODUCTO","SILLA PUESTO DE TRABAJO SECUNDARIA",1]
["Mobiliario Escolar","PRODUCTO","SILLA PUESTO DE TRABAJO INFANTIL BIBLIOTECA",1]
["Mobiliario Escolar","PRODUCTO","SILLA NEUMÁTICA ADMINISTRATIVA",1]
["Mobiliario Escolar","PRODUCTO","SILLA NEUMÁTICA RECTORÍA CON DESCANSA BRAZOS",1]
["Mobiliario Escolar","PRODUCTO","SILLA NEUMÁTICA GIRATORIA MONO CONCHA",1]
["Mobiliario Escolar","PRODUCTO","SILLA NEUMÁTICA GIRATORIA MONO CONCHA AULA TIM",1]
["Mobiliario Escolar","PRODUCTO","SILLA NEUMÁTICA GIRATORIA MONO CONCHA SALA DOCENTE",1]
["Mobiliario Escolar","PRODUCTO","MESA MODULAR CIRCUNFERENCIAS",1]
["Mobiliario SED","PRODUCTO","ASIENTO INFANTIL",1]
["Mobiliario SED","PRODUCTO","ASIENTO INFANTIL",1]
["Mobiliario SED","PRODUCTO","ASIENTO INFANTIL",1]
["Mobiliario SED","PRODUCTO","BIBLIOBANCO",1]
["Mobiliario SED","PRODUCTO","BIBLIOBANCO",1]
["Mobiliario SED","PRODUCTO","BIBLIOBANCO",1]
["Mobiliario SED","PRODUCTO","CARTERLERA INFORMACIÓN INSTITUCIONAL",1]
["Mobiliario SED","PRODUCTO","CARTERLERA INFORMACIÓN INSTITUCIONAL",1]
["Mobiliario SED","PRODUCTO","CARTERLERA INFORMACIÓN INSTITUCIONAL",1]
["Mobiliario SED","PRODUCTO","ESTANTERÍA ALTA",1]
["Mobiliario SED","PRODUCTO","ESTANTERÍA ALTA",1]
["Mobiliario SED","PRODUCTO","ESTANTERÍA ALTA",1]
["Mobiliario SED","PRODUCTO","PERCHERO",1]
["Mobiliario SED","PRODUCTO","PERCHERO",1]
["Mobiliario SED","PRODUCTO","PERCHERO",1]
["Mobiliario SED","PRODUCTO","REPISA PERCHERO",1]
["Mobiliario SED","PRODUCTO","REPISA PERCHERO",1]
["Mobiliario SED","PRODUCTO","REPISA PERCHERO",1]
["Mobiliario Escolar","CONJUNTO","PUESTO DE TRABAJO LABORATORIO CIENCIAS PRIMARIA 1",1]
["Mobiliario Escolar","CONJUNTO","PUESTO DE TRABAJO LABORATORIO INTEGRADO FÍSICA - QUÍMICA 1",1]
["Mobiliario Escolar","PRODUCTO","SOFÁ DE DOS (2) PUESTOS",1]
["Mobiliario Escolar","PRODUCTO","MÓDULO DE CUATRO (4) CASILLEROS PARA SERVICIOS GENERALES",1]
["Mobiliario Escolar","PRODUCTO","REVISTERO",1]
["Mobiliario Escolar","PRODUCTO","PUESTO DE TRABAJO ESTÁNDAR",1]
["Mobiliario Escolar","PRODUCTO","ARCHIVADOR REGIÓN 1 UNIDAD",1]
["Mobiliario Escolar","PRODUCTO","BANCO DE TRABAJO MANTENIMIENTO ",1]
["Mobiliario Escolar","PRODUCTO","BIOMBO ",1]
["Mobiliario Escolar","PRODUCTO","BUTACO AUXILIAR BIBLIOTECA ",1]
["Mobiliario Escolar","PRODUCTO","BUTACO BANCO DE TRABAJO MANTENIMIENTO ",1]
["Mobiliario Escolar","PRODUCTO","BUTACO LABORATORIO PRIMARIA CIENCIAS Y ARTES ",1]
["Mobiliario Escolar","PRODUCTO","CUBÍCULO DOBLE DE TRABAJO BIBLIOTECA ",1]
["Mobiliario Escolar","PRODUCTO","CUBÍCULO DOBLE DE TRABAJO SALA DOCENTE ",1]
["Mobiliario Escolar","PRODUCTO","MESA AUXILIAR PUESTO DE TRABAJO PREESCOLAR",1]
["Mobiliario Escolar","PRODUCTO","MESA AUXILIAR SALA DOCENTE ",1]
["Mobiliario Escolar","PRODUCTO","MESA DE ATENCIÓN RECEPCIÓN ",1]
["Mobiliario Escolar","PRODUCTO","MESA DE ATENCIÓN RECTORÍA ",1]
["Mobiliario Escolar","PRODUCTO","MESA DE CAFETERÍA PLEGABLE",1]
["Mobiliario Escolar","PRODUCTO","MESA DE CONSULTA TRAPEZOIDAL BIBLIOTECA",1]
["Mobiliario Escolar","PRODUCTO","MESA DE JUNTAS RECTORÍA ",1]
["Mobiliario Escolar","PRODUCTO","MESA DE JUNTAS SALA DOCENTE ",1]
["Mobiliario Escolar","PRODUCTO","MESA DE TRABAJO BILINGUISMO",1]
["Mobiliario Escolar","PRODUCTO","MESA DE TRABAJO CONSULTA LECTURA BIBLIOTECA",1]
["Mobiliario Escolar","PRODUCTO","MESA INFANTIL BIBLIOTECA ",1]
["Mobiliario Escolar","PRODUCTO","MESA MODULAR AULA TIM",1]
["Mobiliario Escolar","PRODUCTO","MESA MODULAR TIM CON MULTITOMA RETRÁCTIL ",1]
["Mobiliario Escolar","PRODUCTO","MESA PARA CÓMPUTO RECTOR ",1]
["Mobiliario Escolar","PRODUCTO","MESA PUESTO DE TRABAJO BÁSICA PRIMARIA",1]
["Mobiliario Escolar","PRODUCTO","MESA PUESTO DE TRABAJO BÁSICA SECUNDARIA ",1]
["Mobiliario Escolar","PRODUCTO","MESA PUESTO DE TRABAJO PREESCOLAR",1]
["Mobiliario Escolar","PRODUCTO","MESA PUESTO DOCENTE",1]
["Mobiliario Escolar","PRODUCTO","MESÓN LABORATORIO INTEGRADO SECUNDARIA FÍSICA - QUÍMICA ",1]
["Mobiliario Escolar","PRODUCTO","MESÓN LABORATORIO PRIMARIA ",1]
["Mobiliario Escolar","PRODUCTO","MUEBLE DE ALMACENAMIENTO DE LABORATORIO INTEGRADO FÍSICA-QUÍMICA SECUNDARIA",1]
["Mobiliario Escolar","PRODUCTO","MUEBLE DE ALMACENAMIENTO DE LABORATORIO PRIMARIA CIENCIAS Y ARTES ",1]
["Mobiliario Escolar","PRODUCTO","MUEBLE MÓVIL DE CONTENIDOS AULA TIM ",1]
["Mobiliario Escolar","PRODUCTO","MUEBLE MÓVIL LABORATORIO ",1]
["Mobiliario Escolar","PRODUCTO","SILLA INTERLOCUTORA BIBLIOTECA ",1]
["Mobiliario Escolar","PRODUCTO","SILLA INTERLOCUTORA BIBLIOTECA - BILINGUISMO",1]
["Mobiliario Escolar","PRODUCTO","SILLA INTERLOCUTORA RECEPCIÓN ",1]
["Mobiliario Escolar","PRODUCTO","SILLA INTERLOCUTORA RECTORÍA ",1]
["Mobiliario Escolar","PRODUCTO","SILLA INTERLOCUTORA SALA DOCENTE ",1]
["Mobiliario Escolar","PRODUCTO","Pupitre preescolar 5 mesas (x5 sillas c/u)",1]
["Mobiliario Escolar","PRODUCTO","Pupitre primaria mesa y silla",1]
["Mobiliario Escolar","PRODUCTO","Pupitre bachillerato mesa y silla",1]
["Mobiliario Escolar","PRODUCTO","Puesto universitario diestro",1]
["Mobiliario Escolar","PRODUCTO","Puesto universitario zurdo",1]
["Mobiliario Escolar","PRODUCTO","Bibliobanco",1]
["Mobiliario Escolar","PRODUCTO","Tablero",1]
["Mobiliario Escolar","PRODUCTO","Casilleros estudiantes",1]
["Mobiliario Escolar","PRODUCTO","Catedra mesa y silla",1]
["Mobiliario Escolar","PRODUCTO","Silla comedor",1]
["Mobiliario Escolar","PRODUCTO","Silla interlocutora",1]
["Mobiliario Escolar","PRODUCTO","Archivador horizontal 3 gavetas",1]
["Mobiliario Escolar","PRODUCTO","Archivador aereo",1]
["Mobiliario Escolar","PRODUCTO","Archivador metalico",1]
["Mobiliario Escolar","PRODUCTO","Biombo enfermeria",1]
["Mobiliario Escolar","PRODUCTO","Butaco para laboratorio alto",1]
["Mobiliario Escolar","PRODUCTO","Cartelera de informacion institucional",1]
["Mobiliario Escolar","PRODUCTO","Comedor preescolar",1]
["Mobiliario Escolar","PRODUCTO","Escritorio y silla aula docente",1]
["Mobiliario Escolar","PRODUCTO","Estanteria alta",1]
["Mobiliario Escolar","PRODUCTO","Estanteria baja",1]
["Mobiliario Escolar","PRODUCTO","Estanteria deposito",1]
["Mobiliario Escolar","PRODUCTO","Juguetero",1]
["Mobiliario Escolar","PRODUCTO","Kit canecas grandes",1]
["Mobiliario Escolar","PRODUCTO","Kit canecas medianas para aulas de clase",1]
["Mobiliario Escolar","PRODUCTO","Locker sala docentes x 5",1]
["Mobiliario Escolar","PRODUCTO","Maletero preescolar",1]
["Mobiliario Escolar","PRODUCTO","Mesa comedor",1]
["Mobiliario Escolar","PRODUCTO","Mesa comedor preescolar",1]
["Mobiliario Escolar","PRODUCTO","Mesa arte",1]
["Mobiliario Escolar","PRODUCTO","Mesa tecnologia",1]
["Mobiliario Escolar","PRODUCTO","Mesa para aula de informatica",1]
["Mobiliario Escolar","PRODUCTO","Mesa para laboratorio",1]
["Mobiliario Escolar","PRODUCTO","Mesa plegable",1]
["Mobiliario Escolar","PRODUCTO","Pupitre colaborativo",1]
["Mobiliario Escolar","PRODUCTO","Mesa banco de electricidad y electronica",1]
["Mobiliario Escolar","PRODUCTO","Mesa banca redonda exterior",1]
["Mobiliario Escolar","PRODUCTO","Mesa biblioteca",1]
["Mobiliario Escolar","PRODUCTO","Mesa biblioteca infantil",1]
["Mobiliario Escolar","PRODUCTO","Mesa de juntas 4 puestos con silla",1]
["Mobiliario Escolar","PRODUCTO","Mesa de juntas 6 puestos con silla",1]
["Mobiliario Escolar","PRODUCTO","Mesa de juntas 8 puestos con silla",1]
["Mobiliario Escolar","PRODUCTO","Mesa de juntas 10 puestos con silla",1]
["Mobiliario Escolar","PRODUCTO","Mesa de juntas 12 puestos con silla",1]
["Mobiliario Escolar","PRODUCTO","Silla comedor primera infancia",1]
["Mobiliario Escolar","PRODUCTO","Silla plástica comedor",1]
["Mobiliario Escolar","PRODUCTO","Silla plegable",1]
["Mobiliario Escolar","PRODUCTO","Sala de espera tres puestos",1]
["Mobiliario Escolar","PRODUCTO","Tandem espera 3 puestos",1]
["Mobiliario Escolar","PRODUCTO","Mesa para laboratorio trafico pesado",1]
["Mobiliario Escolar","PRODUCTO","Mesa plástica comedor",1]
["Mobiliario Escolar","PRODUCTO","Mesa internet adultos",1]
["Mobiliario Escolar","PRODUCTO","Casilleros docentes",1]
["Mobiliario Escolar","PRODUCTO","Silla mesa biblioteca infantil",1]
["Mobiliario Escolar","PRODUCTO","Silla ergonomica",1]
["Mobiliario Escolar","PRODUCTO","Silla mesa laboratorio",1]
["Mobiliario Escolar","PRODUCTO","Silla aula tecnologia",1]
["Mobiliario Escolar","PRODUCTO","Silla aula artes",1]
["Mobiliario Escolar","PRODUCTO","Sala de espera pequeña",1]
["Mobiliario Escolar","PRODUCTO","Puff",1]
["Mobiliario Escolar","PRODUCTO","Mobiliario urbano silla parque",1]
["Mobiliario Escolar","PRODUCTO","Perchero preescolar",1]
["Mobiliario Escolar","PRODUCTO","Mueble locutor auditorio",1]
["Mobiliario Escolar","PRODUCTO","Puesto administrativo en l con silla",1]
["Mobiliario Escolar","PRODUCTO","Puesto administrativo sencillo con silla",1]
["Mobiliario Escolar","PRODUCTO","Puesto de trabajo rectoria con silla",1]
["Mobiliario Escolar","PRODUCTO","Puesto administrativo de recepcion y atencion a usuarios tipo counter con silla.",1]
["Mobiliario Escolar","PRODUCTO","Mueble tipo tren ludoteca",1]
["Mobiliario Escolar","PRODUCTO","Mueble tipo escalera almacenamiento - ludoteca",1]
["Mobiliario Escolar","PRODUCTO","Mueble revistero - ludoteca",1]
["Mobiliario Escolar","PRODUCTO","Mueble almaceniamiento con canastillas - ludoteca",1]
["Mobiliario de Cocina","PRODUCTO","Horno combi",1]
["Mobiliario de Cocina","PRODUCTO","Marmita",1]
["Mobiliario de Cocina","PRODUCTO","Sarten basculante",1]
["Mobiliario de Cocina","PRODUCTO","Línea de autoservicio elèctrica - Baño María",1]
["Mobiliario de Cocina","PRODUCTO","Línea de autoservicio - Baño María",1]
["Mobiliario de Cocina","PRODUCTO","Estufa industrial 6 fogones",1]
["Mobiliario de Cocina","PRODUCTO","Estufa industrial 4 fogones a gas natural",1]
["Mobiliario de Cocina","PRODUCTO","Estufa enana a gas natural",1]
["Mobiliario de Cocina","PRODUCTO","Estufa industrial 4 fogones a gas propano",1]
["Mobiliario de Cocina","PRODUCTO","Estufa enana a gas propano",1]
["Mobiliario de Cocina","PRODUCTO","Refrigerador vertical",1]
["Mobiliario de Cocina","PRODUCTO","Congelador vertical",1]
["Mobiliario de Cocina","PRODUCTO","Lava vajilla",1]
["Mobiliario de Cocina","PRODUCTO","Mantenedor de alimentos",1]
["Mobiliario de Cocina","PRODUCTO","Peocesador de alimentos",1]
["Mobiliario de Cocina","PRODUCTO","Pelador de tuberculos",1]
["Mobiliario de Cocina","PRODUCTO","Licuadora indistrial",1]
["Mobiliario de Cocina","PRODUCTO","Báscula dogital con lector de pie",1]
["Mobiliario de Cocina","PRODUCTO","Gramera digital",1]
["Mobiliario de Cocina","PRODUCTO","Carro cubiertero",1]
["Mobiliario de Cocina","PRODUCTO","Carro porta bandejas",1]
["Mobiliario de Cocina","PRODUCTO","Carro porta azafates",1]
["Mobiliario de Cocina","PRODUCTO","Escabiladero",1]

{"sheet":"Minimos","index":8,"n_rows":5,"n_cols":40,"rows_kept":5,"cut":false,"hidden":true,"merged":[]}
["LLAVE","Segmento","Artículo","Región","Item","Detalle","Unidad","DOTAESCOL LTDA","ARCHIVOS FUNCIONALES Y OFICINAS EFICIENTES ZZETA SAS","MANUFACTURAS SUMAPAZ SA","JOSE SADY SUAVITA ROJAS","INVERSIONES GUERFOR SA","INDUSTRIAS CRUZ HERMANOS SA","MUEBLES ROMERO SAS","RAFAEL BEJARANO GUALDRON","GIOVANI RAMIRO PEREZ CHARRIS","INDUSTRIAS METAL MADERA INMEMA LTDA","PROVIDER CIA LIMITADA","MANUFACTURERA DE GRANDES COCINAS MGC Y CIA SAS","JOSE ALBERTO LUCENA MARTINEZ","JAIME ANDRES FIERRO CIFUENTES","Cantidades","VDOTAESCOL LTDA","VARCHIVOS FUNCIONALES Y OFICINAS EFICIENTES ZZETA SAS","VMANUFACTURAS SUMAPAZ SA","VJOSE SADY SUAVITA ROJAS","VINVERSIONES GUERFOR SA","VINDUSTRIAS CRUZ HERMANOS SA","VMUEBLES ROMERO SAS","VRAFAEL BEJARANO GUALDRON","VGIOVANI RAMIRO PEREZ CHARRIS","VINDUSTRIAS METAL MADERA INMEMA LTDA","VPROVIDER CIA LIMITADA","VMANUFACTURERA DE GRANDES COCINAS MGC Y CIA SAS","VJOSE ALBERTO LUCENA MARTINEZ","VJAIME ANDRES FIERRO CIFUENTES","VMinimos","Gravamenes","V+G","Total"]
["Región 2AULA SECUNDARIA","Mobiliario Escolar","AMBIENTE","Región 2","AULA SECUNDARIA","Aulas secundaria:\n40 juegos de puesto de trabajo secundaria, cada juego compuesto por una (1) mesa secundaria y una (1) silla secundaria\nUna (1) mesa docente\nUna (1) silla docente\nUn (1) juego tándem tres (3) canecas\nUn (1) tablero para marcador borrable\nUn (1) mueble de almacenamiento\n","Und",7014243,null,6541750,6970000,17257541,62638181,83834140,5890000,null,7705609.5999999996,9411700,null,null,null,2,{"$f":"$V2*H2","v":14028486},{"$f":"$V2*I2","v":0},13083500,13940000,34515082,125276362,167668280,11780000,0,15411219.199999999,18823400,0,0,0,5890000,0,{"$f":"ROUND(AK2/(1-AL2),2)","v":5890000},{"$f":"ROUND(AM2*V2,2)","v":11780000}]
[null,null,null,null,null,null,null,null,null,null,null,null,null,null,null,null,null,null,null,null,null,null,{"$f":"SUM(W$2:W2)","v":14028486},{"$f":"SUM(X$2:X2)","v":0},{"$f":"SUM(Y$2:Y2)","v":13083500},{"$f":"SUM(Z$2:Z2)","v":13940000},{"$f":"SUM(AA$2:AA2)","v":34515082},{"$f":"SUM(AB$2:AB2)","v":125276362},{"$f":"SUM(AC$2:AC2)","v":167668280},{"$f":"SUM(AD$2:AD2)","v":11780000},{"$f":"SUM(AE$2:AE2)","v":0},{"$f":"SUM(AF$2:AF2)","v":15411219.199999999},{"$f":"SUM(AG$2:AG2)","v":18823400},{"$f":"SUM(AH$2:AH2)","v":0},{"$f":"SUM(AI$2:AI2)","v":0},{"$f":"SUM(AJ$2:AJ2)","v":0},null,null,null,{"$f":"SUM(AN$2:AN2)","v":11780000}]
[null,null,null,null,null,null,null,null,null,null,null,null,null,null,null,null,null,null,null,null,null,null,{"$f":"MIN(IF($W3:$AJ3>0,$W3:$AJ3))","v":11780000},{"$f":"MIN(IF($W3:$AJ3>0,$W3:$AJ3))","v":11780000},{"$f":"MIN(IF($W3:$AJ3>0,$W3:$AJ3))","v":11780000},{"$f":"MIN(IF($W3:$AJ3>0,$W3:$AJ3))","v":11780000},{"$f":"MIN(IF($W3:$AJ3>0,$W3:$AJ3))","v":11780000},{"$f":"MIN(IF($W3:$AJ3>0,$W3:$AJ3))","v":11780000},{"$f":"MIN(IF($W3:$AJ3>0,$W3:$AJ3))","v":11780000},{"$f":"MIN(IF($W3:$AJ3>0,$W3:$AJ3))","v":11780000},{"$f":"MIN(IF($W3:$AJ3>0,$W3:$AJ3))","v":11780000},{"$f":"MIN(IF($W3:$AJ3>0,$W3:$AJ3))","v":11780000},{"$f":"MIN(IF($W3:$AJ3>0,$W3:$AJ3))","v":11780000},{"$f":"MIN(IF($W3:$AJ3>0,$W3:$AJ3))","v":11780000},{"$f":"MIN(IF($W3:$AJ3>0,$W3:$AJ3))","v":11780000},{"$f":"MIN(IF($W3:$AJ3>0,$W3:$AJ3))","v":11780000},null,null,null,{"$f":"ROUND(AN3*19%,2)","v":2238200}]
[null,null,null,null,null,null,null,null,null,null,null,null,null,null,null,null,null,null,null,null,null,null,{"$f":"W3=W4","v":false},{"$f":"X3=X4","v":false},{"$f":"Y3=Y4","v":false},{"$f":"Z3=Z4","v":false},{"$f":"AA3=AA4","v":false},{"$f":"AB3=AB4","v":false},{"$f":"AC3=AC4","v":false},{"$f":"AD3=AD4","v":true},{"$f":"AE3=AE4","v":false},{"$f":"AF3=AF4","v":false},{"$f":"AG3=AG4","v":false},{"$f":"AH3=AH4","v":false},{"$f":"AI3=AI4","v":false},{"$f":"AJ3=AJ4","v":false},null,null,null,{"$f":"AN3+AN4","v":14018200}]

{"sheet":"Consolidado","index":9,"n_rows":495,"n_cols":21,"rows_kept":495,"cut":false,"hidden":true,"merged":[]}
["LLAVE","Segmento","Artículo","Región","Item","Detalle","Unidad","DOTAESCOL LTDA","ARCHIVOS FUNCIONALES Y OFICINAS EFICIENTES ZZETA SAS","MANUFACTURAS SUMAPAZ SA","JOSE SADY SUAVITA ROJAS","INVERSIONES GUERFOR SA","INDUSTRIAS CRUZ HERMANOS SA","MUEBLES ROMERO SAS","RAFAEL BEJARANO GUALDRON","GIOVANI RAMIRO PEREZ CHARRIS","INDUSTRIAS METAL MADERA INMEMA LTDA","PROVIDER CIA LIMITADA","MANUFACTURERA DE GRANDES COCINAS MGC Y CIA SAS","JOSE ALBERTO LUCENA MARTINEZ","JAIME ANDRES FIERRO CIFUENTES"]
[{"$f":"D2&E2","v":"Región 1COMEDOR-COCINA 1"},"Mobiliario de Cocina","AMBIENTE","Región 1","COMEDOR-COCINA 1","Comedor - cocina seis (6) aulas:\n12 mesas de cafetería auditoria cada una con ocho (8) sillas de cafetería auditorio\nUna (1) estufa enana\nUn (1) punto ecológico tres (3) canecas\nUna (1) estufa de tres (3) puestos","Und",15157000,null,null,null,null,13164542,null,14500000,null,14460242]
["Región 2COMEDOR-COCINA 1","Mobiliario de Cocina","AMBIENTE","Región 2","COMEDOR-COCINA 1","Comedor - cocina seis (6) aulas:\n12 mesas de cafetería auditoria cada una con ocho (8) sillas de cafetería auditorio\nUna (1) estufa enana\nUn (1) punto ecológico tres (3) canecas\nUna (1) estufa de tres (3) puestos","Und",15342000,null,null,null,null,13822769,null,14750000,null,14723077]
["Región 3COMEDOR-COCINA 1","Mobiliario de Cocina","AMBIENTE","Región 3","COMEDOR-COCINA 1","Comedor - cocina seis (6) aulas:\n12 mesas de cafetería auditoria cada una con ocho (8) sillas de cafetería auditorio\nUna (1) estufa enana\nUn (1) punto ecológico tres (3) canecas\nUna (1) estufa de tres (3) puestos","Und",18969000,null,null,null,null,14744287,null,15750000,null,15774801]
["Región 1COMEDOR-COCINA 2","Mobiliario de Cocina","AMBIENTE","Región 1","COMEDOR-COCINA 2","Comedor - cocina 12 aulas:\n20 mesas de cafetería auditoria cada una con ocho (8) sillas de cafetería auditorio\nUna (1) estufa enana\nUn (1) punto ecológico tres (3) canecas\nUna (1) estufa de tres (3) puestos","Und",21125000,null,null,null,null,19386860,null,21299000,null,21298082]
["Región 2COMEDOR-COCINA 2","Mobiliario de Cocina","AMBIENTE","Región 2","COMEDOR-COCINA 2","Comedor - cocina 12 aulas:\n20 mesas de cafetería auditoria cada una con ocho (8) sillas de cafetería auditorio\nUna (1) estufa enana\nUn (1) punto ecológico tres (3) canecas\nUna (1) estufa de tres (3) puestos","Und",21430000,null,null,null,null,20356203,null,21700000,null,21685189]
["Región 3COMEDOR-COCINA 2","Mobiliario de Cocina","AMBIENTE","Región 3","COMEDOR-COCINA 2","Comedor - cocina 12 aulas:\n20 mesas de cafetería auditoria cada una con ocho (8) sillas de cafetería auditorio\nUna (1) estufa enana\nUn (1) punto ecológico tres (3) canecas\nUna (1) estufa de tres (3) puestos","Und",27305000,null,null,null,null,21713283,null,23300000,null,23234257]
["Región 1COMEDOR-COCINA 3","Mobiliario de Cocina","AMBIENTE","Región 1","COMEDOR-COCINA 3","Comedor - cocina 24 aulas:\n40 mesas de cafetería auditoria cada una con ocho (8) sillas de cafetería auditorio\nUna (1) estufa enana\nUn (1) punto ecológico tres (3) canecas\nUna (1) estufa de tres (3) puestos","Und",36045000,null,null,null,null,34942655,null,38400000,null,38392682]
["Región 2COMEDOR-COCINA 3","Mobiliario de Cocina","AMBIENTE","Región 2","COMEDOR-COCINA 3","Comedor - cocina 24 aulas:\n40 mesas de cafetería auditoria cada una con ocho (8) sillas de cafetería auditorio\nUna (1) estufa enana\nUn (1) punto ecológico tres (3) canecas\nUna (1) estufa de tres (3) puestos","Und",36650000,null,null,null,null,36689788,null,39000000,null,39090469]
["Región 3COMEDOR-COCINA 3","Mobiliario de Cocina","AMBIENTE","Región 3","COMEDOR-COCINA 3","Comedor - cocina 24 aulas:\n40 mesas de cafetería auditoria cada una con ocho (8) sillas de cafetería auditorio\nUna (1) estufa enana\nUn (1) punto ecológico tres (3) canecas\nUna (1) estufa de tres (3) puestos","Und",48145000,null,null,null,null,39135774,null,41900000,null,41882297]
["Región 1ESTUFA DE TRES (3) PUESTOS PREPARACION ALIMENTOS","Mobiliario de Cocina","PRODUCTO","Región 1","ESTUFA DE TRES (3) PUESTOS PREPARACION ALIMENTOS","Estufa lineal de tres (3) quemadores ","Und",4450000,null,null,null,null,1930000,null,1750000,null,2233000]
["Región 2ESTUFA DE TRES (3) PUESTOS PREPARACION ALIMENTOS","Mobiliario de Cocina","PRODUCTO","Región 2","ESTUFA DE TRES (3) PUESTOS PREPARACION ALIMENTOS","Estufa lineal de tres (3) quemadores ","Und",4450000,null,null,null,null,2026500,null,1800000,null,2273600]
["Región 3ESTUFA DE TRES (3) PUESTOS PREPARACION ALIMENTOS","Mobiliario de Cocina","PRODUCTO","Región 3","ESTUFA DE TRES (3) PUESTOS PREPARACION ALIMENTOS","Estufa lineal de tres (3) quemadores ","Und",4650000,null,null,null,null,2161600,null,2100000,null,2436000]
["Región 1ESTUFA ENANA (1) QUEMADOR PREPARACION ALIMENTOS","Mobiliario de Cocina","PRODUCTO","Región 1","ESTUFA ENANA (1) QUEMADOR PREPARACION ALIMENTOS","Estufa enana de un (1) quemador ","Und",1390000,null,null,null,null,1250000,null,1000000,null,1548800]
["Región 2ESTUFA ENANA (1) QUEMADOR PREPARACION ALIMENTOS","Mobiliario de Cocina","PRODUCTO","Región 2","ESTUFA ENANA (1) QUEMADOR PREPARACION ALIMENTOS","Estufa enana de un (1) quemador ","Und",1390000,null,null,null,null,1312500,null,1100000,null,1576960]
["Región 3ESTUFA ENANA (1) QUEMADOR PREPARACION ALIMENTOS","Mobiliario de Cocina","PRODUCTO","Región 3","ESTUFA ENANA (1) QUEMADOR PREPARACION ALIMENTOS","Estufa enana de un (1) quemador ","Und",1500000,null,null,null,null,1400000,null,1300000,null,1689600]
["Región 1MESÓN CON AZAFATES -  DISTRIBUCION ALIMENTOS EN EL COMEDOR","Mobiliario de Cocina","PRODUCTO","Región 1","MESÓN CON AZAFATES -  DISTRIBUCION ALIMENTOS EN EL COMEDOR","Mesón con azafates ","Und",2795000,null,null,null,null,1325000,null,1700000,null,1713360]
["Región 2MESÓN CON AZAFATES -  DISTRIBUCION ALIMENTOS EN EL COMEDOR","Mobiliario de Cocina","PRODUCTO","Región 2","MESÓN CON AZAFATES -  DISTRIBUCION ALIMENTOS EN EL COMEDOR","Mesón con azafates ","Und",2800000,null,null,null,null,1391250,null,1750000,null,1744512]
["Región 3MESÓN CON AZAFATES -  DISTRIBUCION ALIMENTOS EN EL COMEDOR","Mobiliario de Cocina","PRODUCTO","Región 3","MESÓN CON AZAFATES -  DISTRIBUCION ALIMENTOS EN EL COMEDOR","Mesón con azafates ","Und",3000000,null,null,null,null,1484000,null,1860000,null,1869120]
["Región 1MESÓN CON POCETA LAVAR MENAJE COCINA","Mobiliario de Cocina","PRODUCTO","Región 1","MESÓN CON POCETA LAVAR MENAJE COCINA","Mesón con poceta ","Und",2870000,null,null,null,null,2225000,null,1800000,null,1815715]
["Región 2MESÓN CON POCETA LAVAR MENAJE COCINA","Mobiliario de Cocina","PRODUCTO","Región 2","MESÓN CON POCETA LAVAR MENAJE COCINA","Mesón con poceta ","Und",2880000,null,null,null,null,2336250,null,1840000,null,1848728]
["Región 3MESÓN CON POCETA LAVAR MENAJE COCINA","Mobiliario de Cocina","PRODUCTO","Región 3","MESÓN CON POCETA LAVAR MENAJE COCINA","Mesón con poceta ","Und",3060000,null,null,null,null,2492000,null,1950000,null,1980780]
["Región 1MESÓN DE TRABAJO CORTAR PICAR TRABAJO EN LA COCINA","Mobiliario de Cocina","PRODUCTO","Región 1","MESÓN DE TRABAJO CORTAR PICAR TRABAJO EN LA COCINA","Mesón de trabajo cocina ","Und",1583000,null,null,null,null,1672566,null,1130000,null,1125300]
["Región 2MESÓN DE TRABAJO CORTAR PICAR TRABAJO EN LA COCINA","Mobiliario de Cocina","PRODUCTO","Región 2","MESÓN DE TRABAJO CORTAR PICAR TRABAJO EN LA COCINA","Mesón de trabajo cocina ","Und",1588000,null,null,null,null,1756194,null,1150000,null,1145760]
["Región 3MESÓN DE TRABAJO CORTAR PICAR TRABAJO EN LA COCINA","Mobiliario de Cocina","PRODUCTO","Región 3","MESÓN DE TRABAJO CORTAR PICAR TRABAJO EN LA COCINA","Mesón de trabajo cocina ","Und",1788000,null,null,null,null,1873274,null,1230000,null,1227600]
["Región 1AULA PREESCOLAR","Mobiliario Escolar","AMBIENTE","Región 1","AULA PREESCOLAR","Aula pre-escolar:\n12 juegos de puesto de trabajo preescolar, cada juego compuesto por una (1) mesa preescolar y tres (3) sillas preescolar\nDos (2) mesas auxiliares preescolar\nUna (1) mesa docente\nUna (1) silla docente\nUn (1) juego tándem tres (3) canecas\nUn (1) tablero para marcador borrable\nDos (2) muebles de almacenamiento\n","Und",5693638,null,4995850,6970000,9434387,33137444,41002262,5808100,null,7446566.4000000004,6489200]
["Región 2AULA PREESCOLAR","Mobiliario Escolar","AMBIENTE","Región 2","AULA PREESCOLAR","Aula pre-escolar:\n12 juegos de puesto de trabajo preescolar, cada juego compuesto por una (1) mesa preescolar y tres (3) sillas preescolar\nDos (2) mesas auxiliares preescolar\nUna (1) mesa docente\nUna (1) silla docente\nUn (1) juego tándem tres (3) canecas\nUn (1) tablero para marcador borrable\nDos (2) muebles de almacenamiento\n","Und",5831390,null,5125850,7250000,10885832,34794316,41722312,5890100,null,7581914.5999999996,7194700]
["Región 3AULA PREESCOLAR","Mobiliario Escolar","AMBIENTE","Región 3","AULA PREESCOLAR","Aula pre-escolar:\n12 juegos de puesto de trabajo preescolar, cada juego compuesto por una (1) mesa preescolar y tres (3) sillas preescolar\nDos (2) mesas auxiliares preescolar\nUna (1) mesa docente\nUna (1) silla docente\nUn (1) juego tándem tres (3) canecas\nUn (1) tablero para marcador borrable\nDos (2) muebles de almacenamiento\n","Und",8060328,null,6662850,7830000,20102502,37113937,43162712,6250800,null,8123524.5,12562200]
["Región 1AULA PRIMARIA","Mobiliario Escolar","AMBIENTE","Región 1","AULA PRIMARIA","Aulas primaria:\n40 juegos de puesto de trabajo primaria, cada juego compuesto por una (1) mesa primaria y una (1) silla primaria\nUna (1) mesa docente\nUna (1) silla docente\nUn (1) juego tándem tres (3) canecas\nUn (1) tablero para marcador borrable\nUn (1) mueble de almacenamiento\n","Und",6928103,null,6254550,6300000,14465239,59399261,82154090,5590400,null,7380630.4000000004,8297700]
["Región 2AULA PRIMARIA","Mobiliario Escolar","AMBIENTE","Región 2","AULA PRIMARIA","Aulas primaria:\n40 juegos de puesto de trabajo primaria, cada juego compuesto por una (1) mesa primaria y una (1) silla primaria\nUna (1) mesa docente\nUna (1) silla docente\nUn (1) juego tándem tres (3) canecas\nUn (1) tablero para marcador borrable\nUn (1) mueble de almacenamiento\n","Und",6993043,null,6386550,6560000,16690661,62369224,83554140,5690300,null,7514769.5999999996,9235700]
["Región 3AULA PRIMARIA","Mobiliario Escolar","AMBIENTE","Región 3","AULA PRIMARIA","Aulas primaria:\n40 juegos de puesto de trabajo primaria, cada juego compuesto por una (1) mesa primaria y una (1) silla primaria\nUna (1) mesa docente\nUna (1) silla docente\nUn (1) juego tándem tres (3) canecas\nUn (1) tablero para marcador borrable\nUn (1) mueble de almacenamiento\n","Und",10649468,null,8351550,7080000,30822086,66527173,86354540,6183400,null,8051587.7000000002,15563400]
["Región 1AULA SECUNDARIA","Mobiliario Escolar","AMBIENTE","Región 1","AULA SECUNDARIA","Aulas secundaria:\n40 juegos de puesto de trabajo secundaria, cada juego compuesto por una (1) mesa secundaria y una (1) silla secundaria\nUna (1) mesa docente\nUna (1) silla docente\nUn (1) juego tándem tres (3) canecas\nUn (1) tablero para marcador borrable\nUn (1) mueble de almacenamiento\n","Und",6949343,null,6409750,6690000,14956535,59655411,82434090,5800000,null,7567986.4000000004,8469700]
["Región 2AULA SECUNDARIA","Mobiliario Escolar","AMBIENTE","Región 2","AULA SECUNDARIA","Aulas secundaria:\n40 juegos de puesto de trabajo secundaria, cada juego compuesto por una (1) mesa secundaria y una (1) silla secundaria\nUna (1) mesa docente\nUna (1) silla docente\nUn (1) juego tándem tres (3) canecas\nUn (1) tablero para marcador borrable\nUn (1) mueble de almacenamiento\n","Und",7014243,null,6541750,6970000,17257541,62638181,83834140,5890000,null,7705609.5999999996,9411700]
["Región 3AULA SECUNDARIA","Mobiliario Escolar","AMBIENTE","Región 3","AULA SECUNDARIA","Aulas secundaria:\n40 juegos de puesto de trabajo secundaria, cada juego compuesto por una (1) mesa secundaria y una (1) silla secundaria\nUna (1) mesa docente\nUna (1) silla docente\nUn (1) juego tándem tres (3) canecas\nUn (1) tablero para marcador borrable\nUn (1) mueble de almacenamiento\n","Und",10851988,null,8506750,7520000,31868925,66814060,86634540,6400000,null,8256012.7000000002,15867400]
["Región 1AULA TIM","Mobiliario Escolar","AMBIENTE","Región 1","AULA TIM","Aula TIM para 40 usuarios:\nSiete (7) mesas modulares para tres (3) alumnos\nCuarenta (40) sillas giratorias monoconcha\nSiete (7) mesas modulares con multitoma retráctil para tres (3) alumnos\nUn (1) tándem tres (3) canecas\nUn (1) tablero para marcador borrable\nDos (2) tableros móviles\nOcho (8) muebles de contenidos TIM\nDos (2) muebles de almacenamiento aula TIM","Und",17550842,null,20594300,26250000,32542883,23976503,23276448,22790400,null,29536351,19294700]
["Región 2AULA TIM","Mobiliario Escolar","AMBIENTE","Región 2","AULA TIM","Aula TIM para 40 usuarios:\nSiete (7) mesas modulares para tres (3) alumnos\nCuarenta (40) sillas giratorias monoconcha\nSiete (7) mesas modulares con multitoma retráctil para tres (3) alumnos\nUn (1) tándem tres (3) canecas\nUn (1) tablero para marcador borrable\nDos (2) tableros móviles\nOcho (8) muebles de contenidos TIM\nDos (2) muebles de almacenamiento aula TIM","Und",17875976,null,20951300,27340000,37549481,25175328,23616848,23143500,null,30073364.100000001,22424100]
["Región 3AULA TIM","Mobiliario Escolar","AMBIENTE","Región 3","AULA TIM","Aula TIM para 40 usuarios:\nSiete (7) mesas modulares para tres (3) alumnos\nCuarenta (40) sillas giratorias monoconcha\nSiete (7) mesas modulares con multitoma retráctil para tres (3) alumnos\nUn (1) tándem tres (3) canecas\nUn (1) tablero para marcador borrable\nDos (2) tableros móviles\nOcho (8) muebles de contenidos TIM\nDos (2) muebles de almacenamiento aula TIM","Und",22143606,null,27586300,29510000,69341374,26853683,24297348,24801200,null,32221484.100000001,35240900]
["Región 1BIBLIOTECA BÁSICA 1","Mobiliario Escolar","AMBIENTE","Región 1","BIBLIOTECA BÁSICA 1","Biblioteca básica para 40 usuarios 1:\nDiez (10) estantes\nDiez (10) mesas trapezoidales\nCuatro (4) cubículos dobles\nUn (1) sofá de tres (3) puestos\n30 sillas interlocutoras\n8 sillas giratorias monoconcha\nDos (2) revisteros\nCinco (5) butacos auxiliares\nUn (1) mueble móvil de recolección de libros\nUn (1) tablero móvil\nUn (1) mueble de almacenamiento biblioteca\n","Und",12649027.2308848,null,15741900,13920000,34593636,18027042,17063276,16221187.699999999,null,20088554.199999999,16104100]
["Región 2BIBLIOTECA BÁSICA 1","Mobiliario Escolar","AMBIENTE","Región 2","BIBLIOTECA BÁSICA 1","Biblioteca básica para 40 usuarios 1:\nDiez (10) estantes\nDiez (10) mesas trapezoidales\nCuatro (4) cubículos dobles\nUn (1) sofá de tres (3) puestos\n30 sillas interlocutoras\n8 sillas giratorias monoconcha\nDos (2) revisteros\nCinco (5) butacos auxiliares\nUn (1) mueble móvil de recolección de libros\nUn (1) tablero móvil\nUn (1) mueble de almacenamiento biblioteca\n","Und",12815195.447776366,null,16121900,14500000,39915734,18928394,17428276,16461755.970000001,null,20508358,17542800]
["Región 3BIBLIOTECA BÁSICA 1","Mobiliario Escolar","AMBIENTE","Región 3","BIBLIOTECA BÁSICA 1","Biblioteca básica para 40 usuarios 1:\nDiez (10) estantes\nDiez (10) mesas trapezoidales\nCuatro (4) cubículos dobles\nUn (1) sofá de tres (3) puestos\n30 sillas interlocutoras\n8 sillas giratorias monoconcha\nDos (2) revisteros\nCinco (5) butacos auxiliares\nUn (1) mueble móvil de recolección de libros\nUn (1) tablero móvil\nUn (1) mueble de almacenamiento biblioteca\n","Und",16808691.547090877,null,22361900,15650000,73711055,20190287,18158326,17120730.690000001,null,21973281.199999999,27701900]
["Región 1BIBLIOTECA BÁSICA 2","Mobiliario Escolar","AMBIENTE","Región 1","BIBLIOTECA BÁSICA 2","Biblioteca básica para 40 usuarios 2:\nDiez (10) estantes\nOcho (8) mesas rectangulares\nCuatro (4) cubículos dobles\nUn (1) sofá de tres (3) puestos\n32 sillas interlocutoras\n8 sillas giratorias monoconcha\nDos (2) revisteros\nCinco (5) butacos auxiliares\nUn (1) mueble móvil de recolección de libros\nUn (1) tablero móvil\nUn (1) mueble de almacenamiento biblioteca","Und",13675986.978428073,null,16727600,14430000,35869955,19311491,17869276,16387192.369999999,null,20579140.399999999,16425300]
["Región 2BIBLIOTECA BÁSICA 2","Mobiliario Escolar","AMBIENTE","Región 2","BIBLIOTECA BÁSICA 2","Biblioteca básica para 40 usuarios 2:\nDiez (10) estantes\nOcho (8) mesas rectangulares\nCuatro (4) cubículos dobles\nUn (1) sofá de tres (3) puestos\n32 sillas interlocutoras\n8 sillas giratorias monoconcha\nDos (2) revisteros\nCinco (5) butacos auxiliares\nUn (1) mueble móvil de recolección de libros\nUn (1) tablero móvil\nUn (1) mueble de almacenamiento biblioteca","Und",13880930.578429651,null,17109600,15030000,41388410,20277065,18234276,16631196.380000001,null,21007849.199999999,17972200]
["Región 3BIBLIOTECA BÁSICA 2","Mobiliario Escolar","AMBIENTE","Región 3","BIBLIOTECA BÁSICA 2","Biblioteca básica para 40 usuarios 2:\nDiez (10) estantes\nOcho (8) mesas rectangulares\nCuatro (4) cubículos dobles\nUn (1) sofá de tres (3) puestos\n32 sillas interlocutoras\n8 sillas giratorias monoconcha\nDos (2) revisteros\nCinco (5) butacos auxiliares\nUn (1) mueble móvil de recolección de libros\nUn (1) tablero móvil\nUn (1) mueble de almacenamiento biblioteca","Und",18192641.004034594,null,23501600,16220000,76430596,21628870,18964326,17566457.02,null,22508462.600000001,28484100]
["Región 1BILINGÜISMO","Mobiliario Escolar","AMBIENTE","Región 1","BILINGÜISMO","Bilinguismo para 40 usuarios:\nSeis (6) estantes de bilingüismo\nUn (1) revistero\nDos (2) tableros móviles \nUn (1) mueble de almacenamiento bilingüismo \nUn (1) tándem de canecas\n24 sillas giratorias monoconcha con niveladores\nOcho (8) mesas modulares\nTres (3) biombos divisorios\nUn (1) tablero marcador borrable\nDos (2) mesas de trabajo bilingüismo\nOcho (8) sillas interlocutoras\nDos (2) sofás de tres (3) puestos\nUn (1) tablero móvil","Und",14544218.348753901,null,19483900,20260000,42119450,21293415,23983156,18421932.82,null,24678475.899999999,18701900]
["Región 2BILINGÜISMO","Mobiliario Escolar","AMBIENTE","Región 2","BILINGÜISMO","Bilinguismo para 40 usuarios:\nSeis (6) estantes de bilingüismo\nUn (1) revistero\nDos (2) tableros móviles \nUn (1) mueble de almacenamiento bilingüismo \nUn (1) tándem de canecas\n24 sillas giratorias monoconcha con niveladores\nOcho (8) mesas modulares\nTres (3) biombos divisorios\nUn (1) tablero marcador borrable\nDos (2) mesas de trabajo bilingüismo\nOcho (8) sillas interlocutoras\nDos (2) sofás de tres (3) puestos\nUn (1) tablero móvil","Und",14751329.686112948,null,19853900,21100000,48599366,22358086,24283556,18983189.84,null,25127157.899999999,20073800]
["Región 3BILINGÜISMO","Mobiliario Escolar","AMBIENTE","Región 3","BILINGÜISMO","Bilinguismo para 40 usuarios:\nSeis (6) estantes de bilingüismo\nUn (1) revistero\nDos (2) tableros móviles \nUn (1) mueble de almacenamiento bilingüismo \nUn (1) tándem de canecas\n24 sillas giratorias monoconcha con niveladores\nOcho (8) mesas modulares\nTres (3) biombos divisorios\nUn (1) tablero marcador borrable\nDos (2) mesas de trabajo bilingüismo\nOcho (8) sillas interlocutoras\nDos (2) sofás de tres (3) puestos\nUn (1) tablero móvil","Und",18450464.496961612,null,25699900,22770000,89746828,23848625,24884056,20295547.960000001,null,26921963.899999999,30953500]
["Región 1LABORATORIO CIENCIA ARTES PRIMARIA","Mobiliario Escolar","AMBIENTE","Región 1","LABORATORIO CIENCIA ARTES PRIMARIA","Laboratorio de ciencias para 40 usuarios:\nDiez (10) mesones de laboratorio ciencias primaria\nCuarenta (40) butacos para laboratorio ciencias primaria\nTres (3) estantes de depósito\nTres (3) muebles móviles laboratorios\nUn (1) tándem de canecas\nDos (2) muebles de almacenamiento laboratorio\nUn (1) tablero para marcador borrable","Und",12456144,null,9858850,8078000,30525056,10564715,15428000,12380900,null,16028981.800000001,9467800]
["Región 2LABORATORIO CIENCIA ARTES PRIMARIA","Mobiliario Escolar","AMBIENTE","Región 2","LABORATORIO CIENCIA ARTES PRIMARIA","Laboratorio de ciencias para 40 usuarios:\nDiez (10) mesones de laboratorio ciencias primaria\nCuarenta (40) butacos para laboratorio ciencias primaria\nTres (3) estantes de depósito\nTres (3) muebles móviles laboratorios\nUn (1) tándem de canecas\nDos (2) muebles de almacenamiento laboratorio\nUn (1) tablero para marcador borrable","Und",12734320,null,10146850,8420000,35221218,11092951,15729000,12600000,null,16320419.699999999,10376600]
["Región 3LABORATORIO CIENCIA ARTES PRIMARIA","Mobiliario Escolar","AMBIENTE","Región 3","LABORATORIO CIENCIA ARTES PRIMARIA","Laboratorio de ciencias para 40 usuarios:\nDiez (10) mesones de laboratorio ciencias primaria\nCuarenta (40) butacos para laboratorio ciencias primaria\nTres (3) estantes de depósito\nTres (3) muebles móviles laboratorios\nUn (1) tándem de canecas\nDos (2) muebles de almacenamiento laboratorio\nUn (1) tablero para marcador borrable","Und",16275752,null,15187850,9080000,65041849,11832481,16332000,13390900,null,17486184.300000001,21092700]
["Región 1LABORATORIO INTEGRADO FÍSICA QUÍMICA SECUNDARIA","Mobiliario Escolar","AMBIENTE","Región 1","LABORATORIO INTEGRADO FÍSICA QUÍMICA SECUNDARIA","Laboratorio integrado de física-química para 40 usuarios:\nDiez (10) mesones de laboratorio física y química\nCuarenta (40) butacos para laboratorio física y química\nTres (3) estantes de depósito\nTres (3) muebles móviles\nUn (1) tándem de canecas\nDos (2) muebles de almacenamiento laboratorio física y química\nUn (1) tablero para marcador borrable","Und",12496474,null,9955850,8610000,30713660,10749262,15839000,12450400,null,16127846.800000001,9614800]
["Región 2LABORATORIO INTEGRADO FÍSICA QUÍMICA SECUNDARIA","Mobiliario Escolar","AMBIENTE","Región 2","LABORATORIO INTEGRADO FÍSICA QUÍMICA SECUNDARIA","Laboratorio integrado de física-química para 40 usuarios:\nDiez (10) mesones de laboratorio física y química\nCuarenta (40) butacos para laboratorio física y química\nTres (3) estantes de depósito\nTres (3) muebles móviles\nUn (1) tándem de canecas\nDos (2) muebles de almacenamiento laboratorio física y química\nUn (1) tablero para marcador borrable","Und",12774640,null,10243850,9000000,35438838,11286725,16142000,12670500,null,16421104.699999999,10621600]
["Región 3LABORATORIO INTEGRADO FÍSICA QUÍMICA SECUNDARIA","Mobiliario Escolar","AMBIENTE","Región 3","LABORATORIO INTEGRADO FÍSICA QUÍMICA SECUNDARIA","Laboratorio integrado de física-química para 40 usuarios:\nDiez (10) mesones de laboratorio física y química\nCuarenta (40) butacos para laboratorio física y química\nTres (3) estantes de depósito\nTres (3) muebles móviles\nUn (1) tándem de canecas\nDos (2) muebles de almacenamiento laboratorio física y química\nUn (1) tablero para marcador borrable","Und",16316072,null,15284850,9680000,65443721,12038174,16747000,13602100,null,17594032.300000001,21552700]
["Región 1MANTENIMIENTO","Mobiliario Escolar","AMBIENTE","Región 1","MANTENIMIENTO","Mantenimiento:\nUn (1) estante de depósito\nUn (1) butaco mantenimiento\nUn (1) mesón de trabajo mantenimiento","Und",602242,null,482960,619000,1247255,766221,668381,784300,null,926004.3,1580200]
["Región 2MANTENIMIENTO","Mobiliario Escolar","AMBIENTE","Región 2","MANTENIMIENTO","Mantenimiento:\nUn (1) estante de depósito\nUn (1) butaco mantenimiento\nUn (1) mesón de trabajo mantenimiento","Und",603724,null,496960,644000,1439141,804532,688381,796500,null,942841.9,1824900]
["Región 3MANTENIMIENTO","Mobiliario Escolar","AMBIENTE","Región 3","MANTENIMIENTO","Mantenimiento:\nUn (1) estante de depósito\nUn (1) butaco mantenimiento\nUn (1) mesón de trabajo mantenimiento","Und",993650,null,633960,695000,2657613,858167,733381,812300,null,1010187.1,3870800]
["Región 1OFICINA ADMINISTRATIVA","Mobiliario Escolar","AMBIENTE","Región 1","OFICINA ADMINISTRATIVA","Oficina administrativa:\nUn (1) puesto de oficina abierta\nUna (1) silla operativa con contacto permanente\nUn (1) archivador pequeño\nUna (1) papelera","Und",1515222.000344513,null,1319300,1235000,3010631,1534457,1609695,1940500,null,2551174.6,4007400]
["Región 2OFICINA ADMINISTRATIVA","Mobiliario Escolar","AMBIENTE","Región 2","OFICINA ADMINISTRATIVA","Oficina administrativa:\nUn (1) puesto de oficina abierta\nUna (1) silla operativa con contacto permanente\nUn (1) archivador pequeño\nUna (1) papelera","Und",1541958.4282516786,null,1346300,1286000,3473805,1611180,1634695,1990400,null,2597558.6,4391900]
["Región 3OFICINA ADMINISTRATIVA","Mobiliario Escolar","AMBIENTE","Región 3","OFICINA ADMINISTRATIVA","Oficina administrativa:\nUn (1) puesto de oficina abierta\nUna (1) silla operativa con contacto permanente\nUn (1) archivador pequeño\nUna (1) papelera","Und",1803095.0822471289,null,1501300,1388000,6414960,1718592,1684695,2160500,null,2783098.5,7551400]
["Región 1PUESTO RECTORÍA","Mobiliario Escolar","AMBIENTE","Región 1","PUESTO RECTORÍA","Puesto rectoría:\nUn (1) escritorio atención rectoría\nUna (1) silla de contacto permanente con brazos\nUn (1) archivador pequeño\nUn (1) mueble para pc rectoría\nUna (1) mesa de juntas\nSeis (6) sillas interlocutoras rectoría","Und",2761845,null,3413700,2224000,4578019,2401540,2536840,2902500,null,3693125.8,2283200]
["Región 2PUESTO RECTORÍA","Mobiliario Escolar","AMBIENTE","Región 2","PUESTO RECTORÍA","Puesto rectoría:\nUn (1) escritorio atención rectoría\nUna (1) silla de contacto permanente con brazos\nUn (1) archivador pequeño\nUn (1) mueble para pc rectoría\nUna (1) mesa de juntas\nSeis (6) sillas interlocutoras rectoría","Und",2797183,null,3484700,2316000,5282330,2521617,2596840,2950400,null,3760277.3,2515800]
["Región 3PUESTO RECTORÍA","Mobiliario Escolar","AMBIENTE","Región 3","PUESTO RECTORÍA","Puesto rectoría:\nUn (1) escritorio atención rectoría\nUna (1) silla de contacto permanente con brazos\nUn (1) archivador pequeño\nUn (1) mueble para pc rectoría\nUna (1) mesa de juntas\nSeis (6) sillas interlocutoras rectoría","Und",3389100,null,4230700,2500000,9754702,2689725,2721840,3102700,null,4028867.7,4679500]
["Región 1SALA DOCENTE 1","Mobiliario Escolar","AMBIENTE","Región 1","SALA DOCENTE 1","Sala docentes seis (6) aulas:\nUna (1) mesa de juntas docentes\nSeis (6) sillas interlocutoras\nUn (1) tablero móvil\nUn (1) cuerpo de diez (10) casilleros docentes\nDos (2) cubículos dobles\nCuatro (4) sillas giratorias monoconcha\nDos (2) papeleras","Und",3371065.2860475788,null,3732000,4000000,6784371,4296133,26337968,3983849.52,null,4972910.8,5318600]
["Región 2SALA DOCENTE 1","Mobiliario Escolar","AMBIENTE","Región 2","SALA DOCENTE 1","Sala docentes seis (6) aulas:\nUna (1) mesa de juntas docentes\nSeis (6) sillas interlocutoras\nUn (1) tablero móvil\nUn (1) cuerpo de diez (10) casilleros docentes\nDos (2) cubículos dobles\nCuatro (4) sillas giratorias monoconcha\nDos (2) papeleras","Und",3385603.83,null,3792000,4170000,7828121,4510940,26848468,4059090.05,null,5090624.5,5661400]
["Región 3SALA DOCENTE 1","Mobiliario Escolar","AMBIENTE","Región 3","SALA DOCENTE 1","Sala docentes seis (6) aulas:\nUna (1) mesa de juntas docentes\nSeis (6) sillas interlocutoras\nUn (1) tablero móvil\nUn (1) cuerpo de diez (10) casilleros docentes\nDos (2) cubículos dobles\nCuatro (4) sillas giratorias monoconcha\nDos (2) papeleras","Und",4377889,null,4734000,4500000,14455929,4811669,27869468,4270190.26,null,5454242.2999999998,9079700]
["Región 1SALA DOCENTE 2","Mobiliario Escolar","AMBIENTE","Región 1","SALA DOCENTE 2","Sala docente 12 aulas:\nDos (2) mesas de juntas docentes\nDoce (12) sillas interlocutoras\nDos (2) tableros móviles\nDos (2) cuerpos de diez (10) casilleros docentes\nCuatro (4) cubículos dobles\nOcho (8) sillas giratorias monoconcha\nCuatro (4) papeleras","Und",6742130.5720951576,null,7464000,8000000,13568742,8592266,105350372,7754514.7599999998,null,9945821.5999999996,10565800]
[{"$f":"D66&E66","v":"Región 2SALA DOCENTE 2"},"Mobiliario Escolar","AMBIENTE","Región 2","SALA DOCENTE 2","Sala docente 12 aulas:\nDos (2) mesas de juntas docentes\nDoce (12) sillas interlocutoras\nDos (2) tableros móviles\nDos (2) cuerpos de diez (10) casilleros docentes\nCuatro (4) cubículos dobles\nOcho (8) sillas giratorias monoconcha\nCuatro (4) papeleras","Und",6771207.6600000001,null,7584000,8340000,15656241,9021879,107390872,7986335.9699999997,null,10181249,11249400]
["Región 3SALA DOCENTE 2","Mobiliario Escolar","AMBIENTE","Región 3","SALA DOCENTE 2","Sala docente 12 aulas:\nDos (2) mesas de juntas docentes\nDoce (12) sillas interlocutoras\nDos (2) tableros móviles\nDos (2) cuerpos de diez (10) casilleros docentes\nCuatro (4) cubículos dobles\nOcho (8) sillas giratorias monoconcha\nCuatro (4) papeleras","Und",8755778,null,9218000,9000000,28911858,9623338,111471872,8540380.5199999996,null,10908484.6,18086000]
["Región 1ALMACENAMIENTO AULA TIM","Mobiliario Escolar","CONJUNTO","Región 1","ALMACENAMIENTO AULA TIM","Mueble móvil de contenidos aula TIM (4)","Und",2524480,null,2370400,916000,5102124,3573836,2540000,3161600,null,3921580,3596000]
["Región 2ALMACENAMIENTO AULA TIM","Mobiliario Escolar","CONJUNTO","Región 2","ALMACENAMIENTO AULA TIM","Mueble móvil de contenidos aula TIM (4)","Und",2576000,null,2410400,952000,5887068,3752528,2560000,3261600,null,3992877.2,3660000]
["Región 3ALMACENAMIENTO AULA TIM","Mobiliario Escolar","CONJUNTO","Región 3","ALMACENAMIENTO AULA TIM","Mueble móvil de contenidos aula TIM (4)","Und",3451840,null,3650400,1028000,10871452,4002696,2600000,3425600,null,4278086.8,4480000]
["Región 1ALMACENAMIENTO BILINGÜISMO","Mobiliario Escolar","CONJUNTO","Región 1","ALMACENAMIENTO BILINGÜISMO","Módulo de biblioteca de 1,30 mts. (6)\nRevistero (1)\nMueble de almacenamiento biblioteca (1)","Und",3834116,null,6188000,3179000,8994573,5673539,6444400,5075882.88,null,5909698.5999999996,3350800]
["Región 2ALMACENAMIENTO BILINGÜISMO","Mobiliario Escolar","CONJUNTO","Región 2","ALMACENAMIENTO BILINGÜISMO","Módulo de biblioteca de 1,30 mts. (6)\nRevistero (1)\nMueble de almacenamiento biblioteca (1)","Und",3902816,null,6335000,3308000,10378356,5957218,6484400,5129543.5199999996,null,6017142.2999999998,3711600]
["Región 3ALMACENAMIENTO BILINGÜISMO","Mobiliario Escolar","CONJUNTO","Región 3","ALMACENAMIENTO BILINGÜISMO","Módulo de biblioteca de 1,30 mts. (6)\nRevistero (1)\nMueble de almacenamiento biblioteca (1)","Und",5285296,null,9170000,3570000,19165363,6354367,6564400,5513034.1600000001,null,6446944.4000000004,5371800]
["Región 1CUBÍCULOS DOBLES DE TRABAJO SALA DOCENTE","Mobiliario Escolar","CONJUNTO","Región 1","CUBÍCULOS DOBLES DE TRABAJO SALA DOCENTE","Silla neumática giratoria mono concha sala docente (2)\nCubículo doble de trabajo sala docente (1)","Und",579609,null,709700,1011000,1538515,911894,958869,971500,null,905866.6,725500]
["Región 2CUBÍCULOS DOBLES DE TRABAJO SALA DOCENTE","Mobiliario Escolar","CONJUNTO","Región 2","CUBÍCULOS DOBLES DE TRABAJO SALA DOCENTE","Silla neumática giratoria mono concha sala docente (2)\nCubículo doble de trabajo sala docente (1)","Und",586053,null,723700,1052000,1775210,957489,973869,1031200,null,944695.1,779600]
["Región 3CUBÍCULOS DOBLES DE TRABAJO SALA DOCENTE","Mobiliario Escolar","CONJUNTO","Región 3","CUBÍCULOS DOBLES DE TRABAJO SALA DOCENTE","Silla neumática giratoria mono concha sala docente (2)\nCubículo doble de trabajo sala docente (1)","Und",736056,null,848700,1137000,3278221,1021323,1003869,1088200,null,1018360.5,1382300]
["Región 1DESCANSO SALA DOCENTE (OPCIONAL)","Mobiliario Escolar","CONJUNTO","Región 1","DESCANSO SALA DOCENTE (OPCIONAL)","Sofá de dos (2) puestos (1)\nMesa auxiliar sala docente (1)","Und",1265508,null,1390300,947000,4501030,1179228,1978627,1026600,null,1040637.7,1785400]
["Región 2DESCANSO SALA DOCENTE (OPCIONAL)","Mobiliario Escolar","CONJUNTO","Región 2","DESCANSO SALA DOCENTE (OPCIONAL)","Sofá de dos (2) puestos (1)\nMesa auxiliar sala docente (1)","Und",1271764,null,1418300,986000,5193497,1238189,1988627,1038400,null,1059557.3999999999,1894600]
["Región 3DESCANSO SALA DOCENTE (OPCIONAL)","Mobiliario Escolar","CONJUNTO","Región 3","DESCANSO SALA DOCENTE (OPCIONAL)","Sofá de dos (2) puestos (1)\nMesa auxiliar sala docente (1)","Und",1427248,null,1848300,1064000,9590657,1320735,2008627,1118300,null,1135241.3999999999,2299000]
["Región 1EXHIBICIÓN","Mobiliario Escolar","CONJUNTO","Región 1","EXHIBICIÓN","Revistero (2)","Und",624692,null,715000,384000,1173146,894600,1328800,541000,null,698354.8,701400]
["Región 2EXHIBICIÓN","Mobiliario Escolar","CONJUNTO","Región 2","EXHIBICIÓN","Revistero (2)","Und",637236,null,729000,400000,1353630,939330,1338800,549800,null,711050.6,789200]
["Región 3EXHIBICIÓN","Mobiliario Escolar","CONJUNTO","Región 3","EXHIBICIÓN","Revistero (2)","Und",777728,null,1079000,430000,2499704,1001952,1358800,596000,null,761841.6,1224000]
["Región 1PUESTO DE COMEDOR","Mobiliario Escolar","CONJUNTO","Región 1","PUESTO DE COMEDOR","Silla cafeteria - auditorio (8)\nMesa de cafetería plegable (1)","Und",877791,null,712300,1227000,2310152,1606154,932000,915200,null,1111149,779400]
["Región 2PUESTO DE COMEDOR","Mobiliario Escolar","CONJUNTO","Región 2","PUESTO DE COMEDOR","Silla cafeteria - auditorio (8)\nMesa de cafetería plegable (1)","Und",896621,null,721300,1281000,2665563,1686457,977000,924300,null,1131343.2,833100]
["Región 3PUESTO DE COMEDOR","Mobiliario Escolar","CONJUNTO","Región 3","PUESTO DE COMEDOR","Silla cafeteria - auditorio (8)\nMesa de cafetería plegable (1)","Und",1256675,null,879300,1381000,4922400,1798886,1067000,988800,null,1212161.6000000001,1279800]
["Región 1PUESTO DE TRABAJO ADMINISTRATIVO","Mobiliario Escolar","CONJUNTO","Región 1","PUESTO DE TRABAJO ADMINISTRATIVO","Puesto de trabajo estándar (1)\nSilla neumática administrativa (1)\nArchivador (1)","Und",1580423,null,1359500,2118000,3332732,1846340,1928695,2016100,null,2574736.75,1443500]
["Región 2PUESTO DE TRABAJO ADMINISTRATIVO","Mobiliario Escolar","CONJUNTO","Región 2","PUESTO DE TRABAJO ADMINISTRATIVO","Puesto de trabajo estándar (1)\nSilla neumática administrativa (1)\nArchivador (1)","Und",1605813,null,1384500,2206000,3845460,1938658,1943695,2101450,null,2621549.1,1566700]
["Región 3PUESTO DE TRABAJO ADMINISTRATIVO","Mobiliario Escolar","CONJUNTO","Región 3","PUESTO DE TRABAJO ADMINISTRATIVO","Puesto de trabajo estándar (1)\nSilla neumática administrativa (1)\nArchivador (1)","Und",1832836,null,1549500,2381000,7101283,2067902,1973695,2258400,null,2808803.1,2315200]
["Región 1PUESTO DE TRABAJO AULA PREESCOLAR","Mobiliario Escolar","CONJUNTO","Región 1","PUESTO DE TRABAJO AULA PREESCOLAR","Silla puesto de trabajo preescolar (12)\nMesa puesto de trabajo preescolar (4)\nMesa auxiliar puesto de trabajo preescolar (1)","Und",1252066,null,1101900,982000,2132921,1239844,1519000,1288000,null,1598821.9,1228200]
["Región 2PUESTO DE TRABAJO AULA PREESCOLAR","Mobiliario Escolar","CONJUNTO","Región 2","PUESTO DE TRABAJO AULA PREESCOLAR","Silla puesto de trabajo preescolar (12)\nMesa puesto de trabajo preescolar (4)\nMesa auxiliar puesto de trabajo preescolar (1)","Und",1281442,null,1123900,1031000,2461068,1301838,1604000,1313300,null,1627876.9,1428900]
["Región 3PUESTO DE TRABAJO AULA PREESCOLAR","Mobiliario Escolar","CONJUNTO","Región 3","PUESTO DE TRABAJO AULA PREESCOLAR","Silla puesto de trabajo preescolar (12)\nMesa puesto de trabajo preescolar (4)\nMesa auxiliar puesto de trabajo preescolar (1)","Und",1681292,null,1361900,1104000,4544762,1388624,1774000,1455600,null,1744168.4,2952100]
["Región 1PUESTO DE TRABAJO AULA PRIMARIA","Mobiliario Escolar","CONJUNTO","Región 1","PUESTO DE TRABAJO AULA PRIMARIA","Silla puesto de trabajo primaria (1)\nMesa puesto de trabajo básica primaria (1)","Und",137510,null,125010,130000,306984,130099,188000,130300,null,136138.6,144700]
["Región 2PUESTO DE TRABAJO AULA PRIMARIA","Mobiliario Escolar","CONJUNTO","Región 2","PUESTO DE TRABAJO AULA PRIMARIA","Silla puesto de trabajo primaria (1)\nMesa puesto de trabajo básica primaria (1)","Und",138232,null,127310,136000,354212,136604,198000,149900,null,138612.5,165400]
["Región 3PUESTO DE TRABAJO AULA PRIMARIA","Mobiliario Escolar","CONJUNTO","Región 3","PUESTO DE TRABAJO AULA PRIMARIA","Silla puesto de trabajo primaria (1)\nMesa puesto de trabajo básica primaria (1)","Und",211032,null,164310,146000,654110,145711,218000,169900,null,148514.6,303500]
["Región 1PUESTO DE TRABAJO AULA SECUNDARIA","Mobiliario Escolar","CONJUNTO","Región 1","PUESTO DE TRABAJO AULA SECUNDARIA","Silla puesto de trabajo secundaria (1)\nMesa puesto de trabajo básica secundaria (1)","Und",138041,null,128890,139000,319266,136503,195000,133300,null,140822.5,149000]
["Región 2PUESTO DE TRABAJO AULA SECUNDARIA","Mobiliario Escolar","CONJUNTO","Región 2","PUESTO DE TRABAJO AULA SECUNDARIA","Silla puesto de trabajo secundaria (1)\nMesa puesto de trabajo básica secundaria (1)","Und",138762,null,131190,146000,368384,143329,205000,143100,null,143383.5,169800]
["Región 3PUESTO DE TRABAJO AULA SECUNDARIA","Mobiliario Escolar","CONJUNTO","Región 3","PUESTO DE TRABAJO AULA SECUNDARIA","Silla puesto de trabajo secundaria (1)\nMesa puesto de trabajo básica secundaria (1)","Und",216095,null,168190,157000,680282,152883,225000,168700,null,153624.9,311100]
["Región 1PUESTO DE TRABAJO AULA TIM","Mobiliario Escolar","CONJUNTO","Región 1","PUESTO DE TRABAJO AULA TIM","Mesa modular aula TIM (1)\nMesa modular TIM con multitoma retráctil (1)\nSilla neumática giratoria mono concha aula TIM (6)","Und",1476301,null,2008300,2742000,2660844,3341660,2178764,2337900,null,2364648.7999999998,1785800]
["Región 2PUESTO DE TRABAJO AULA TIM","Mobiliario Escolar","CONJUNTO","Región 2","PUESTO DE TRABAJO AULA TIM","Mesa modular aula TIM (1)\nMesa modular TIM con multitoma retráctil (1)\nSilla neumática giratoria mono concha aula TIM (6)","Und",1501856,null,2040300,2859000,3070205,3508743,2218764,2483600,null,2407695.9,1912800]
["Región 3PUESTO DE TRABAJO AULA TIM","Mobiliario Escolar","CONJUNTO","Región 3","PUESTO DE TRABAJO AULA TIM","Mesa modular aula TIM (1)\nMesa modular TIM con multitoma retráctil (1)\nSilla neumática giratoria mono concha aula TIM (6)","Und",1706072,null,2510300,3084000,5669648,3742663,2298764,2734000,null,2579618.2000000002,3458300]
["Región 1PUESTO DE TRABAJO BIBLIOTECA OPCIÓN 1 - PREDETERMINADA","Mobiliario Escolar","CONJUNTO","Región 1","PUESTO DE TRABAJO BIBLIOTECA OPCIÓN 1 - PREDETERMINADA","Silla interlocutora biblioteca - bilinguismo (4)\nMesa de trabajo consulta lectura biblioteca (1)","Und",542440,null,451650,337000,849959,660207,605000,445600,null,567258.9,485400]
["Región 2PUESTO DE TRABAJO BIBLIOTECA OPCIÓN 1 - PREDETERMINADA","Mobiliario Escolar","CONJUNTO","Región 2","PUESTO DE TRABAJO BIBLIOTECA OPCIÓN 1 - PREDETERMINADA","Silla interlocutora biblioteca - bilinguismo (4)\nMesa de trabajo consulta lectura biblioteca (1)","Und",551264,null,457650,352000,980722,693214,630000,454000,null,577567.9,537300]
["Región 3PUESTO DE TRABAJO BIBLIOTECA OPCIÓN 1 - PREDETERMINADA","Mobiliario Escolar","CONJUNTO","Región 3","PUESTO DE TRABAJO BIBLIOTECA OPCIÓN 1 - PREDETERMINADA","Silla interlocutora biblioteca - bilinguismo (4)\nMesa de trabajo consulta lectura biblioteca (1)","Und",742447,null,551650,379000,1811063,739428,680000,484300,null,618827.30000000005,884400]
["Región 1PUESTO DE TRABAJO BIBLIOTECA OPCIÓN 2","Mobiliario Escolar","CONJUNTO","Región 1","PUESTO DE TRABAJO BIBLIOTECA OPCIÓN 2","Silla interlocutora biblioteca - bilinguismo (3)\nMesa de consulta trapezoidal biblioteca (1)","Und",330884,null,268350,219000,552335,414909,509000,305100,null,404748.5,356200]
["Región 2PUESTO DE TRABAJO BIBLIOTECA OPCIÓN 2","Mobiliario Escolar","CONJUNTO","Región 2","PUESTO DE TRABAJO BIBLIOTECA OPCIÓN 2","Silla interlocutora biblioteca - bilinguismo (3)\nMesa de consulta trapezoidal biblioteca (1)","Und",334051,null,277350,229000,637310,435652,529000,311700,null,412105.2,386900]
["Región 3PUESTO DE TRABAJO BIBLIOTECA OPCIÓN 2","Mobiliario Escolar","CONJUNTO","Región 3","PUESTO DE TRABAJO BIBLIOTECA OPCIÓN 2","Silla interlocutora biblioteca - bilinguismo (3)\nMesa de consulta trapezoidal biblioteca (1)","Und",455066,null,332350,246000,1176896,464696,569000,333900,null,441543.7,825800]
["Región 1PUESTO DE TRABAJO BILINGÜISMO 1","Mobiliario Escolar","CONJUNTO","Región 1","PUESTO DE TRABAJO BILINGÜISMO 1","Mesa modular circunferencias (8)\nSilla neumática giratoria mono concha (24)","Und",5341400,null,7257200,10104000,8879376,8597944,8395056,8515200,null,8903557.5999999996,6240800]
["Región 2PUESTO DE TRABAJO BILINGÜISMO 1","Mobiliario Escolar","CONJUNTO","Región 2","PUESTO DE TRABAJO BILINGÜISMO 1","Mesa modular circunferencias (8)\nSilla neumática giratoria mono concha (24)","Und",5441824,null,7385200,10512000,10245432,9027840,8555056,9058400,null,9065436.8000000007,6736800]
["Región 3PUESTO DE TRABAJO BILINGÜISMO 1","Mobiliario Escolar","CONJUNTO","Región 3","PUESTO DE TRABAJO BILINGÜISMO 1","Mesa modular circunferencias (8)\nSilla neumática giratoria mono concha (24)","Und",6337320,null,9265200,11360000,18919912,9629712,8875056,9872800,null,9712974.4000000004,12784800]
["Región 1PUESTO DE TRABAJO BILINGÜISMO 2","Mobiliario Escolar","CONJUNTO","Región 1","PUESTO DE TRABAJO BILINGÜISMO 2","Silla interlocutora biblioteca - bilinguismo (4)\nMesa de trabajo bilinguismo (1)","Und",542440,null,451650,337000,849959,610672,605000,446400,null,567258.9,485400]
["Región 2PUESTO DE TRABAJO BILINGÜISMO 2","Mobiliario Escolar","CONJUNTO","Región 2","PUESTO DE TRABAJO BILINGÜISMO 2","Silla interlocutora biblioteca - bilinguismo (4)\nMesa de trabajo bilinguismo (1)","Und",551264,null,457650,352000,980722,641203,630000,451700,null,577567.9,537300]
["Región 3PUESTO DE TRABAJO BILINGÜISMO 2","Mobiliario Escolar","CONJUNTO","Región 3","PUESTO DE TRABAJO BILINGÜISMO 2","Silla interlocutora biblioteca - bilinguismo (4)\nMesa de trabajo bilinguismo (1)","Und",754551,null,551650,379000,1811063,683950,680000,485800,null,605827.30000000005,884400]
["Región 1PUESTO DE TRABAJO BILINGÜISMO 3","Mobiliario Escolar","CONJUNTO","Región 1","PUESTO DE TRABAJO BILINGÜISMO 3","Sofá de tres (3) puestos (2)","Und",2290000,null,3592000,4356000,13600002,3560000,6450000,2218600,null,2168512,6250800]
["Región 2PUESTO DE TRABAJO BILINGÜISMO 3","Mobiliario Escolar","CONJUNTO","Región 2","PUESTO DE TRABAJO BILINGÜISMO 3","Sofá de tres (3) puestos (2)","Und",2300000,null,3632000,4536000,15692310,3738000,6460000,2225000,null,2207940,6500000]
["Región 3PUESTO DE TRABAJO BILINGÜISMO 3","Mobiliario Escolar","CONJUNTO","Región 3","PUESTO DE TRABAJO BILINGÜISMO 3","Sofá de tres (3) puestos (2)","Und",2540000,null,4392000,4896000,28978466,3987200,6480000,2380200,null,2365650,7700000]
["Región 1PUESTO DE TRABAJO DOCENTE","Mobiliario Escolar","CONJUNTO","Región 1","PUESTO DE TRABAJO DOCENTE","Silla puesto de trabajo docente (1)\nMesa puesto docente (1)","Und",280148,null,256450,186000,448455,642711,380851,232000,null,308053.2,216500]
["Región 2PUESTO DE TRABAJO DOCENTE","Mobiliario Escolar","CONJUNTO","Región 2","PUESTO DE TRABAJO DOCENTE","Silla puesto de trabajo docente (1)\nMesa puesto docente (1)","Und",294531,null,268950,194000,517448,674847,390851,252000,null,313653.59999999998,236000]
["Región 3PUESTO DE TRABAJO DOCENTE","Mobiliario Escolar","CONJUNTO","Región 3","PUESTO DE TRABAJO DOCENTE","Silla puesto de trabajo docente (1)\nMesa puesto docente (1)","Und",416244,null,317950,209000,955553,719836,410851,281700,null,336057.8,414600]
["Región 1PUESTO DE TRABAJO LABORATORIO CIENCIAS PRIMARIA","Mobiliario Escolar","CONJUNTO","Región 1","PUESTO DE TRABAJO LABORATORIO CIENCIAS PRIMARIA","Mesón laboratorio primaria (10)\nButaco laboratorio primaria ciencias y artes (40)\nMueble móvil laboratorio (3)","Und",9906822,null,7710250,7447000,26745576,8347675,12425000,8625700,null,12072086,7315700]
["Región 2PUESTO DE TRABAJO LABORATORIO CIENCIAS PRIMARIA","Mobiliario Escolar","CONJUNTO","Región 2","PUESTO DE TRABAJO LABORATORIO CIENCIAS PRIMARIA","Mesón laboratorio primaria (10)\nButaco laboratorio primaria ciencias y artes (40)\nMueble móvil laboratorio (3)","Und",10138952,null,7945250,7734000,30860303,8765041,12690000,8874200,null,12795693.300000001,8116600]
["Región 3PUESTO DE TRABAJO LABORATORIO CIENCIAS PRIMARIA","Mobiliario Escolar","CONJUNTO","Región 3","PUESTO DE TRABAJO LABORATORIO CIENCIAS PRIMARIA","Mesón laboratorio primaria (10)\nButaco laboratorio primaria ciencias y artes (40)\nMueble móvil laboratorio (3)","Und",12069640,null,12045250,8341000,56988642,9349382,13220000,9736000,null,13185456.699999999,17871000]
["Región 1PUESTO DE TRABAJO LABORATORIO CIENCIAS PRIMARIA 1","Mobiliario Escolar","CONJUNTO","Región 1","PUESTO DE TRABAJO LABORATORIO CIENCIAS PRIMARIA 1","Mesón laboratorio primaria (1)\nButaco laboratorio primaria ciencias y artes (4)\n","Und",938007,null,698140,676000,2537163,708097,1052000,769600,null,1084374.2,666200]
["Región 2PUESTO DE TRABAJO LABORATORIO CIENCIAS PRIMARIA 1","Mobiliario Escolar","CONJUNTO","Región 2","PUESTO DE TRABAJO LABORATORIO CIENCIAS PRIMARIA 1","Mesón laboratorio primaria (1)\nButaco laboratorio primaria ciencias y artes (4)\n","Und",959096,null,720140,702000,2927498,743500,1077000,792500,null,1154501.3999999999,740500]
["Región 3PUESTO DE TRABAJO LABORATORIO CIENCIAS PRIMARIA 1","Mobiliario Escolar","CONJUNTO","Región 3","PUESTO DE TRABAJO LABORATORIO CIENCIAS PRIMARIA 1","Mesón laboratorio primaria (1)\nButaco laboratorio primaria ciencias y artes (4)\n","Und",1126252,null,1112140,757000,5406108,793067,1127000,870700,null,1184544.3999999999,1659000]
["Región 1PUESTO DE TRABAJO LABORATORIO INTEGRADO FÍSICA - QUÍMICA","Mobiliario Escolar","CONJUNTO","Región 1","PUESTO DE TRABAJO LABORATORIO INTEGRADO FÍSICA - QUÍMICA","Mesón laboratorio integrado secundaria física - química (10)\nButaco de laboratorio integrado física-química secundaria (40)\nMueble móvil laboratorio (3)","Und",9903400,null,7807250,7787000,32633786,10938165,12835000,8704700,null,12170951,7462700]
["Región 2PUESTO DE TRABAJO LABORATORIO INTEGRADO FÍSICA - QUÍMICA","Mobiliario Escolar","CONJUNTO","Región 2","PUESTO DE TRABAJO LABORATORIO INTEGRADO FÍSICA - QUÍMICA","Mesón laboratorio integrado secundaria física - química (10)\nButaco de laboratorio integrado física-química secundaria (40)\nMueble móvil laboratorio (3)","Und",10114280,null,8042250,8284000,37654383,11485051,13100000,8959200,null,12392264.300000001,8361600]
["Región 3PUESTO DE TRABAJO LABORATORIO INTEGRADO FÍSICA - QUÍMICA","Mobiliario Escolar","CONJUNTO","Región 3","PUESTO DE TRABAJO LABORATORIO INTEGRADO FÍSICA - QUÍMICA","Mesón laboratorio integrado secundaria física - química (10)\nButaco de laboratorio integrado física-química secundaria (40)\nMueble móvil laboratorio (3)","Und",11992840,null,12142250,8941000,69535082,12250712,13630000,9742000,null,13277418.699999999,18331000]
["Región 1PUESTO DE TRABAJO LABORATORIO INTEGRADO FÍSICA - QUÍMICA 1","Mobiliario Escolar","CONJUNTO","Región 1","PUESTO DE TRABAJO LABORATORIO INTEGRADO FÍSICA - QUÍMICA 1","Mesón laboratorio integrado secundaria física - química (1)\nButaco de laboratorio integrado física-química secundaria (4)","Und",942040,null,707840,710000,3125984,967146,1093000,777500,null,1094260.7,680900]
["Región 2PUESTO DE TRABAJO LABORATORIO INTEGRADO FÍSICA - QUÍMICA 1","Mobiliario Escolar","CONJUNTO","Región 2","PUESTO DE TRABAJO LABORATORIO INTEGRADO FÍSICA - QUÍMICA 1","Mesón laboratorio integrado secundaria física - química (1)\nButaco de laboratorio integrado física-química secundaria (4)","Und",963128,null,729840,757000,3606906,1015501,1118000,801000,null,1114158.5,765000]
[{"$f":"D130&E130","v":"Región 3PUESTO DE TRABAJO LABORATORIO INTEGRADO FÍSICA - QUÍMICA 1"},"Mobiliario Escolar","CONJUNTO","Región 3","PUESTO DE TRABAJO LABORATORIO INTEGRADO FÍSICA - QUÍMICA 1","Mesón laboratorio integrado secundaria física - química (1)\nButaco de laboratorio integrado física-química secundaria (4)","Und",1130284,null,1121840,817000,6660752,1083200,1168000,871300,null,1193740.6000000001,1705000]
["Región 1PUESTO DE TRABAJO MANTENIMIENTO","Mobiliario Escolar","CONJUNTO","Región 1","PUESTO DE TRABAJO MANTENIMIENTO","Banco de trabajo mantenimiento (1)\nEstantería de depósito (1)\nButaco banco de trabajo mantenimiento (1)","Und",602242,null,473960,620000,1247255,766221,663381,704400,null,926004.3,593600]
["Región 2PUESTO DE TRABAJO MANTENIMIENTO","Mobiliario Escolar","CONJUNTO","Región 2","PUESTO DE TRABAJO MANTENIMIENTO","Banco de trabajo mantenimiento (1)\nEstantería de depósito (1)\nButaco banco de trabajo mantenimiento (1)","Und",603724,null,483960,645000,1439141,804532,678381,714200,null,942841.9,671800]
["Región 3PUESTO DE TRABAJO MANTENIMIENTO","Mobiliario Escolar","CONJUNTO","Región 3","PUESTO DE TRABAJO MANTENIMIENTO","Banco de trabajo mantenimiento (1)\nEstantería de depósito (1)\nButaco banco de trabajo mantenimiento (1)","Und",993650,null,593960,696000,2657613,858166,708381,775900,null,1010187.1,1429000]
["Región 1PUESTO DE TRABAJO PREESCOLAR","Mobiliario Escolar","CONJUNTO","Región 1","PUESTO DE TRABAJO PREESCOLAR","Una (1) mesa preescolar y tres (3) sillas preescolar","Und",276613,null,237100,218000,470630,256269,331000,279300,null,346049.6,271400]
["Región 2PUESTO DE TRABAJO PREESCOLAR","Mobiliario Escolar","CONJUNTO","Región 2","PUESTO DE TRABAJO PREESCOLAR","Una (1) mesa preescolar y tres (3) sillas preescolar","Und",283643,null,242100,229000,543036,269083,351000,285200,null,352337.7,316300]
["Región 3PUESTO DE TRABAJO PREESCOLAR","Mobiliario Escolar","CONJUNTO","Región 3","PUESTO DE TRABAJO PREESCOLAR","Una (1) mesa preescolar y tres (3) sillas preescolar","Und",371344,null,294100,245000,1002804,287021,391000,316100,null,377508.3,673200]
["Región 1PUESTO DE TRABAJO RECEPCIÓN","Mobiliario Escolar","CONJUNTO","Región 1","PUESTO DE TRABAJO RECEPCIÓN","Mesa de atención recepción (1)\nSilla interlocutora recepción (1)\nMódulo de cuatro (4) casilleros para servicios generales (1)","Und",658501,null,564950,826000,1275251,686446,953750,803056,null,932349.6,684400]
["Región 2PUESTO DE TRABAJO RECEPCIÓN","Mobiliario Escolar","CONJUNTO","Región 2","PUESTO DE TRABAJO RECEPCIÓN","Mesa de atención recepción (1)\nSilla interlocutora recepción (1)\nMódulo de cuatro (4) casilleros para servicios generales (1)","Und",668574,null,574950,860000,1471444,720767,968750,817226.32,null,949300.3,795600]
["Región 3PUESTO DE TRABAJO RECEPCIÓN","Mobiliario Escolar","CONJUNTO","Región 3","PUESTO DE TRABAJO RECEPCIÓN","Mesa de atención recepción (1)\nSilla interlocutora recepción (1)\nMódulo de cuatro (4) casilleros para servicios generales (1)","Und",990669,null,803950,928000,2717264,768819,998750,871146.72,null,1017101.8,1716100]
["Región 1PUESTO DE TRABAJO RECTORÍA","Mobiliario Escolar","CONJUNTO","Región 1","PUESTO DE TRABAJO RECTORÍA","Mesa de atención rectoría (1)\nSilla neumática rectoría con descansa brazos (1)\nArchivador (1)\nMesa para cómputo rector (1)\nMesa de juntas rectoría (1)\nSilla interlocutora rectoría (6)","Und",3012462,null,3282000,2627000,4578019,2439407,2531840,2861571,null,3609198.1,2528200]
["Región 2PUESTO DE TRABAJO RECTORÍA","Mobiliario Escolar","CONJUNTO","Región 2","PUESTO DE TRABAJO RECTORÍA","Mesa de atención rectoría (1)\nSilla neumática rectoría con descansa brazos (1)\nArchivador (1)\nMesa para cómputo rector (1)\nMesa de juntas rectoría (1)\nSilla interlocutora rectoría (6)","Und",3048773,null,3338000,2737000,5282330,2561380,2586840,2926700,null,3674823.5,2788500]
["Región 3PUESTO DE TRABAJO RECTORÍA","Mobiliario Escolar","CONJUNTO","Región 3","PUESTO DE TRABAJO RECTORÍA","Mesa de atención rectoría (1)\nSilla neumática rectoría con descansa brazos (1)\nArchivador (1)\nMesa para cómputo rector (1)\nMesa de juntas rectoría (1)\nSilla interlocutora rectoría (6)","Und",3714611,null,4094000,2953000,9754700,2732137,2696840,3194400,null,3937310.1,5199500]
["Región 1SALA DE JUNTAS  SALA DOCENTE","Mobiliario Escolar","CONJUNTO","Región 1","SALA DE JUNTAS  SALA DOCENTE","Silla interlocutora sala docente (6)\nMesa de juntas sala docente (1)","Und",1314140,null,1391300,955000,1755058,1284375,1165840,1311000,null,1544390.9,761300]
["Región 2SALA DE JUNTAS  SALA DOCENTE","Mobiliario Escolar","CONJUNTO","Región 2","SALA DE JUNTAS  SALA DOCENTE","Silla interlocutora sala docente (6)\nMesa de juntas sala docente (1)","Und",1295085,null,1407300,993000,2025066,1348595,1200840,1340000,null,1572473.5,1115500]
["Región 3SALA DE JUNTAS  SALA DOCENTE","Mobiliario Escolar","CONJUNTO","Región 3","SALA DE JUNTAS  SALA DOCENTE","Silla interlocutora sala docente (6)\nMesa de juntas sala docente (1)","Und",1596805,null,1778300,1075000,3739620,1438501,1270840,1429600,null,1684793.5,2609500]
["Región 1TRABAJO BIPERSONAL BIBLIOTECA","Mobiliario Escolar","CONJUNTO","Región 1","TRABAJO BIPERSONAL BIBLIOTECA","Silla neumática giratoria mono concha (2)\nCubículo doble de trabajo biblioteca (1)","Und",584764,null,709700,1011000,1538515,911894,958869,971500,null,920092.6,725500]
["Región 2TRABAJO BIPERSONAL BIBLIOTECA","Mobiliario Escolar","CONJUNTO","Región 2","TRABAJO BIPERSONAL BIBLIOTECA","Silla neumática giratoria mono concha (2)\nCubículo doble de trabajo biblioteca (1)","Und",591209,null,723700,1052000,1775210,957489,973869,1031200,null,950469.1,779600]
["Región 3TRABAJO BIPERSONAL BIBLIOTECA","Mobiliario Escolar","CONJUNTO","Región 3","TRABAJO BIPERSONAL BIBLIOTECA","Silla neumática giratoria mono concha (2)\nCubículo doble de trabajo biblioteca (1)","Und",741212,null,848700,1137000,3278221,1021323,1003869,1088200,null,1018360.5,1382300]
["Región 1ARCHIVADOR GRANDE - DOCUMENTACION","Mobiliario Escolar","PRODUCTO","Región 1","ARCHIVADOR GRANDE - DOCUMENTACION","Archivador grande administrativo","Und",604010,null,505000,605000,835042,634256,593000,446100,null,846003.6,405100]
["Región 2ARCHIVADOR GRANDE - DOCUMENTACION","Mobiliario Escolar","PRODUCTO","Región 2","ARCHIVADOR GRANDE - DOCUMENTACION","Archivador grande administrativo","Und",611467,null,515000,630000,963510,665969,598000,495050,null,861385.2,436200]
["Región 3ARCHIVADOR GRANDE - DOCUMENTACION","Mobiliario Escolar","PRODUCTO","Región 3","ARCHIVADOR GRANDE - DOCUMENTACION","Archivador grande administrativo","Und",730778,null,585000,680000,1779282,710367,608000,554400,null,922912.9,683000]
["Región 1ARCHIVADOR REGIÓN 1 UNIDAD","Mobiliario Escolar","PRODUCTO","Región 1","ARCHIVADOR REGIÓN 1 UNIDAD","ARCHIVADOR REGIÓN 1 UNIDAD","Und",353393,null,315700,303000,433256,267575,229000,292600,null,450368.1,245000]
["Región 2ARCHIVADOR REGIÓN 1 UNIDAD","Mobiliario Escolar","PRODUCTO","Región 2","ARCHIVADOR REGIÓN 1 UNIDAD","ARCHIVADOR REGIÓN 1 UNIDAD","Und",359877,null,320700,315000,499911,280954,234000,314800,null,458556.8,272700]
["Región 3ARCHIVADOR REGIÓN 1 UNIDAD","Mobiliario Escolar","PRODUCTO","Región 3","ARCHIVADOR REGIÓN 1 UNIDAD","ARCHIVADOR REGIÓN 1 UNIDAD","Und",405267,null,380700,340000,923169,299684,244000,363500,null,491310.3,520000]
["Región 1BANCO DE TRABAJO MANTENIMIENTO ","Mobiliario Escolar","PRODUCTO","Región 1","BANCO DE TRABAJO MANTENIMIENTO ","BANCO DE TRABAJO MANTENIMIENTO ","Und",310704,null,228250,388000,790797,402064,357381,280000,null,360340.5,273900]
["Región 2BANCO DE TRABAJO MANTENIMIENTO ","Mobiliario Escolar","PRODUCTO","Región 2","BANCO DE TRABAJO MANTENIMIENTO ","BANCO DE TRABAJO MANTENIMIENTO ","Und",310704,null,233250,404000,912458,422167,362381,285000,null,366892.5,318900]
["Región 3BANCO DE TRABAJO MANTENIMIENTO ","Mobiliario Escolar","PRODUCTO","Región 3","BANCO DE TRABAJO MANTENIMIENTO ","BANCO DE TRABAJO MANTENIMIENTO ","Und",429428,null,278250,436000,1685005,450311,372381,303000,null,393099.2,687000]
["Región 1BIOMBO ","Mobiliario Escolar","PRODUCTO","Región 1","BIOMBO ","BIOMBO ","Und",359072,null,592000,242000,2097256,802409,968200,680300,null,759819.95,255000]
["Región 2BIOMBO ","Mobiliario Escolar","PRODUCTO","Región 2","BIOMBO ","BIOMBO ","Und",359072,null,597000,252000,2419911,842530,973200,692500,null,773634.9,287900]
["Región 3BIOMBO ","Mobiliario Escolar","PRODUCTO","Región 3","BIOMBO ","BIOMBO ","Und",520889,null,612000,272000,4468769,898698,983200,715100,null,828894.7,482500]
["Región 1BUTACO AUXILIAR BIBLIOTECA ","Mobiliario Escolar","PRODUCTO","Región 1","BUTACO AUXILIAR BIBLIOTECA ","BUTACO AUXILIAR BIBLIOTECA ","Und",30934,null,66050,28000,106605,114823,77000,38900,null,63286.6,56600]
["Región 2BUTACO AUXILIAR BIBLIOTECA ","Mobiliario Escolar","PRODUCTO","Región 2","BUTACO AUXILIAR BIBLIOTECA ","BUTACO AUXILIAR BIBLIOTECA ","Und",30934,null,68050,29000,123006,120564,82000,40100,null,64437.1,76500]
["Región 3BUTACO AUXILIAR BIBLIOTECA ","Mobiliario Escolar","PRODUCTO","Región 3","BUTACO AUXILIAR BIBLIOTECA ","BUTACO AUXILIAR BIBLIOTECA ","Und",45729,null,93050,31000,227151,128602,92000,44900,null,69040.399999999994,225500]
["Región 1BUTACO BANCO DE TRABAJO MANTENIMIENTO ","Mobiliario Escolar","PRODUCTO","Región 1","BUTACO BANCO DE TRABAJO MANTENIMIENTO ","BUTACO BANCO DE TRABAJO MANTENIMIENTO ","Und",48300,null,55410,37000,142490,60149,77000,76500,null,98922.2,70700]
["Región 2BUTACO BANCO DE TRABAJO MANTENIMIENTO ","Mobiliario Escolar","PRODUCTO","Región 2","BUTACO BANCO DE TRABAJO MANTENIMIENTO ","BUTACO BANCO DE TRABAJO MANTENIMIENTO ","Und",48300,null,58410,38000,164412,63156,82000,77900,null,100721.4,85600]
["Región 3BUTACO BANCO DE TRABAJO MANTENIMIENTO ","Mobiliario Escolar","PRODUCTO","Región 3","BUTACO BANCO DE TRABAJO MANTENIMIENTO ","BUTACO BANCO DE TRABAJO MANTENIMIENTO ","Und",69000,null,81410,41000,303614,67366,92000,83100,null,107915.6,273500]
["Región 1BUTACO DE LABORATORIO INTEGRADO FÍSICA Y QUÍMICA","Mobiliario Escolar","PRODUCTO","Región 1","BUTACO DE LABORATORIO INTEGRADO FÍSICA Y QUÍMICA","Butaco de laboratorio integrado física y química","Und",48300,null,57350,37000,142490,60149,77000,64800,null,98922.2,70700]
["Región 2BUTACO DE LABORATORIO INTEGRADO FÍSICA Y QUÍMICA","Mobiliario Escolar","PRODUCTO","Región 2","BUTACO DE LABORATORIO INTEGRADO FÍSICA Y QUÍMICA","Butaco de laboratorio integrado física y química","Und",48300,null,60350,38000,164412,63156,82000,65900,null,100721.4,85600]
["Región 3BUTACO DE LABORATORIO INTEGRADO FÍSICA Y QUÍMICA","Mobiliario Escolar","PRODUCTO","Región 3","BUTACO DE LABORATORIO INTEGRADO FÍSICA Y QUÍMICA","Butaco de laboratorio integrado física y química","Und",69000,null,83350,41000,303614,67366,92000,72700,null,107915.6,273500]
["Región 1BUTACO LABORATORIO PRIMARIA CIENCIAS Y ARTES ","Mobiliario Escolar","PRODUCTO","Región 1","BUTACO LABORATORIO PRIMARIA CIENCIAS Y ARTES ","BUTACO LABORATORIO PRIMARIA CIENCIAS Y ARTES ","Und",48300,null,55410,37000,139200,57188,77000,64800,null,97808.1,68400]
["Región 2BUTACO LABORATORIO PRIMARIA CIENCIAS Y ARTES ","Mobiliario Escolar","PRODUCTO","Región 2","BUTACO LABORATORIO PRIMARIA CIENCIAS Y ARTES ","BUTACO LABORATORIO PRIMARIA CIENCIAS Y ARTES ","Und",48300,null,58410,38000,160616,60047,82000,65900,null,99586.5,80900]
["Región 3BUTACO LABORATORIO PRIMARIA CIENCIAS Y ARTES ","Mobiliario Escolar","PRODUCTO","Región 3","BUTACO LABORATORIO PRIMARIA CIENCIAS Y ARTES ","BUTACO LABORATORIO PRIMARIA CIENCIAS Y ARTES ","Und",69000,null,81410,41000,296603,64050,92000,72700,null,106700.1,263500]
["Región 1CASILLERO ALUMNOS ALMACENAR OBJETOS ALUMNOS","Mobiliario Escolar","PRODUCTO","Región 1","CASILLERO ALUMNOS ALMACENAR OBJETOS ALUMNOS","Módulo 10 casilleros alumnos","Und",379665,null,476500,530000,920660,558071,726000,455288.4,null,493808.9,331400]
["Región 2CASILLERO ALUMNOS ALMACENAR OBJETOS ALUMNOS","Mobiliario Escolar","PRODUCTO","Región 2","CASILLERO ALUMNOS ALMACENAR OBJETOS ALUMNOS","Módulo 10 casilleros alumnos","Und",393471,null,486500,552000,1062300,585975,731000,457334.64,null,502786.7,344400]
["Región 3CASILLERO ALUMNOS ALMACENAR OBJETOS ALUMNOS","Mobiliario Escolar","PRODUCTO","Región 3","CASILLERO ALUMNOS ALMACENAR OBJETOS ALUMNOS","Módulo 10 casilleros alumnos","Und",614367,null,786500,596000,1961714,625040,741000,472340.4,null,538700.5,433600]
["Región 1CUBÍCULO DOBLE DE TRABAJO BIBLIOTECA ","Mobiliario Escolar","PRODUCTO","Región 1","CUBÍCULO DOBLE DE TRABAJO BIBLIOTECA ","CUBÍCULO DOBLE DE TRABAJO BIBLIOTECA ","Und",364764,null,383600,371000,1069345,483738,588869,590500,null,602526.6,380900]
["Región 2CUBÍCULO DOBLE DE TRABAJO BIBLIOTECA ","Mobiliario Escolar","PRODUCTO","Región 2","CUBÍCULO DOBLE DE TRABAJO BIBLIOTECA ","CUBÍCULO DOBLE DE TRABAJO BIBLIOTECA ","Und",371209,null,393600,386000,1233860,507925,593869,610400,null,627129.1,403000]
["Región 3CUBÍCULO DOBLE DE TRABAJO BIBLIOTECA ","Mobiliario Escolar","PRODUCTO","Región 3","CUBÍCULO DOBLE DE TRABAJO BIBLIOTECA ","CUBÍCULO DOBLE DE TRABAJO BIBLIOTECA ","Und",487212,null,468600,417000,2278527,541787,603869,620400,null,671924.5,603900]
["Región 1CUBÍCULO DOBLE DE TRABAJO SALA DOCENTE ","Mobiliario Escolar","PRODUCTO","Región 1","CUBÍCULO DOBLE DE TRABAJO SALA DOCENTE ","CUBÍCULO DOBLE DE TRABAJO SALA DOCENTE ","Und",359609,null,383600,371000,1069345,483738,588869,590500,null,602526.6,380900]
["Región 2CUBÍCULO DOBLE DE TRABAJO SALA DOCENTE ","Mobiliario Escolar","PRODUCTO","Región 2","CUBÍCULO DOBLE DE TRABAJO SALA DOCENTE ","CUBÍCULO DOBLE DE TRABAJO SALA DOCENTE ","Und",366053,null,393600,386000,1233860,507925,593869,610400,null,627129.1,403000]
["Región 3CUBÍCULO DOBLE DE TRABAJO SALA DOCENTE ","Mobiliario Escolar","PRODUCTO","Región 3","CUBÍCULO DOBLE DE TRABAJO SALA DOCENTE ","CUBÍCULO DOBLE DE TRABAJO SALA DOCENTE ","Und",482056,null,468600,417000,2278527,541787,603869,620400,null,671924.5,603900]
["Región 1CUERPO CASILLERO DOCENTE ALMACENAMIENTO OBJETOS DOCENTES","Mobiliario Escolar","PRODUCTO","Región 1","CUERPO CASILLERO DOCENTE ALMACENAMIENTO OBJETOS DOCENTES","Módulo 10 casilleros docentes","Und",510822,null,530000,726000,1157530,558071,726000,631833.43999999994,null,683473.7,460700]
["Región 2CUERPO CASILLERO DOCENTE ALMACENAMIENTO OBJETOS DOCENTES","Mobiliario Escolar","PRODUCTO","Región 2","CUERPO CASILLERO DOCENTE ALMACENAMIENTO OBJETOS DOCENTES","Módulo 10 casilleros docentes","Und",524628,null,540000,756000,1335612,585975,731000,647634.96,null,695900.4,485300]
["Región 3CUERPO CASILLERO DOCENTE ALMACENAMIENTO OBJETOS DOCENTES","Mobiliario Escolar","PRODUCTO","Región 3","CUERPO CASILLERO DOCENTE ALMACENAMIENTO OBJETOS DOCENTES","Módulo 10 casilleros docentes","Und",842166,null,835000,816000,2466430,625040,741000,662186,null,745607.2,686200]
["Región 1ESTANTE DE BIBLIOTECA 1,30 MTS ADMINISTRACION Y RESGUARDO DE TEXTOS EN LA BIBLIOTECA","Mobiliario Escolar","PRODUCTO","Región 1","ESTANTE DE BIBLIOTECA 1,30 MTS ADMINISTRACION Y RESGUARDO DE TEXTOS EN LA BIBLIOTECA","Módulo de biblioteca de 1,30 mts.","Und",475108,null,874500,399000,1217980,750912,825000,683330.48,null,771813.9,427100]
["Región 2ESTANTE DE BIBLIOTECA 1,30 MTS ADMINISTRACION Y RESGUARDO DE TEXTOS EN LA BIBLIOTECA","Mobiliario Escolar","PRODUCTO","Región 2","ESTANTE DE BIBLIOTECA 1,30 MTS ADMINISTRACION Y RESGUARDO DE TEXTOS EN LA BIBLIOTECA","Módulo de biblioteca de 1,30 mts.","Und",483027,null,894500,415000,1405362,788458,830000,689923.92,null,785846.1,477500]
["Región 3ESTANTE DE BIBLIOTECA 1,30 MTS ADMINISTRACION Y RESGUARDO DE TEXTOS EN LA BIBLIOTECA","Mobiliario Escolar","PRODUCTO","Región 3","ESTANTE DE BIBLIOTECA 1,30 MTS ADMINISTRACION Y RESGUARDO DE TEXTOS EN LA BIBLIOTECA","Módulo de biblioteca de 1,30 mts.","Und",644563,null,1274500,448000,2595235,841022,840000,739147.36,null,841978.8,703000]
["Región 1ESTANTE DE DEPOSITO","Mobiliario Escolar","PRODUCTO","Región 1","ESTANTE DE DEPOSITO","Estantería de depósito","Und",243238,null,190300,195000,313968,304008,229000,347900,null,466741.6,249000]
["Región 2ESTANTE DE DEPOSITO","Mobiliario Escolar","PRODUCTO","Región 2","ESTANTE DE DEPOSITO","Estantería de depósito","Und",244720,null,192300,203000,362271,319209,234000,351300,null,475228,267300]
["Región 3ESTANTE DE DEPOSITO","Mobiliario Escolar","PRODUCTO","Región 3","ESTANTE DE DEPOSITO","Estantería de depósito","Und",495222,null,234300,219000,668994,340489,244000,389800,null,509172.3,468500]
["Región 1MALETERO - SEGURIDAD EN LA BIBLIOTECA","Mobiliario Escolar","PRODUCTO","Región 1","MALETERO - SEGURIDAD EN LA BIBLIOTECA","Maletero biblioteca","Und",274218,null,306000,218000,467228,289662,775000,255400,null,319004.40000000002,157300]
["Región 2MALETERO - SEGURIDAD EN LA BIBLIOTECA","Mobiliario Escolar","PRODUCTO","Región 2","MALETERO - SEGURIDAD EN LA BIBLIOTECA","Maletero biblioteca","Und",281629,null,311000,227000,539109,304145,780000,259900,null,324803.7,168500]
["Región 3MALETERO - SEGURIDAD EN LA BIBLIOTECA","Mobiliario Escolar","PRODUCTO","Región 3","MALETERO - SEGURIDAD EN LA BIBLIOTECA","Maletero biblioteca","Und",398727,null,371000,245000,995555,324422,790000,277700,null,348004.8,213400]
[{"$f":"D194&E194","v":"Región 1MESA AUXILIAR PUESTO DE TRABAJO PREESCOLAR"},"Mobiliario Escolar","PRODUCTO","Región 1","MESA AUXILIAR PUESTO DE TRABAJO PREESCOLAR","MESA AUXILIAR PUESTO DE TRABAJO PREESCOLAR","Und",145614,null,153500,110000,250401,214768,195000,170800,null,214623.5,142600]
["Región 2MESA AUXILIAR PUESTO DE TRABAJO PREESCOLAR","Mobiliario Escolar","PRODUCTO","Región 2","MESA AUXILIAR PUESTO DE TRABAJO PREESCOLAR","MESA AUXILIAR PUESTO DE TRABAJO PREESCOLAR","Und",146870,null,155500,115000,288924,225506,200000,172500,null,218526.1,163700]
["Región 3MESA AUXILIAR PUESTO DE TRABAJO PREESCOLAR","Mobiliario Escolar","PRODUCTO","Región 3","MESA AUXILIAR PUESTO DE TRABAJO PREESCOLAR","MESA AUXILIAR PUESTO DE TRABAJO PREESCOLAR","Und",195916,null,185500,124000,533546,240540,210000,191200,null,234135.2,259300]
["Región 1MESA AUXILIAR SALA DOCENTE ","Mobiliario Escolar","PRODUCTO","Región 1","MESA AUXILIAR SALA DOCENTE ","MESA AUXILIAR SALA DOCENTE ","Und",120508,null,196300,75000,211030,163228,173627,129600,null,158715.70000000001,89400]
["Región 2MESA AUXILIAR SALA DOCENTE ","Mobiliario Escolar","PRODUCTO","Región 2","MESA AUXILIAR SALA DOCENTE ","MESA AUXILIAR SALA DOCENTE ","Und",121764,null,204300,78000,243497,171389,178627,132500,null,161600.4,138000]
["Región 3MESA AUXILIAR SALA DOCENTE ","Mobiliario Escolar","PRODUCTO","Región 3","MESA AUXILIAR SALA DOCENTE ","MESA AUXILIAR SALA DOCENTE ","Und",157248,null,284300,84000,449657,182815,188627,137800,null,173144.4,339000]
["Región 1MESA DE ATENCIÓN RECEPCIÓN ","Mobiliario Escolar","PRODUCTO","Región 1","MESA DE ATENCIÓN RECEPCIÓN ","MESA DE ATENCIÓN RECEPCIÓN ","Und",296362,null,316000,424000,587061,288323,355000,420800,null,547042.6,322200]
["Región 2MESA DE ATENCIÓN RECEPCIÓN ","Mobiliario Escolar","PRODUCTO","Región 2","MESA DE ATENCIÓN RECEPCIÓN ","MESA DE ATENCIÓN RECEPCIÓN ","Und",298895,null,321000,441000,677378,302739,360000,428900,null,556988.9,370400]
["Región 3MESA DE ATENCIÓN RECEPCIÓN ","Mobiliario Escolar","PRODUCTO","Región 3","MESA DE ATENCIÓN RECEPCIÓN ","MESA DE ATENCIÓN RECEPCIÓN ","Und",427921,null,421000,476000,1250890,322922,370000,460000,null,596774.1,828000]
["Región 1MESA DE ATENCIÓN RECTORÍA ","Mobiliario Escolar","PRODUCTO","Región 1","MESA DE ATENCIÓN RECTORÍA ","MESA DE ATENCIÓN RECTORÍA ","Und",296362,null,525000,424000,804205,374128,397000,411171,null,547042.6,369100]
["Región 2MESA DE ATENCIÓN RECTORÍA ","Mobiliario Escolar","PRODUCTO","Región 2","MESA DE ATENCIÓN RECTORÍA ","MESA DE ATENCIÓN RECTORÍA ","Und",298895,null,535000,441000,927929,392835,402000,418500,null,556988.9,413200]
["Región 3MESA DE ATENCIÓN RECTORÍA ","Mobiliario Escolar","PRODUCTO","Región 3","MESA DE ATENCIÓN RECTORÍA ","MESA DE ATENCIÓN RECTORÍA ","Und",427921,null,685000,476000,1713575,419023,412000,456400,null,596774.1,669000]
["Región 1MESA DE CAFETERÍA PLEGABLE","Mobiliario Escolar","PRODUCTO","Región 1","MESA DE CAFETERÍA PLEGABLE","MESA DE CAFETERÍA PLEGABLE","Und",514671,null,335100,915000,1524400,1191970,380000,506400,null,631345,296200]
["Región 2MESA DE CAFETERÍA PLEGABLE","Mobiliario Escolar","PRODUCTO","Región 2","MESA DE CAFETERÍA PLEGABLE","MESA DE CAFETERÍA PLEGABLE","Und",533501,null,340100,953000,1758923,1251569,385000,511500,null,642824,308300]
["Región 3MESA DE CAFETERÍA PLEGABLE","Mobiliario Escolar","PRODUCTO","Región 3","MESA DE CAFETERÍA PLEGABLE","MESA DE CAFETERÍA PLEGABLE","Und",665307,null,370100,1029000,3248144,1335006,395000,530400,null,688740,359000]
["Región 1MESA DE CONSULTA TRAPEZOIDAL BIBLIOTECA","Mobiliario Escolar","PRODUCTO","Región 1","MESA DE CONSULTA TRAPEZOIDAL BIBLIOTECA","MESA DE CONSULTA TRAPEZOIDAL BIBLIOTECA","Und",197081,null,99300,102000,291404,259590,350000,164400,null,224822,175000]
["Región 2MESA DE CONSULTA TRAPEZOIDAL BIBLIOTECA","Mobiliario Escolar","PRODUCTO","Región 2","MESA DE CONSULTA TRAPEZOIDAL BIBLIOTECA","MESA DE CONSULTA TRAPEZOIDAL BIBLIOTECA","Und",198337,null,105300,106000,336236,272569,355000,169500,null,228910.5,190100]
["Región 3MESA DE CONSULTA TRAPEZOIDAL BIBLIOTECA","Mobiliario Escolar","PRODUCTO","Región 3","MESA DE CONSULTA TRAPEZOIDAL BIBLIOTECA","MESA DE CONSULTA TRAPEZOIDAL BIBLIOTECA","Und",237161,null,127300,114000,620915,290741,365000,176100,null,245260.6,480500]
["Región 1MESA DE JUNTAS RECTORÍA ","Mobiliario Escolar","PRODUCTO","Región 1","MESA DE JUNTAS RECTORÍA ","MESA DE JUNTAS RECTORÍA ","Und",502118,null,408900,337000,614572,518085,484000,538200,null,707218.2,367700]
["Región 2MESA DE JUNTAS RECTORÍA ","Mobiliario Escolar","PRODUCTO","Región 2","MESA DE JUNTAS RECTORÍA ","MESA DE JUNTAS RECTORÍA ","Und",514671,null,428900,351000,709122,543989,489000,543500,null,720077.8,389500]
["Región 3MESA DE JUNTAS RECTORÍA ","Mobiliario Escolar","PRODUCTO","Región 3","MESA DE JUNTAS RECTORÍA ","MESA DE JUNTAS RECTORÍA ","Und",640201,null,608900,379000,1309512,580255,499000,601400,null,771511,590500]
["Región 1MESA DE JUNTAS SALA DOCENTE ","Mobiliario Escolar","PRODUCTO","Región 1","MESA DE JUNTAS SALA DOCENTE ","MESA DE JUNTAS SALA DOCENTE ","Und",502118,null,383900,337000,614572,518085,484000,522000,null,674066.9,367700]
["Región 2MESA DE JUNTAS SALA DOCENTE ","Mobiliario Escolar","PRODUCTO","Región 2","MESA DE JUNTAS SALA DOCENTE ","MESA DE JUNTAS SALA DOCENTE ","Und",514671,null,393900,351000,709122,543989,489000,537800,null,686323.3,389500]
["Región 3MESA DE JUNTAS SALA DOCENTE ","Mobiliario Escolar","PRODUCTO","Región 3","MESA DE JUNTAS SALA DOCENTE ","MESA DE JUNTAS SALA DOCENTE ","Und",657349,null,608900,379000,1309512,580255,499000,579400,null,735346.3,590500]
["Región 1MESA DE TRABAJO BILINGUISMO","Mobiliario Escolar","PRODUCTO","Región 1","MESA DE TRABAJO BILINGUISMO","MESA DE TRABAJO BILINGUISMO","Und",364036,null,226250,181000,502051,403580,393000,258800,null,327356.90000000002,243800]
["Región 2MESA DE TRABAJO BILINGUISMO","Mobiliario Escolar","PRODUCTO","Región 2","MESA DE TRABAJO BILINGUISMO","MESA DE TRABAJO BILINGUISMO","Und",370312,null,228250,188000,579290,423759,398000,262100,null,333308.3,274900]
["Región 3MESA DE TRABAJO BILINGUISMO","Mobiliario Escolar","PRODUCTO","Región 3","MESA DE TRABAJO BILINGUISMO","MESA DE TRABAJO BILINGUISMO","Und",464011,null,278250,203000,1069755,452010,408000,275400,null,344116.5,424000]
["Región 1MESA DE TRABAJO CONSULTA LECTURA BIBLIOTECA","Mobiliario Escolar","PRODUCTO","Región 1","MESA DE TRABAJO CONSULTA LECTURA BIBLIOTECA","MESA DE TRABAJO CONSULTA LECTURA BIBLIOTECA","Und",364036,null,226250,181000,502051,453115,393000,258000,null,327356.90000000002,243800]
["Región 2MESA DE TRABAJO CONSULTA LECTURA BIBLIOTECA","Mobiliario Escolar","PRODUCTO","Región 2","MESA DE TRABAJO CONSULTA LECTURA BIBLIOTECA","MESA DE TRABAJO CONSULTA LECTURA BIBLIOTECA","Und",370312,null,228250,188000,579290,475770,398000,264400,null,333308.3,274900]
["Región 3MESA DE TRABAJO CONSULTA LECTURA BIBLIOTECA","Mobiliario Escolar","PRODUCTO","Región 3","MESA DE TRABAJO CONSULTA LECTURA BIBLIOTECA","MESA DE TRABAJO CONSULTA LECTURA BIBLIOTECA","Und",451907,null,278250,203000,1069755,507488,408000,273900,null,357116.5,424000]
["Región 1MESA INFANTIL BIBLIOTECA ","Mobiliario Escolar","PRODUCTO","Región 1","MESA INFANTIL BIBLIOTECA ","MESA INFANTIL BIBLIOTECA ","Und",166271,null,99150,102000,272693,194823,325000,180000,null,232904.1,136100]
["Región 2MESA INFANTIL BIBLIOTECA ","Mobiliario Escolar","PRODUCTO","Región 2","MESA INFANTIL BIBLIOTECA ","MESA INFANTIL BIBLIOTECA ","Und",168210,null,101150,106000,314646,204564,330000,183000,null,237138.2,146200]
["Región 3MESA INFANTIL BIBLIOTECA ","Mobiliario Escolar","PRODUCTO","Región 3","MESA INFANTIL BIBLIOTECA ","MESA INFANTIL BIBLIOTECA ","Und",217827,null,132150,114000,581046,218201,340000,194000,null,254077.2,235500]
["Región 1MESA MODULAR AULA TIM","Mobiliario Escolar","PRODUCTO","Región 1","MESA MODULAR AULA TIM","MESA MODULAR AULA TIM","Und",340690,null,418000,320000,406167,432509,494382,592400,null,636595.69999999995,263200]
["Región 2MESA MODULAR AULA TIM","Mobiliario Escolar","PRODUCTO","Región 2","MESA MODULAR AULA TIM","MESA MODULAR AULA TIM","Und",353355,null,428000,338000,468654,454134,499382,609900,null,648169.6,277200]
["Región 3MESA MODULAR AULA TIM","Mobiliario Escolar","PRODUCTO","Región 3","MESA MODULAR AULA TIM","MESA MODULAR AULA TIM","Und",404015,null,588000,360000,865448,484410,509382,670200,null,694467.8,430500]
["Región 1MESA MODULAR CIRCUNFERENCIAS","Mobiliario Escolar","PRODUCTO","Región 1","MESA MODULAR CIRCUNFERENCIAS","Mesa modular circunferencias","Und",337675,null,418000,303000,406167,432509,494382,492900,null,636595.69999999995,263200]
["Región 2MESA MODULAR CIRCUNFERENCIAS","Mobiliario Escolar","PRODUCTO","Región 2","MESA MODULAR CIRCUNFERENCIAS","Mesa modular circunferencias","Und",350228,null,428000,315000,468654,454134,499382,501100,null,648169.6,277200]
["Región 3MESA MODULAR CIRCUNFERENCIAS","Mobiliario Escolar","PRODUCTO","Región 3","MESA MODULAR CIRCUNFERENCIAS","Mesa modular circunferencias","Und",411165,null,588000,340000,865448,484410,509382,532400,null,694467.8,430500]
["Región 1MESA MODULAR TIM CON MULTITOMA RETRÁCTIL ","Mobiliario Escolar","PRODUCTO","Región 1","MESA MODULAR TIM CON MULTITOMA RETRÁCTIL ","MESA MODULAR TIM CON MULTITOMA RETRÁCTIL ","Und",475611,null,612000,502000,847167,1624683,574382,602500,null,775355.1,488800]
["Región 2MESA MODULAR TIM CON MULTITOMA RETRÁCTIL ","Mobiliario Escolar","PRODUCTO","Región 2","MESA MODULAR TIM CON MULTITOMA RETRÁCTIL ","MESA MODULAR TIM CON MULTITOMA RETRÁCTIL ","Und",488501,null,622000,523000,977501,1705917,579382,611300,null,789452.3,505800]
["Región 3MESA MODULAR TIM CON MULTITOMA RETRÁCTIL ","Mobiliario Escolar","PRODUCTO","Región 3","MESA MODULAR TIM CON MULTITOMA RETRÁCTIL ","MESA MODULAR TIM CON MULTITOMA RETRÁCTIL ","Und",540057,null,782000,564000,1805118,1819645,589382,660400,null,845842.4,692600]
["Región 1MESA PARA CÓMPUTO RECTOR ","Mobiliario Escolar","PRODUCTO","Región 1","MESA PARA CÓMPUTO RECTOR ","MESA PARA CÓMPUTO RECTOR ","Und",470760,null,670500,545000,1130100,276829,455000,510600,null,754486.2,447400]
["Región 2MESA PARA CÓMPUTO RECTOR ","Mobiliario Escolar","PRODUCTO","Región 2","MESA PARA CÓMPUTO RECTOR ","MESA PARA CÓMPUTO RECTOR ","Und",475826,null,680500,567000,1303962,290671,460000,522700,null,768203.8,496000]
["Región 3MESA PARA CÓMPUTO RECTOR ","Mobiliario Escolar","PRODUCTO","Región 3","MESA PARA CÓMPUTO RECTOR ","MESA PARA CÓMPUTO RECTOR ","Und",575755,null,830500,612000,2407983,310049,470000,572900,null,823075.5,751000]
["Región 1MESÓN LABORATORIO INTEGRADO SECUNDARIA FÍSICA - QUÍMICA ","Mobiliario Escolar","PRODUCTO","Región 1","MESÓN LABORATORIO INTEGRADO SECUNDARIA FÍSICA - QUÍMICA ","MESÓN LABORATORIO INTEGRADO SECUNDARIA FÍSICA - QUÍMICA ","Und",748840,null,478440,562000,2556024,726550,785000,518300,null,698571.9,398100]
["Región 2MESÓN LABORATORIO INTEGRADO SECUNDARIA FÍSICA - QUÍMICA ","Mobiliario Escolar","PRODUCTO","Región 2","MESÓN LABORATORIO INTEGRADO SECUNDARIA FÍSICA - QUÍMICA ","MESÓN LABORATORIO INTEGRADO SECUNDARIA FÍSICA - QUÍMICA ","Und",769928,null,488440,605000,2949258,762877,790000,537400,null,711272.9,422600]
["Región 3MESÓN LABORATORIO INTEGRADO SECUNDARIA FÍSICA - QUÍMICA ","Mobiliario Escolar","PRODUCTO","Región 3","MESÓN LABORATORIO INTEGRADO SECUNDARIA FÍSICA - QUÍMICA ","MESÓN LABORATORIO INTEGRADO SECUNDARIA FÍSICA - QUÍMICA ","Und",854284,null,788440,653000,5446296,813736,800000,580500,null,762078.2,611000]
["Región 1MESÓN LABORATORIO PRIMARIA ","Mobiliario Escolar","PRODUCTO","Región 1","MESÓN LABORATORIO PRIMARIA ","MESÓN LABORATORIO PRIMARIA ","Und",744807,null,476500,528000,1980363,479345,744000,510400,null,693141.8,392600]
["Región 2MESÓN LABORATORIO PRIMARIA ","Mobiliario Escolar","PRODUCTO","Región 2","MESÓN LABORATORIO PRIMARIA ","MESÓN LABORATORIO PRIMARIA ","Und",765896,null,486500,550000,2285034,503312,749000,528900,null,756155.4,416900]
["Región 3MESÓN LABORATORIO PRIMARIA ","Mobiliario Escolar","PRODUCTO","Región 3","MESÓN LABORATORIO PRIMARIA ","MESÓN LABORATORIO PRIMARIA ","Und",850252,null,786500,593000,4219696,536867,759000,579900,null,757744,605000]
["Región 1MÓDULO DE CUATRO (4) CASILLEROS PARA SERVICIOS GENERALES","Mobiliario Escolar","PRODUCTO","Región 1","MÓDULO DE CUATRO (4) CASILLEROS PARA SERVICIOS GENERALES","Módulo de cuatro (4) casilleros para servicios generales","Und",317538,null,192600,363000,589971,346350,545750,335356,null,325331.5,301800]
["Región 2MÓDULO DE CUATRO (4) CASILLEROS PARA SERVICIOS GENERALES","Mobiliario Escolar","PRODUCTO","Región 2","MÓDULO DE CUATRO (4) CASILLEROS PARA SERVICIOS GENERALES","Módulo de cuatro (4) casilleros para servicios generales","Und",324441,null,196600,378000,680736,363667,550750,340926.32,null,331246.5,359600]
["Región 3MÓDULO DE CUATRO (4) CASILLEROS PARA SERVICIOS GENERALES","Mobiliario Escolar","PRODUCTO","Región 3","MÓDULO DE CUATRO (4) CASILLEROS PARA SERVICIOS GENERALES","Módulo de cuatro (4) casilleros para servicios generales","Und",490113,null,314600,408000,1257092,387912,560750,358546.72,null,354900,773000]
["Región 1MUEBLE DE ALMACENAMIENTO AULA CON TRES CAJONES","Mobiliario Escolar","PRODUCTO","Región 1","MUEBLE DE ALMACENAMIENTO AULA CON TRES CAJONES","Mueble de almacenamiento aulas","Und",671122,null,583500,593000,1100120,720767,830000,705400,null,929637.8,437500]
["Región 2MUEBLE DE ALMACENAMIENTO AULA CON TRES CAJONES","Mobiliario Escolar","PRODUCTO","Región 2","MUEBLE DE ALMACENAMIENTO AULA CON TRES CAJONES","Mueble de almacenamiento aulas","Und",686036,null,603500,618000,1269369,756805,835000,715100,null,946540.4,452000]
["Región 3MUEBLE DE ALMACENAMIENTO AULA CON TRES CAJONES","Mobiliario Escolar","PRODUCTO","Región 3","MUEBLE DE ALMACENAMIENTO AULA CON TRES CAJONES","Mueble de almacenamiento aulas","Und",1029054,null,983500,667000,2344101,807259,845000,780150,null,1014150.8,541800]
["Región 1MUEBLE DE ALMACENAMIENTO AULA TIM","Mobiliario Escolar","PRODUCTO","Región 1","MUEBLE DE ALMACENAMIENTO AULA TIM","Mueble de almacenamiento aula TIM","Und",653615,null,583500,593000,1100120,720767,830000,705400,null,929637.8,437500]
["Región 2MUEBLE DE ALMACENAMIENTO AULA TIM","Mobiliario Escolar","PRODUCTO","Región 2","MUEBLE DE ALMACENAMIENTO AULA TIM","Mueble de almacenamiento aula TIM","Und",668140,null,603500,618000,1269369,756805,835000,715100,null,946540.4,452000]
["Región 3MUEBLE DE ALMACENAMIENTO AULA TIM","Mobiliario Escolar","PRODUCTO","Región 3","MUEBLE DE ALMACENAMIENTO AULA TIM","Mueble de almacenamiento aula TIM","Und",1002210,null,983500,667000,2344101,807259,845000,780150,null,1014150.8,541800]
["Región 1MUEBLE DE ALMACENAMIENTO BIBLIOTECA EQUIPOS AUDIOVISUALES Y ELEMENTOS DE ALTO COSTO O DELICADOS EN LA BIBLIOTECA","Mobiliario Escolar","PRODUCTO","Región 1","MUEBLE DE ALMACENAMIENTO BIBLIOTECA EQUIPOS AUDIOVISUALES Y ELEMENTOS DE ALTO COSTO O DELICADOS EN LA BIBLIOTECA","Mueble de almacenamiento biblioteca","Und",671122,null,583500,593000,1100120,720767,830000,705400,null,929637.8,437500]
["Región 2MUEBLE DE ALMACENAMIENTO BIBLIOTECA EQUIPOS AUDIOVISUALES Y ELEMENTOS DE ALTO COSTO O DELICADOS EN LA BIBLIOTECA","Mobiliario Escolar","PRODUCTO","Región 2","MUEBLE DE ALMACENAMIENTO BIBLIOTECA EQUIPOS AUDIOVISUALES Y ELEMENTOS DE ALTO COSTO O DELICADOS EN LA BIBLIOTECA","Mueble de almacenamiento biblioteca","Und",686036,null,603500,618000,1269369,756805,835000,715100,null,946540.4,452000]
["Región 3MUEBLE DE ALMACENAMIENTO BIBLIOTECA EQUIPOS AUDIOVISUALES Y ELEMENTOS DE ALTO COSTO O DELICADOS EN LA BIBLIOTECA","Mobiliario Escolar","PRODUCTO","Región 3","MUEBLE DE ALMACENAMIENTO BIBLIOTECA EQUIPOS AUDIOVISUALES Y ELEMENTOS DE ALTO COSTO O DELICADOS EN LA BIBLIOTECA","Mueble de almacenamiento biblioteca","Und",1029054,null,983500,667000,2344101,807259,845000,780150,null,1014150.8,541800]
["Región 1MUEBLE DE ALMACENAMIENTO DE LABORATORIO INTEGRADO FÍSICA-QUÍMICA SECUNDARIA","Mobiliario Escolar","PRODUCTO","Región 1","MUEBLE DE ALMACENAMIENTO DE LABORATORIO INTEGRADO FÍSICA-QUÍMICA SECUNDARIA","MUEBLE DE ALMACENAMIENTO DE LABORATORIO INTEGRADO FÍSICA-QUÍMICA SECUNDARIA","Und",671122,null,583500,593000,1100120,720767,830000,705400,null,929637.8,437500]
[{"$f":"D258&E258","v":"Región 2MUEBLE DE ALMACENAMIENTO DE LABORATORIO INTEGRADO FÍSICA-QUÍMICA SECUNDARIA"},"Mobiliario Escolar","PRODUCTO","Región 2","MUEBLE DE ALMACENAMIENTO DE LABORATORIO INTEGRADO FÍSICA-QUÍMICA SECUNDARIA","MUEBLE DE ALMACENAMIENTO DE LABORATORIO INTEGRADO FÍSICA-QUÍMICA SECUNDARIA","Und",686036,null,603500,618000,1269369,756805,835000,715100,null,946540.4,452000]
["Región 3MUEBLE DE ALMACENAMIENTO DE LABORATORIO INTEGRADO FÍSICA-QUÍMICA SECUNDARIA","Mobiliario Escolar","PRODUCTO","Región 3","MUEBLE DE ALMACENAMIENTO DE LABORATORIO INTEGRADO FÍSICA-QUÍMICA SECUNDARIA","MUEBLE DE ALMACENAMIENTO DE LABORATORIO INTEGRADO FÍSICA-QUÍMICA SECUNDARIA","Und",1029054,null,983500,667000,2344101,807259,845000,780150,null,1014150.8,541800]
["Región 1MUEBLE DE ALMACENAMIENTO DE LABORATORIO PRIMARIA CIENCIAS Y ARTES ","Mobiliario Escolar","PRODUCTO","Región 1","MUEBLE DE ALMACENAMIENTO DE LABORATORIO PRIMARIA CIENCIAS Y ARTES ","MUEBLE DE ALMACENAMIENTO DE LABORATORIO PRIMARIA CIENCIAS Y ARTES ","Und",671122,null,583500,593000,1100120,720767,830000,705400,null,929637.8,437500]
["Región 2MUEBLE DE ALMACENAMIENTO DE LABORATORIO PRIMARIA CIENCIAS Y ARTES ","Mobiliario Escolar","PRODUCTO","Región 2","MUEBLE DE ALMACENAMIENTO DE LABORATORIO PRIMARIA CIENCIAS Y ARTES ","MUEBLE DE ALMACENAMIENTO DE LABORATORIO PRIMARIA CIENCIAS Y ARTES ","Und",686036,null,603500,618000,1269369,756805,835000,715100,null,946540.4,452000]
["Región 3MUEBLE DE ALMACENAMIENTO DE LABORATORIO PRIMARIA CIENCIAS Y ARTES ","Mobiliario Escolar","PRODUCTO","Región 3","MUEBLE DE ALMACENAMIENTO DE LABORATORIO PRIMARIA CIENCIAS Y ARTES ","MUEBLE DE ALMACENAMIENTO DE LABORATORIO PRIMARIA CIENCIAS Y ARTES ","Und",1029054,null,983500,667000,2344101,807259,845000,780150,null,1014150.8,541800]
["Región 1MUEBLE MÓVIL DE CONTENIDOS AULA TIM ","Mobiliario Escolar","PRODUCTO","Región 1","MUEBLE MÓVIL DE CONTENIDOS AULA TIM ","MUEBLE MÓVIL DE CONTENIDOS AULA TIM ","Und",631120,null,592600,229000,1275531,893459,635000,790400,null,980395,899000]
["Región 2MUEBLE MÓVIL DE CONTENIDOS AULA TIM ","Mobiliario Escolar","PRODUCTO","Región 2","MUEBLE MÓVIL DE CONTENIDOS AULA TIM ","MUEBLE MÓVIL DE CONTENIDOS AULA TIM ","Und",644000,null,602600,238000,1471767,938132,640000,815400,null,998219.3,915000]
["Región 3MUEBLE MÓVIL DE CONTENIDOS AULA TIM ","Mobiliario Escolar","PRODUCTO","Región 3","MUEBLE MÓVIL DE CONTENIDOS AULA TIM ","MUEBLE MÓVIL DE CONTENIDOS AULA TIM ","Und",862960,null,912600,257000,2717863,1000674,650000,856400,null,1069521.7,1120000]
["Región 1MUEBLE MÓVIL DE RECOLECCIÓN DE LIBROS","Mobiliario Escolar","PRODUCTO","Región 1","MUEBLE MÓVIL DE RECOLECCIÓN DE LIBROS","Mueble móvil recolección de libros","Und",175584,null,242950,229000,457982,422235,635000,271900,null,409448,217900]
["Región 2MUEBLE MÓVIL DE RECOLECCIÓN DE LIBROS","Mobiliario Escolar","PRODUCTO","Región 2","MUEBLE MÓVIL DE RECOLECCIÓN DE LIBROS","Mueble móvil recolección de libros","Und",182664,null,247950,238000,528441,443347,640000,302000,null,416893.1,237200]
["Región 3MUEBLE MÓVIL DE RECOLECCIÓN DE LIBROS","Mobiliario Escolar","PRODUCTO","Región 3","MUEBLE MÓVIL DE RECOLECCIÓN DE LIBROS","Mueble móvil recolección de libros","Und",269040,null,307950,257000,975854,472904,650000,337500,null,446670.9,427000]
["Región 1MUEBLE MÓVIL LABORATORIO ","Mobiliario Escolar","PRODUCTO","Región 1","MUEBLE MÓVIL LABORATORIO ","MUEBLE MÓVIL LABORATORIO ","Und",175584,null,242950,229000,457982,422235,635000,309900,null,409448,217900]
["Región 2MUEBLE MÓVIL LABORATORIO ","Mobiliario Escolar","PRODUCTO","Región 2","MUEBLE MÓVIL LABORATORIO ","MUEBLE MÓVIL LABORATORIO ","Und",182664,null,247950,238000,528441,443347,640000,316400,null,416893.1,237200]
["Región 3MUEBLE MÓVIL LABORATORIO ","Mobiliario Escolar","PRODUCTO","Región 3","MUEBLE MÓVIL LABORATORIO ","MUEBLE MÓVIL LABORATORIO ","Und",269040,null,307950,257000,975854,472904,650000,343000,null,446670.9,427000]
["Región 1PAPELERA MANEJO DE RESIDUOS SOLIDOS","Mobiliario Escolar","PRODUCTO","Región 1","PAPELERA MANEJO DE RESIDUOS SOLIDOS","Papelera administrativa","Und",27025,null,50000,25000,79685,54798,40000,80100,null,108123.6,35700]
["Región 2PAPELERA MANEJO DE RESIDUOS SOLIDOS","Mobiliario Escolar","PRODUCTO","Región 2","PAPELERA MANEJO DE RESIDUOS SOLIDOS","Papelera administrativa","Und",27255,null,50500,26000,91944,57538,45000,82400,null,110089.2,36700]
["Región 3PAPELERA MANEJO DE RESIDUOS SOLIDOS","Mobiliario Escolar","PRODUCTO","Región 3","PAPELERA MANEJO DE RESIDUOS SOLIDOS","Papelera administrativa","Und",37375,null,56000,28000,169790,61374,55000,89900,null,117952.9,36700]
["Región 1PUESTO DE TRABAJO ESTÁNDAR","Mobiliario Escolar","PRODUCTO","Región 1","PUESTO DE TRABAJO ESTÁNDAR","Puesto de trabajo estándar","Und",960530,null,548500,1210000,2148905,1013453,1090695,1300000,null,1501901.15,688100]
["Región 2PUESTO DE TRABAJO ESTÁNDAR","Mobiliario Escolar","PRODUCTO","Región 2","PUESTO DE TRABAJO ESTÁNDAR","Puesto de trabajo estándar","Und",974436,null,558500,1260000,2479506,1064126,1095695,1330000,null,1529207.9,750200]
["Región 3PUESTO DE TRABAJO ESTÁNDAR","Mobiliario Escolar","PRODUCTO","Región 3","PUESTO DE TRABAJO ESTÁNDAR","Puesto de trabajo estándar","Und",1131069,null,593500,1360000,4578821,1135068,1105695,1415000,null,1638437.2,1005200]
["Región 1PUNTO ECOLÓGICO EXTERIOR CON TRES CANECAS MANEJO DE RESIDUOS SOLIDOS","Mobiliario Escolar","PRODUCTO","Región 1","PUNTO ECOLÓGICO EXTERIOR CON TRES CANECAS MANEJO DE RESIDUOS SOLIDOS","Punto ecológico tres (3) canecas","Und",408800,null,398000,424000,953040,236885,440000,431500,null,548186.6,333200]
["Región 2PUNTO ECOLÓGICO EXTERIOR CON TRES CANECAS MANEJO DE RESIDUOS SOLIDOS","Mobiliario Escolar","PRODUCTO","Región 2","PUNTO ECOLÓGICO EXTERIOR CON TRES CANECAS MANEJO DE RESIDUOS SOLIDOS","Punto ecológico tres (3) canecas","Und",414400,null,408000,441000,1099662,248729,445000,439400,null,558153.69999999995,346400]
["Región 3PUNTO ECOLÓGICO EXTERIOR CON TRES CANECAS MANEJO DE RESIDUOS SOLIDOS","Mobiliario Escolar","PRODUCTO","Región 3","PUNTO ECOLÓGICO EXTERIOR CON TRES CANECAS MANEJO DE RESIDUOS SOLIDOS","Punto ecológico tres (3) canecas","Und",464800,null,428000,476000,2030709,265311,455000,460900,null,598022.1,396000]
["Región 1REVISTERO","Mobiliario Escolar","PRODUCTO","Región 1","REVISTERO","Revistero","Und",312346,null,357500,192000,586573,447300,664400,270500,null,349177.4,350700]
["Región 2REVISTERO","Mobiliario Escolar","PRODUCTO","Región 2","REVISTERO","Revistero","Und",318618,null,364500,200000,676815,469665,669400,274900,null,355525.3,394600]
["Región 3REVISTERO","Mobiliario Escolar","PRODUCTO","Región 3","REVISTERO","Revistero","Und",388864,null,539500,215000,1249852,500976,679400,298000,null,380920.8,612000]
["Región 1SILLA CAFETERIA - AUDITORIO","Mobiliario Escolar","PRODUCTO","Región 1","SILLA CAFETERIA - AUDITORIO","SILLA CAFETERIA - AUDITORIO","Und",45390,null,47150,39000,98219,51773,69000,51100,null,59975.5,60400]
["Región 2SILLA CAFETERIA - AUDITORIO","Mobiliario Escolar","PRODUCTO","Región 2","SILLA CAFETERIA - AUDITORIO","SILLA CAFETERIA - AUDITORIO","Und",45390,null,47650,41000,113330,54361,74000,51600,null,61064.9,65600]
["Región 3SILLA CAFETERIA - AUDITORIO","Mobiliario Escolar","PRODUCTO","Región 3","SILLA CAFETERIA - AUDITORIO","SILLA CAFETERIA - AUDITORIO","Und",73921,null,63650,44000,209282,57985,84000,57300,null,65427.7,115100]
["Región 1SILLA INTERLOCUTORA BIBLIOTECA ","Mobiliario Escolar","PRODUCTO","Región 1","SILLA INTERLOCUTORA BIBLIOTECA ","SILLA INTERLOCUTORA BIBLIOTECA ","Und",44601,null,56350,39000,190081,51773,53000,46900,null,59975.5,60400]
["Región 2SILLA INTERLOCUTORA BIBLIOTECA ","Mobiliario Escolar","PRODUCTO","Región 2","SILLA INTERLOCUTORA BIBLIOTECA ","SILLA INTERLOCUTORA BIBLIOTECA ","Und",45238,null,57350,41000,219324,54361,58000,47400,null,61064.9,65600]
["Región 3SILLA INTERLOCUTORA BIBLIOTECA ","Mobiliario Escolar","PRODUCTO","Región 3","SILLA INTERLOCUTORA BIBLIOTECA ","SILLA INTERLOCUTORA BIBLIOTECA ","Und",72635,null,68350,44000,405018,57985,68000,52600,null,65427.7,115100]
["Región 1SILLA INTERLOCUTORA BIBLIOTECA - BILINGUISMO","Mobiliario Escolar","PRODUCTO","Región 1","SILLA INTERLOCUTORA BIBLIOTECA - BILINGUISMO","SILLA INTERLOCUTORA BIBLIOTECA - BILINGUISMO","Und",44601,null,56350,39000,86977,51773,53000,46900,null,59975.5,60400]
["Región 2SILLA INTERLOCUTORA BIBLIOTECA - BILINGUISMO","Mobiliario Escolar","PRODUCTO","Región 2","SILLA INTERLOCUTORA BIBLIOTECA - BILINGUISMO","SILLA INTERLOCUTORA BIBLIOTECA - BILINGUISMO","Und",45238,null,57350,41000,100358,54361,58000,47400,null,61064.9,65600]
["Región 3SILLA INTERLOCUTORA BIBLIOTECA - BILINGUISMO","Mobiliario Escolar","PRODUCTO","Región 3","SILLA INTERLOCUTORA BIBLIOTECA - BILINGUISMO","SILLA INTERLOCUTORA BIBLIOTECA - BILINGUISMO","Und",72635,null,68350,44000,185327,57985,68000,52600,null,65427.7,115100]
["Región 1SILLA INTERLOCUTORA RECEPCIÓN ","Mobiliario Escolar","PRODUCTO","Región 1","SILLA INTERLOCUTORA RECEPCIÓN ","SILLA INTERLOCUTORA RECEPCIÓN ","Und",44601,null,56350,39000,98219,51773,53000,46900,null,59975.5,60400]
["Región 2SILLA INTERLOCUTORA RECEPCIÓN ","Mobiliario Escolar","PRODUCTO","Región 2","SILLA INTERLOCUTORA RECEPCIÓN ","SILLA INTERLOCUTORA RECEPCIÓN ","Und",45238,null,57350,41000,113330,54361,58000,47400,null,61064.9,65600]
["Región 3SILLA INTERLOCUTORA RECEPCIÓN ","Mobiliario Escolar","PRODUCTO","Región 3","SILLA INTERLOCUTORA RECEPCIÓN ","SILLA INTERLOCUTORA RECEPCIÓN ","Und",72635,null,68350,44000,209282,57985,68000,52600,null,65427.7,115100]
["Región 1SILLA INTERLOCUTORA RECTORÍA ","Mobiliario Escolar","PRODUCTO","Región 1","SILLA INTERLOCUTORA RECTORÍA ","SILLA INTERLOCUTORA RECTORÍA ","Und",129452,null,167900,109000,190081,127715,113640,131500,null,145054,121000]
["Región 2SILLA INTERLOCUTORA RECTORÍA ","Mobiliario Escolar","PRODUCTO","Región 2","SILLA INTERLOCUTORA RECTORÍA ","SILLA INTERLOCUTORA RECTORÍA ","Und",130069,null,168900,114000,219324,134101,118640,133700,null,147691.70000000001,135600]
["Región 3SILLA INTERLOCUTORA RECTORÍA ","Mobiliario Escolar","PRODUCTO","Región 3","SILLA INTERLOCUTORA RECTORÍA ","SILLA INTERLOCUTORA RECTORÍA ","Und",156576,null,194900,123000,405018,143041,128640,141700,null,158241.20000000001,336500]
["Región 1SILLA INTERLOCUTORA SALA DOCENTE ","Mobiliario Escolar","PRODUCTO","Región 1","SILLA INTERLOCUTORA SALA DOCENTE ","SILLA INTERLOCUTORA SALA DOCENTE ","Und",135337,null,167900,103000,190081,127715,113640,131500,null,145054,65600]
["Región 2SILLA INTERLOCUTORA SALA DOCENTE ","Mobiliario Escolar","PRODUCTO","Región 2","SILLA INTERLOCUTORA SALA DOCENTE ","SILLA INTERLOCUTORA SALA DOCENTE ","Und",130069,null,168900,107000,219324,134101,118640,133700,null,147691.70000000001,121000]
["Región 3SILLA INTERLOCUTORA SALA DOCENTE ","Mobiliario Escolar","PRODUCTO","Región 3","SILLA INTERLOCUTORA SALA DOCENTE ","SILLA INTERLOCUTORA SALA DOCENTE ","Und",156576,null,194900,116000,405018,143041,128640,141700,null,158241.20000000001,336500]
["Región 1SILLA NEUMÁTICA ADMINISTRATIVA","Mobiliario Escolar","PRODUCTO","Región 1","SILLA NEUMÁTICA ADMINISTRATIVA","SILLA NEUMÁTICA ADMINISTRATIVA","Und",266500,null,306000,303000,348785,198631,245000,270000,null,226832,350300]
["Región 2SILLA NEUMÁTICA ADMINISTRATIVA","Mobiliario Escolar","PRODUCTO","Región 2","SILLA NEUMÁTICA ADMINISTRATIVA","SILLA NEUMÁTICA ADMINISTRATIVA","Und",271500,null,311000,316000,402444,208563,250000,276400,null,230956,380300]
["Región 3SILLA NEUMÁTICA ADMINISTRATIVA","Mobiliario Escolar","PRODUCTO","Región 3","SILLA NEUMÁTICA ADMINISTRATIVA","SILLA NEUMÁTICA ADMINISTRATIVA","Und",296500,null,371000,341000,743180,222467,260000,289000,null,247453,627000]
["Región 1SILLA NEUMÁTICA GIRATORIA MONO CONCHA","Mobiliario Escolar","PRODUCTO","Región 1","SILLA NEUMÁTICA GIRATORIA MONO CONCHA","SILLA NEUMÁTICA GIRATORIA MONO CONCHA","Und",110000,null,163050,320000,234585,214078,185000,190500,null,158783,172300]
["Región 2SILLA NEUMÁTICA GIRATORIA MONO CONCHA","Mobiliario Escolar","PRODUCTO","Región 2","SILLA NEUMÁTICA GIRATORIA MONO CONCHA","SILLA NEUMÁTICA GIRATORIA MONO CONCHA","Und",110000,null,165050,333000,270675,224782,190000,210400,null,161670,188300]
["Región 3SILLA NEUMÁTICA GIRATORIA MONO CONCHA","Mobiliario Escolar","PRODUCTO","Región 3","SILLA NEUMÁTICA GIRATORIA MONO CONCHA","SILLA NEUMÁTICA GIRATORIA MONO CONCHA","Und",127000,null,190050,360000,499847,239768,200000,233900,null,173218,389200]
["Región 1SILLA NEUMÁTICA GIRATORIA MONO CONCHA AULA TIM","Mobiliario Escolar","PRODUCTO","Región 1","SILLA NEUMÁTICA GIRATORIA MONO CONCHA AULA TIM","SILLA NEUMÁTICA GIRATORIA MONO CONCHA AULA TIM","Und",110000,null,163050,320000,234585,214078,185000,190500,null,158783,172300]
["Región 2SILLA NEUMÁTICA GIRATORIA MONO CONCHA AULA TIM","Mobiliario Escolar","PRODUCTO","Región 2","SILLA NEUMÁTICA GIRATORIA MONO CONCHA AULA TIM","SILLA NEUMÁTICA GIRATORIA MONO CONCHA AULA TIM","Und",110000,null,165050,333000,270675,224782,190000,210400,null,161679,188300]
["Región 3SILLA NEUMÁTICA GIRATORIA MONO CONCHA AULA TIM","Mobiliario Escolar","PRODUCTO","Región 3","SILLA NEUMÁTICA GIRATORIA MONO CONCHA AULA TIM","SILLA NEUMÁTICA GIRATORIA MONO CONCHA AULA TIM","Und",127000,null,190050,360000,499847,239768,200000,233900,null,173218,389200]
["Región 1SILLA NEUMÁTICA GIRATORIA MONO CONCHA SALA DOCENTE","Mobiliario Escolar","PRODUCTO","Región 1","SILLA NEUMÁTICA GIRATORIA MONO CONCHA SALA DOCENTE","SILLA NEUMÁTICA GIRATORIA MONO CONCHA SALA DOCENTE","Und",110000,null,163050,320000,234585,214078,185000,190500,null,151670,172300]
["Región 2SILLA NEUMÁTICA GIRATORIA MONO CONCHA SALA DOCENTE","Mobiliario Escolar","PRODUCTO","Región 2","SILLA NEUMÁTICA GIRATORIA MONO CONCHA SALA DOCENTE","SILLA NEUMÁTICA GIRATORIA MONO CONCHA SALA DOCENTE","Und",110000,null,165050,333000,270675,224782,190000,210400,null,158783,188300]
["Región 3SILLA NEUMÁTICA GIRATORIA MONO CONCHA SALA DOCENTE","Mobiliario Escolar","PRODUCTO","Región 3","SILLA NEUMÁTICA GIRATORIA MONO CONCHA SALA DOCENTE","SILLA NEUMÁTICA GIRATORIA MONO CONCHA SALA DOCENTE","Und",127000,null,190050,360000,499847,239768,200000,233900,null,173218,389200]
["Región 1SILLA NEUMÁTICA RECTORÍA CON DESCANSA BRAZOS","Mobiliario Escolar","PRODUCTO","Región 1","SILLA NEUMÁTICA RECTORÍA CON DESCANSA BRAZOS","SILLA NEUMÁTICA RECTORÍA CON DESCANSA BRAZOS","Und",362500,null,354500,364000,455400,236500,285000,320000,null,279759,373000]
["Región 2SILLA NEUMÁTICA RECTORÍA CON DESCANSA BRAZOS","Mobiliario Escolar","PRODUCTO","Región 2","SILLA NEUMÁTICA RECTORÍA CON DESCANSA BRAZOS","SILLA NEUMÁTICA RECTORÍA CON DESCANSA BRAZOS","Und",367500,null,359500,379000,525462,248325,290000,325000,null,284846,403500]
["Región 3SILLA NEUMÁTICA RECTORÍA CON DESCANSA BRAZOS","Mobiliario Escolar","PRODUCTO","Región 3","SILLA NEUMÁTICA RECTORÍA CON DESCANSA BRAZOS","SILLA NEUMÁTICA RECTORÍA CON DESCANSA BRAZOS","Und",400500,null,419500,408000,970353,264880,300000,350000,null,305192,650000]
["Región 1SILLA PUESTO DE TRABAJO INFANTIL BIBLIOTECA","Mobiliario Escolar","PRODUCTO","Región 1","SILLA PUESTO DE TRABAJO INFANTIL BIBLIOTECA","SILLA PUESTO DE TRABAJO INFANTIL BIBLIOTECA","Und",33288,null,40800,31000,65979,36316,47000,35050,null,43602,45100]
["Región 2SILLA PUESTO DE TRABAJO INFANTIL BIBLIOTECA","Mobiliario Escolar","PRODUCTO","Región 2","SILLA PUESTO DE TRABAJO INFANTIL BIBLIOTECA","SILLA PUESTO DE TRABAJO INFANTIL BIBLIOTECA","Und",33288,null,41800,33000,76130,38132,52000,36100,null,44393.7,56700]
["Región 3SILLA PUESTO DE TRABAJO INFANTIL BIBLIOTECA","Mobiliario Escolar","PRODUCTO","Región 3","SILLA PUESTO DE TRABAJO INFANTIL BIBLIOTECA","SILLA PUESTO DE TRABAJO INFANTIL BIBLIOTECA","Und",44384,null,50800,35000,140586,40674,62000,38000,null,47565.7,145900]
["Región 1SOFÁ DE DOS (2) PUESTOS","Mobiliario Escolar","PRODUCTO","Región 1","SOFÁ DE DOS (2) PUESTOS","Sofá de dos (2) puestos ","Und",1145000,null,1194000,872000,4290000,1016000,1805000,897000,null,881922,1696000]
["Región 2SOFÁ DE DOS (2) PUESTOS","Mobiliario Escolar","PRODUCTO","Región 2","SOFÁ DE DOS (2) PUESTOS","Sofá de dos (2) puestos ","Und",1150000,null,1214000,908000,4950000,1066800,1810000,905900,null,897957,1756600]
[{"$f":"D322&E322","v":"Región 3SOFÁ DE DOS (2) PUESTOS"},"Mobiliario Escolar","PRODUCTO","Región 3","SOFÁ DE DOS (2) PUESTOS","Sofá de dos (2) puestos ","Und",1270000,null,1564000,980000,9141000,1137920,1820000,980500,null,962097,1960000]
["Región 1SOFÁ DE TRES (3) PUESTOS LECTURA RELAJADA EN LA BIBLIOTECA Y AULA DE BILINGUISMO","Mobiliario Escolar","PRODUCTO","Región 1","SOFÁ DE TRES (3) PUESTOS LECTURA RELAJADA EN LA BIBLIOTECA Y AULA DE BILINGUISMO","Sofá de tres (3) puestos","Und",1145000,null,1796000,2178000,6800001,1780000,3225000,1109300,null,1084256,3125400]
["Región 2SOFÁ DE TRES (3) PUESTOS LECTURA RELAJADA EN LA BIBLIOTECA Y AULA DE BILINGUISMO","Mobiliario Escolar","PRODUCTO","Región 2","SOFÁ DE TRES (3) PUESTOS LECTURA RELAJADA EN LA BIBLIOTECA Y AULA DE BILINGUISMO","Sofá de tres (3) puestos","Und",1150000,null,1816000,2268000,7846155,1869000,3230000,1112500,null,1103970,3250000]
["Región 3SOFÁ DE TRES (3) PUESTOS LECTURA RELAJADA EN LA BIBLIOTECA Y AULA DE BILINGUISMO","Mobiliario Escolar","PRODUCTO","Región 3","SOFÁ DE TRES (3) PUESTOS LECTURA RELAJADA EN LA BIBLIOTECA Y AULA DE BILINGUISMO","Sofá de tres (3) puestos","Und",1270000,null,2196000,2448000,14489233,1993600,3240000,1190100,null,1182825,3850000]
["Región 1TABLERO MÓVIL DOS CARAS","Mobiliario Escolar","PRODUCTO","Región 1","TABLERO MÓVIL DOS CARAS","Tablero móvil","Und",302056,null,281900,256000,672161,520299,500000,353500,null,498074.2,296800]
["Región 2TABLERO MÓVIL DOS CARAS","Mobiliario Escolar","PRODUCTO","Región 2","TABLERO MÓVIL DOS CARAS","Tablero móvil","Und",305754,null,291900,267000,775571,546314,505000,363900,null,507130,316500]
["Región 3TABLERO MÓVIL DOS CARAS","Mobiliario Escolar","PRODUCTO","Región 3","TABLERO MÓVIL DOS CARAS","Tablero móvil","Und",392056,null,341900,288000,1432220,582735,515000,399900,null,543353.19999999995,517500]
["Región 1TABLERO PARA MARCADOR BORRABLE","Mobiliario Escolar","PRODUCTO","Región 1","TABLERO PARA MARCADOR BORRABLE","Tablero","Und",245300,null,213700,166000,219332,180000,245000,262300,null,259597,290900]
["Región 2TABLERO PARA MARCADOR BORRABLE","Mobiliario Escolar","PRODUCTO","Región 2","TABLERO PARA MARCADOR BORRABLE","Tablero","Und",250800,null,218700,173000,253076,189000,250000,266500,null,264317,303300]
["Región 3TABLERO PARA MARCADOR BORRABLE","Mobiliario Escolar","PRODUCTO","Región 3","TABLERO PARA MARCADOR BORRABLE","Tablero","Und",366300,null,243700,187000,467346,201600,260000,289300,null,283197,392500]
["Región 1TÁNDEM CANECAS AULA MANEJO DE RESIDUOS SOLIDOS","Mobiliario Escolar","PRODUCTO","Región 1","TÁNDEM CANECAS AULA MANEJO DE RESIDUOS SOLIDOS","Tándem tres (3) canecas aulas","Und",232064,null,197000,186000,418001,166341,410000,279800,null,359919.3,239200]
["Región 2TÁNDEM CANECAS AULA MANEJO DE RESIDUOS SOLIDOS","Mobiliario Escolar","PRODUCTO","Región 2","TÁNDEM CANECAS AULA MANEJO DE RESIDUOS SOLIDOS","Tándem tres (3) canecas aulas","Und",238336,null,198500,193000,482309,174658,415000,281900,null,366463.5,250800]
["Región 3TÁNDEM CANECAS AULA MANEJO DE RESIDUOS SOLIDOS","Mobiliario Escolar","PRODUCTO","Región 3","TÁNDEM CANECAS AULA MANEJO DE RESIDUOS SOLIDOS","Tándem tres (3) canecas aulas","Und",296038,null,204000,209000,890663,186302,425000,303400,null,392639,340100]
["Región 1TÁNDEM DE ESPERA PARA ESPACIOS EXTERIORES CUBIERTOS","Mobiliario Escolar","PRODUCTO","Región 1","TÁNDEM DE ESPERA PARA ESPACIOS EXTERIORES CUBIERTOS","Tándem de espera","Und",231133,null,145800,303000,297371,166538,386500,200100,null,241320.3,266500]
["Región 2TÁNDEM DE ESPERA PARA ESPACIOS EXTERIORES CUBIERTOS","Mobiliario Escolar","PRODUCTO","Región 2","TÁNDEM DE ESPERA PARA ESPACIOS EXTERIORES CUBIERTOS","Tándem de espera","Und",232396,null,150800,315000,343121,174865,391500,202100,null,245700,320800]
["Región 3TÁNDEM DE ESPERA PARA ESPACIOS EXTERIORES CUBIERTOS","Mobiliario Escolar","PRODUCTO","Región 3","TÁNDEM DE ESPERA PARA ESPACIOS EXTERIORES CUBIERTOS","Tándem de espera","Und",396590,null,185800,340000,633629,186523,401500,224300,null,263259.09999999998,689000]
["Región 1ASIENTO INFANTIL","Mobiliario SED","PRODUCTO","Región 1","ASIENTO INFANTIL","Asiento Infantil ","Und",null,null,null,301330.7,null,301330.7,301330.7,null,null,null,301330.7]
["Región 2ASIENTO INFANTIL","Mobiliario SED","PRODUCTO","Región 2","ASIENTO INFANTIL","Asiento Infantil ","Und",null,null,null,315027.55,null,315027.55,315027.55,null,null,null,315027.55]
["Región 3ASIENTO INFANTIL","Mobiliario SED","PRODUCTO","Región 3","ASIENTO INFANTIL","Asiento Infantil ","Und",null,null,null,328724.40000000002,null,328724.40000000002,328724.40000000002,null,null,null,328724.40000000002]
["Región 1BIBLIOBANCO","Mobiliario SED","PRODUCTO","Región 1","BIBLIOBANCO","Bibliobanco","Und",null,null,null,577052.30000000005,null,577052.30000000005,577052.30000000005,null,null,null,577052.30000000005]
["Región 2BIBLIOBANCO","Mobiliario SED","PRODUCTO","Región 2","BIBLIOBANCO","Bibliobanco","Und",null,null,null,603281.94999999995,null,603281.94999999995,603281.94999999995,null,null,null,603281.94999999995]
["Región 3BIBLIOBANCO","Mobiliario SED","PRODUCTO","Región 3","BIBLIOBANCO","Bibliobanco","Und",null,null,null,629511.6,null,629511.6,629511.6,null,null,null,629511.6]
["Región 1CARTERLERA INFORMACIÓN INSTITUCIONAL","Mobiliario SED","PRODUCTO","Región 1","CARTERLERA INFORMACIÓN INSTITUCIONAL","Carterlera información institucional ","Und",null,null,null,248444.9,null,248444.9,248444.9,null,null,null,248444.9]
["Región 2CARTERLERA INFORMACIÓN INSTITUCIONAL","Mobiliario SED","PRODUCTO","Región 2","CARTERLERA INFORMACIÓN INSTITUCIONAL","Carterlera información institucional ","Und",null,null,null,259737.85,null,259737.85,259737.85,null,null,null,259737.85]
["Región 3CARTERLERA INFORMACIÓN INSTITUCIONAL","Mobiliario SED","PRODUCTO","Región 3","CARTERLERA INFORMACIÓN INSTITUCIONAL","Carterlera información institucional ","Und",null,null,null,271030.8,null,271030.8,271030.8,null,null,null,271030.8]
["Región 1ESTANTERÍA ALTA","Mobiliario SED","PRODUCTO","Región 1","ESTANTERÍA ALTA","Estantería alta ","Und",null,null,null,245470.5,null,245470.5,245470.5,null,null,null,245470.5]
["Región 2ESTANTERÍA ALTA","Mobiliario SED","PRODUCTO","Región 2","ESTANTERÍA ALTA","Estantería alta ","Und",null,null,null,256628.25,null,256628.25,256628.25,null,null,null,256628.25]
["Región 3ESTANTERÍA ALTA","Mobiliario SED","PRODUCTO","Región 3","ESTANTERÍA ALTA","Estantería alta ","Und",null,null,null,267786,null,267786,267786,null,null,null,267786]
["Región 1PERCHERO","Mobiliario SED","PRODUCTO","Región 1","PERCHERO","Perchero ","Und",null,null,null,180000,null,248147.9,248147.9,null,null,null,248147.9]
["Región 2PERCHERO","Mobiliario SED","PRODUCTO","Región 2","PERCHERO","Perchero ","Und",null,null,null,216000,null,259427.35,259427.35,null,null,null,259427.35]
["Región 3PERCHERO","Mobiliario SED","PRODUCTO","Región 3","PERCHERO","Perchero ","Und",null,null,null,270000,null,270706.8,270706.8,null,null,null,270706.8]
["Región 1REPISA PERCHERO","Mobiliario SED","PRODUCTO","Región 1","REPISA PERCHERO","Repisa Perchero ","Und",null,null,null,85664.7,null,65000,85664.7,null,null,null,65000]
["Región 2REPISA PERCHERO","Mobiliario SED","PRODUCTO","Región 2","REPISA PERCHERO","Repisa Perchero ","Und",null,null,null,89558.55,null,73000,89558.55,null,null,null,73000]
["Región 3REPISA PERCHERO","Mobiliario SED","PRODUCTO","Región 3","REPISA PERCHERO","Repisa Perchero ","Und",null,null,null,93452.4,null,93452.4,93452.4,null,null,null,93452.4]
["Bogotá D.C.Pupitre preescolar 5 mesas (x5 sillas c/u)","Mobiliario SED","PRODUCTO","Bogotá D.C.","Pupitre preescolar 5 mesas (x5 sillas c/u)","Pupitre preescolar 5 mesas (x5 sillas c/u)","Und",750000,null,833000,678000,1063950,1250000,250000,null,null,678300,917490]
[{"$f":"D357&E357","v":"Bogotá D.C.Pupitre primaria mesa y silla"},"Mobiliario SED","PRODUCTO","Bogotá D.C.","Pupitre primaria mesa y silla","Pupitre primaria mesa y silla","Und",185000,null,186000,180000,190150,210000,200000,null,null,208250,176715]
["Bogotá D.C.Pupitre bachillerato mesa y silla","Mobiliario SED","PRODUCTO","Bogotá D.C.","Pupitre bachillerato mesa y silla","Pupitre bachillerato mesa y silla","Und",190000,null,196000,195000,199900,200000,200000,null,null,217770,190638]
["Bogotá D.C.Puesto universitario diestro","Mobiliario SED","PRODUCTO","Bogotá D.C.","Puesto universitario diestro","Puesto universitario diestro","Und",110000,null,131000,130000,133950,150000,80000,null,null,104720,174335]
["Bogotá D.C.Puesto universitario zurdo","Mobiliario SED","PRODUCTO","Bogotá D.C.","Puesto universitario zurdo","Puesto universitario zurdo","Und",110000,null,131000,130000,133950,150000,90000,null,null,104720,174335]
["Bogotá D.C.Bibliobanco","Mobiliario SED","PRODUCTO","Bogotá D.C.","Bibliobanco","Bibliobanco","Und",780000,null,913000,800000,931400,1200000,950000,null,null,886800,1036490]
["Bogotá D.C.Tablero","Mobiliario SED","PRODUCTO","Bogotá D.C.","Tablero","Tablero","Und",390000,null,539000,360000,595000,650000,290000,null,null,386750,374255]
["Bogotá D.C.Casilleros estudiantes","Mobiliario SED","PRODUCTO","Bogotá D.C.","Casilleros estudiantes","Casilleros estudiantes","Und",920000,null,2940000,2000000,3530000,3300000,820000,null,null,1766000,2742950]
["Bogotá D.C.Catedra mesa y silla","Mobiliario SED","PRODUCTO","Bogotá D.C.","Catedra mesa y silla","Catedra mesa y silla","Und",490000,null,647000,450000,661950,650000,380000,null,null,327250,430780]
["Bogotá D.C.Silla comedor","Mobiliario SED","PRODUCTO","Bogotá D.C.","Silla comedor","Silla comedor","Und",65000,null,130000,65000,132600,150000,150000,null,null,53550,79968]
["Bogotá D.C.Silla interlocutora","Mobiliario SED","PRODUCTO","Bogotá D.C.","Silla interlocutora","Silla interlocutora","Und",135000,null,148800,130000,151850,155000,150000,null,null,111860,148750]
["Bogotá D.C.Archivador horizontal 3 gavetas","Mobiliario SED","PRODUCTO","Bogotá D.C.","Archivador horizontal 3 gavetas","Archivador horizontal 3 gavetas","Und",650000,null,784000,850000,852550,932000,450000,null,null,672850,776682.05999999994]
["Bogotá D.C.Archivador aereo","Mobiliario SED","PRODUCTO","Bogotá D.C.","Archivador aereo","Archivador aereo","Und",250000,null,297000,350000,303000,350000,350000,null,null,264180,444584]
["Bogotá D.C.Archivador metalico","Mobiliario SED","PRODUCTO","Bogotá D.C.","Archivador metalico","Archivador metalico","Und",750000,null,588000,400000,675050,680000,450000,null,null,612850,858347]
["Bogotá D.C.Biombo enfermeria","Mobiliario SED","PRODUCTO","Bogotá D.C.","Biombo enfermeria","Biombo enfermeria","Und",350000,null,392000,360000,760500,850000,350000,null,null,202300,216580]
["Bogotá D.C.Butaco para laboratorio alto","Mobiliario SED","PRODUCTO","Bogotá D.C.","Butaco para laboratorio alto","Butaco para laboratorio alto","Und",75000,null,83500,80000,85200,120000,110000,null,null,77350,85680]
["Bogotá D.C.Cartelera de informacion institucional","Mobiliario SED","PRODUCTO","Bogotá D.C.","Cartelera de informacion institucional","Cartelera de informacion institucional","Und",420000,null,309500,385000,315850,415000,450000,null,null,380800,617610]
["Bogotá D.C.Comedor preescolar","Mobiliario SED","PRODUCTO","Bogotá D.C.","Comedor preescolar","Comedor preescolar","Und",150000,null,167500,270000,170850,210000,210000,null,null,279650,160650]
["Bogotá D.C.Escritorio y silla aula docente","Mobiliario SED","PRODUCTO","Bogotá D.C.","Escritorio y silla aula docente","Escritorio y silla aula docente","Und",480000,null,539000,450000,558850,600000,380000,null,null,452200,561680]
["Bogotá D.C.Estanteria alta","Mobiliario SED","PRODUCTO","Bogotá D.C.","Estanteria alta","Estanteria alta","Und",450000,null,549000,350000,608650,615000,280000,null,null,487900,537880]
["Bogotá D.C.Estanteria baja","Mobiliario SED","PRODUCTO","Bogotá D.C.","Estanteria baja","Estanteria baja","Und",370000,null,480200,280000,538850,550000,250000,null,null,333200,442680]
["Bogotá D.C.Estanteria deposito","Mobiliario SED","PRODUCTO","Bogotá D.C.","Estanteria deposito","Estanteria deposito","Und",290000,null,314000,220000,353200,410000,240000,null,null,285600,422450]
["Bogotá D.C.Juguetero","Mobiliario SED","PRODUCTO","Bogotá D.C.","Juguetero","Juguetero","Und",1190000,null,1176000,1300000,1467650,1650000,450000,null,null,999600,1666000]
["Bogotá D.C.Kit canecas grandes","Mobiliario SED","PRODUCTO","Bogotá D.C.","Kit canecas grandes","Kit canecas grandes","Und",295000,null,284000,350000,328850,345000,470000,null,null,261800,216580]
["Bogotá D.C.Kit canecas medianas para aulas de clase","Mobiliario SED","PRODUCTO","Bogotá D.C.","Kit canecas medianas para aulas de clase","Kit canecas medianas para aulas de clase","Und",245000,null,176500,185000,160800,250000,450000,null,null,129710,84490]
["Bogotá D.C.Locker sala docentes x 5","Mobiliario SED","PRODUCTO","Bogotá D.C.","Locker sala docentes x 5","Locker sala docentes x 5","Und",620000,null,588000,520000,664600,750000,820000,null,null,636650,912730]
["Bogotá D.C.Maletero preescolar","Mobiliario SED","PRODUCTO","Bogotá D.C.","Maletero preescolar","Maletero preescolar","Und",1520000,null,862500,2500000,920000,950000,450000,null,null,1297100,4132870]
["Bogotá D.C.Mesa comedor","Mobiliario SED","PRODUCTO","Bogotá D.C.","Mesa comedor","Mesa comedor","Und",800000,null,461000,800000,501400,650000,650000,null,null,553350,642600]
["Bogotá D.C.Mesa comedor preescolar","Mobiliario SED","PRODUCTO","Bogotá D.C.","Mesa comedor preescolar","Mesa comedor preescolar","Und",110000,null,84000,180000,85650,90000,112000,null,null,117810,82110]
["Bogotá D.C.Mesa arte","Mobiliario SED","PRODUCTO","Bogotá D.C.","Mesa arte","Mesa arte","Und",490000,null,401500,680000,432050,450000,450000,null,null,511700,361760]
["Bogotá D.C.Mesa tecnologia","Mobiliario SED","PRODUCTO","Bogotá D.C.","Mesa tecnologia","Mesa tecnologia","Und",740000,null,617500,860000,648000,700000,480000,null,null,676420,373660]
["Bogotá D.C.Mesa para aula de informatica","Mobiliario SED","PRODUCTO","Bogotá D.C.","Mesa para aula de informatica","Mesa para aula de informatica","Und",450000,null,324000,600000,328000,365000,450000,null,null,892500,395080]
["Bogotá D.C.Mesa para laboratorio","Mobiliario SED","PRODUCTO","Bogotá D.C.","Mesa para laboratorio","Mesa para laboratorio","Und",820000,null,625000,860000,637950,650000,480000,null,null,676420,371280]
["Bogotá D.C.Mesa plegable","Mobiliario SED","PRODUCTO","Bogotá D.C.","Mesa plegable","Mesa plegable","Und",1450000,null,705500,900000,748550,750000,480000,null,null,833000,535500]
["Bogotá D.C.Pupitre colaborativo","Mobiliario SED","PRODUCTO","Bogotá D.C.","Pupitre colaborativo","Pupitre colaborativo","Und",470000,null,449000,450000,458050,450000,320000,null,null,452200,398650]
["Bogotá D.C.Mesa banco de electricidad y electronica","Mobiliario SED","PRODUCTO","Bogotá D.C.","Mesa banco de electricidad y electronica","Mesa banco de electricidad y electronica","Und",3850000,null,1029000,7000000,1077650,1050000,850000,null,null,1166200,1035300]
["Bogotá D.C.Mesa banca redonda exterior","Mobiliario SED","PRODUCTO","Bogotá D.C.","Mesa banca redonda exterior","Mesa banca redonda exterior","Und",2500000,null,2499000,2500000,2604800,2500000,1250000,null,null,1059100,1904000]
["Bogotá D.C.Mesa biblioteca","Mobiliario SED","PRODUCTO","Bogotá D.C.","Mesa biblioteca","Mesa biblioteca","Und",380000,null,325000,450000,331900,335000,220000,null,null,416500,428400]
["Bogotá D.C.Mesa biblioteca infantil","Mobiliario SED","PRODUCTO","Bogotá D.C.","Mesa biblioteca infantil","Mesa biblioteca infantil","Und",350000,null,270000,420000,275200,295000,180000,null,null,357000,416500]
["Bogotá D.C.Mesa de juntas 4 puestos con silla","Mobiliario SED","PRODUCTO","Bogotá D.C.","Mesa de juntas 4 puestos con silla","Mesa de juntas 4 puestos con silla","Und",2300000,null,3038000,1300000,3699400,4500000,2200000,null,null,2118200,3337950]
["Bogotá D.C.Mesa de juntas 6 puestos con silla","Mobiliario SED","PRODUCTO","Bogotá D.C.","Mesa de juntas 6 puestos con silla","Mesa de juntas 6 puestos con silla","Und",3800000,null,4802000,1950000,5959050,6500000,2960000,null,null,3451000,4652900]
["Bogotá D.C.Mesa de juntas 8 puestos con silla","Mobiliario SED","PRODUCTO","Bogotá D.C.","Mesa de juntas 8 puestos con silla","Mesa de juntas 8 puestos con silla","Und",4500000,null,5586000,2600000,7725100,8200000,3720000,null,null,4522000,6009500]
["Bogotá D.C.Mesa de juntas 10 puestos con silla","Mobiliario SED","PRODUCTO","Bogotá D.C.","Mesa de juntas 10 puestos con silla","Mesa de juntas 10 puestos con silla","Und",5800000,null,7154000,3250000,11675800,13000000,4480000,null,null,5474000,8092000]
["Bogotá D.C.Mesa de juntas 12 puestos con silla","Mobiliario SED","PRODUCTO","Bogotá D.C.","Mesa de juntas 12 puestos con silla","Mesa de juntas 12 puestos con silla","Und",6600000,null,8820000,3900000,11882850,15500000,5800000,null,null,6426000,9222500]
["Bogotá D.C.Silla comedor primera infancia","Mobiliario SED","PRODUCTO","Bogotá D.C.","Silla comedor primera infancia","Silla comedor primera infancia","Und",35000,null,23000,30000,23250,35000,35000,null,null,16660,17850]
["Bogotá D.C.Silla plástica comedor","Mobiliario SED","PRODUCTO","Bogotá D.C.","Silla plástica comedor","Silla plástica comedor","Und",45000,null,39000,42000,40800,48000,50000,null,null,29750,37187.5]
["Bogotá D.C.Silla plegable","Mobiliario SED","PRODUCTO","Bogotá D.C.","Silla plegable","Silla plegable","Und",285000,null,294000,400000,495300,550000,95000,null,null,291550,416500]
["Bogotá D.C.Sala de espera tres puestos","Mobiliario SED","PRODUCTO","Bogotá D.C.","Sala de espera tres puestos","Sala de espera tres puestos","Und",2450000,null,4900000,2300000,6045000,6100000,1600000,null,null,1547000,2737000]
["Bogotá D.C.Tandem espera 3 puestos","Mobiliario SED","PRODUCTO","Bogotá D.C.","Tandem espera 3 puestos","Tandem espera 3 puestos","Und",280000,null,392000,350000,897000,900000,1600000,null,null,190400,590240]
["Bogotá D.C.Mesa para laboratorio trafico pesado","Mobiliario SED","PRODUCTO","Bogotá D.C.","Mesa para laboratorio trafico pesado","Mesa para laboratorio trafico pesado","Und",2250000,null,2744000,1300000,2961250,3200000,480000,null,null,987300,535500]
["Bogotá D.C.Mesa plástica comedor","Mobiliario SED","PRODUCTO","Bogotá D.C.","Mesa plástica comedor","Mesa plástica comedor","Und",125000,null,84000,190000,85650,93000,70000,null,null,85680,85680]
["Bogotá D.C.Mesa internet adultos","Mobiliario SED","PRODUCTO","Bogotá D.C.","Mesa internet adultos","Mesa internet adultos","Und",580000,null,308000,400000,315000,314500,450000,null,null,249900,595000]
["Bogotá D.C.Casilleros docentes","Mobiliario SED","PRODUCTO","Bogotá D.C.","Casilleros docentes","Casilleros docentes","Und",1450000,null,1730000,1000000,1765000,1850000,3200000,null,null,591200,1713600]
["Bogotá D.C.Silla mesa biblioteca infantil","Mobiliario SED","PRODUCTO","Bogotá D.C.","Silla mesa biblioteca infantil","Silla mesa biblioteca infantil","Und",64000,null,57000,40000,58700,65000,100000,null,null,53550,62607]
["Bogotá D.C.Silla ergonomica","Mobiliario SED","PRODUCTO","Bogotá D.C.","Silla ergonomica","Silla ergonomica","Und",580000,null,650000,380000,663000,750000,520000,null,null,416500,565643]
["Bogotá D.C.Silla mesa laboratorio","Mobiliario SED","PRODUCTO","Bogotá D.C.","Silla mesa laboratorio","Silla mesa laboratorio","Und",85000,null,73500,45000,69750,85000,120000,null,null,77350,79371]
["Bogotá D.C.Silla aula tecnologia","Mobiliario SED","PRODUCTO","Bogotá D.C.","Silla aula tecnologia","Silla aula tecnologia","Und",85000,null,73500,45000,69750,85000,80000,null,null,77350,102340]
["Bogotá D.C.Silla aula artes","Mobiliario SED","PRODUCTO","Bogotá D.C.","Silla aula artes","Silla aula artes","Und",85000,null,73500,45000,69750,85000,80000,null,null,77350,102340]
["Bogotá D.C.Sala de espera pequeña","Mobiliario SED","PRODUCTO","Bogotá D.C.","Sala de espera pequeña","Sala de espera pequeña","Und",1520000,null,4116000,1800000,4875000,4850000,1300000,null,null,1267350,2818336]
["Bogotá D.C.Puff","Mobiliario SED","PRODUCTO","Bogotá D.C.","Puff","Puff","Und",230000,null,667000,650000,741000,745000,150000,null,null,275000,196350]
["Bogotá D.C.Mobiliario urbano silla parque","Mobiliario SED","PRODUCTO","Bogotá D.C.","Mobiliario urbano silla parque","Mobiliario urbano silla parque","Und",2800000,null,1078000,1200000,1179750,1500000,1900000,null,null,365000,821100]
["Bogotá D.C.Perchero preescolar","Mobiliario SED","PRODUCTO","Bogotá D.C.","Perchero preescolar","Perchero preescolar","Und",420000,null,392000,200000,437400,400000,160000,null,null,255850,172550]
["Bogotá D.C.Mueble locutor auditorio","Mobiliario SED","PRODUCTO","Bogotá D.C.","Mueble locutor auditorio","Mueble locutor auditorio","Und",3400000,null,4900000,4000000,5173000,5200000,2100000,null,null,1749550,4046000]
["Bogotá D.C.Puesto administrativo en l con silla","Mobiliario SED","PRODUCTO","Bogotá D.C.","Puesto administrativo en l con silla","Puesto administrativo en l con silla","Und",2450000,null,1548000,1600000,1640550,1750000,1820000,null,null,1178100,1606500]
["Bogotá D.C.Puesto administrativo sencillo con silla","Mobiliario SED","PRODUCTO","Bogotá D.C.","Puesto administrativo sencillo con silla","Puesto administrativo sencillo con silla","Und",1550000,null,1372000,850000,1450500,1550000,1520000,null,null,1011500,1047200]
[{"$f":"D421&E421","v":"Bogotá D.C.Puesto de trabajo rectoria con silla"},"Mobiliario SED","PRODUCTO","Bogotá D.C.","Puesto de trabajo rectoria con silla","Puesto de trabajo rectoria con silla","Und",2950000,null,2940000,1600000,3064150,3100000,1820000,null,null,1773100,1243550]
["Bogotá D.C.Puesto administrativo de recepcion y atencion a usuarios tipo counter con silla.","Mobiliario SED","PRODUCTO","Bogotá D.C.","Puesto administrativo de recepcion y atencion a usuarios tipo counter con silla.","Puesto administrativo de recepcion y atencion a usuarios tipo counter con silla.","Und",4850000,null,3822000,2500000,3980000,4200000,3600000,null,null,1487500,4879000]
["Bogotá D.C.Mueble tipo tren ludoteca","Mobiliario SED","PRODUCTO","Bogotá D.C.","Mueble tipo tren ludoteca","Mueble tipo tren ludoteca","Und",6850000,null,3332000,5000000,3517650,3700000,2800000,null,null,2558500,9758000]
["Bogotá D.C.Mueble tipo escalera almacenamiento - ludoteca","Mobiliario SED","PRODUCTO","Bogotá D.C.","Mueble tipo escalera almacenamiento - ludoteca","Mueble tipo escalera almacenamiento - ludoteca","Und",2500000,null,2940000,4200000,3140800,3200000,2800000,null,null,2421650,6783000]
["Bogotá D.C.Mueble revistero - ludoteca","Mobiliario SED","PRODUCTO","Bogotá D.C.","Mueble revistero - ludoteca","Mueble revistero - ludoteca","Und",650000,null,775000,700000,816600,950000,420000,null,null,787550,3575950]
["Bogotá D.C.Mueble almaceniamiento con canastillas - ludoteca","Mobiliario SED","PRODUCTO","Bogotá D.C.","Mueble almaceniamiento con canastillas - ludoteca","Mueble almaceniamiento con canastillas - ludoteca","Und",920000,null,1078000,900000,1155800,1250000,890000,null,null,981750,3724700]
["Región 1Horno combi","Mobiliario de Cocina","PRODUCTO","Región 1","Horno combi","Horno combi","Und",null,null,null,null,null,12000000,null,134400000]
[{"$f":"D428&E428","v":"Región 2Horno combi"},"Mobiliario de Cocina","PRODUCTO","Región 2","Horno combi","Horno combi","Und",null,null,null,null,null,13500000,null,147840000]
["Región 3Horno combi","Mobiliario de Cocina","PRODUCTO","Región 3","Horno combi","Horno combi","Und",null,null,null,null,null,18000000,null,154560000]
["Región 1Marmita","Mobiliario de Cocina","PRODUCTO","Región 1","Marmita","Marmita","Und",null,null,null,null,null,14166000,null,18800000]
["Región 2Marmita","Mobiliario de Cocina","PRODUCTO","Región 2","Marmita","Marmita","Und",null,null,null,null,null,16660000,null,20680000]
["Región 3Marmita","Mobiliario de Cocina","PRODUCTO","Región 3","Marmita","Marmita","Und",null,null,null,null,null,18660000,null,21620000]
["Región 1Sarten basculante","Mobiliario de Cocina","PRODUCTO","Región 1","Sarten basculante","Sarten basculante","Und",null,null,null,null,null,12000000,null,12495000]
["Región 2Sarten basculante","Mobiliario de Cocina","PRODUCTO","Región 2","Sarten basculante","Sarten basculante","Und",null,null,null,null,null,13500000,null,13744500]
["Región 3Sarten basculante","Mobiliario de Cocina","PRODUCTO","Región 3","Sarten basculante","Sarten basculante","Und",null,null,null,null,null,18000000,null,14369250]
["Región 1Línea de autoservicio elèctrica - Baño María","Mobiliario de Cocina","PRODUCTO","Región 1","Línea de autoservicio elèctrica - Baño María","Línea de autoservicio elèctrica - Baño María","Und",null,null,null,null,null,10500000,null,12544000]
["Región 2Línea de autoservicio elèctrica - Baño María","Mobiliario de Cocina","PRODUCTO","Región 2","Línea de autoservicio elèctrica - Baño María","Línea de autoservicio elèctrica - Baño María","Und",null,null,null,null,null,13500000,null,13798400]
["Región 3Línea de autoservicio elèctrica - Baño María","Mobiliario de Cocina","PRODUCTO","Región 3","Línea de autoservicio elèctrica - Baño María","Línea de autoservicio elèctrica - Baño María","Und",null,null,null,null,null,15500000,null,14425600]
["Región 1Línea de autoservicio - Baño María","Mobiliario de Cocina","PRODUCTO","Región 1","Línea de autoservicio - Baño María","Línea de autoservicio - Baño María","Und",null,null,null,null,null,10500000,null,12544000]
["Región 2Línea de autoservicio - Baño María","Mobiliario de Cocina","PRODUCTO","Región 2","Línea de autoservicio - Baño María","Línea de autoservicio - Baño María","Und",null,null,null,null,null,13500000,null,13798400]
["Región 3Línea de autoservicio - Baño María","Mobiliario de Cocina","PRODUCTO","Región 3","Línea de autoservicio - Baño María","Línea de autoservicio - Baño María","Und",null,null,null,null,null,15500000,null,14425600]
["Región 1Estufa industrial 6 fogones","Mobiliario de Cocina","PRODUCTO","Región 1","Estufa industrial 6 fogones","Estufa industrial 6 fogones","Und",null,null,null,null,null,9500000,null,7264000]
["Región 2Estufa industrial 6 fogones","Mobiliario de Cocina","PRODUCTO","Región 2","Estufa industrial 6 fogones","Estufa industrial 6 fogones","Und",null,null,null,null,null,10200000,null,7990400]
["Región 3Estufa industrial 6 fogones","Mobiliario de Cocina","PRODUCTO","Región 3","Estufa industrial 6 fogones","Estufa industrial 6 fogones","Und",null,null,null,null,null,13000000,null,8353600]
["Región 1Estufa industrial 4 fogones a gas natural","Mobiliario de Cocina","PRODUCTO","Región 1","Estufa industrial 4 fogones a gas natural","Estufa industrial 4 fogones a gas natural","Und",null,null,null,null,null,7500000,null,6464000]
["Región 2Estufa industrial 4 fogones a gas natural","Mobiliario de Cocina","PRODUCTO","Región 2","Estufa industrial 4 fogones a gas natural","Estufa industrial 4 fogones a gas natural","Und",null,null,null,null,null,8300000,null,7110400]
["Región 3Estufa industrial 4 fogones a gas natural","Mobiliario de Cocina","PRODUCTO","Región 3","Estufa industrial 4 fogones a gas natural","Estufa industrial 4 fogones a gas natural","Und",null,null,null,null,null,9500000,null,7433600]
["Región 1Estufa enana a gas natural","Mobiliario de Cocina","PRODUCTO","Región 1","Estufa enana a gas natural","Estufa enana a gas natural","Und",null,null,null,null,null,4200000,null,1344000]
["Región 2Estufa enana a gas natural","Mobiliario de Cocina","PRODUCTO","Región 2","Estufa enana a gas natural","Estufa enana a gas natural","Und",null,null,null,null,null,4800000,null,1478400]
["Región 3Estufa enana a gas natural","Mobiliario de Cocina","PRODUCTO","Región 3","Estufa enana a gas natural","Estufa enana a gas natural","Und",null,null,null,null,null,5300000,null,1545600]
["Región 1Estufa industrial 4 fogones a gas propano","Mobiliario de Cocina","PRODUCTO","Región 1","Estufa industrial 4 fogones a gas propano","Estufa industrial 4 fogones a gas propano","Und",null,null,null,null,null,7500000,null,7264000]
["Región 2Estufa industrial 4 fogones a gas propano","Mobiliario de Cocina","PRODUCTO","Región 2","Estufa industrial 4 fogones a gas propano","Estufa industrial 4 fogones a gas propano","Und",null,null,null,null,null,8300000,null,7990400]
["Región 3Estufa industrial 4 fogones a gas propano","Mobiliario de Cocina","PRODUCTO","Región 3","Estufa industrial 4 fogones a gas propano","Estufa industrial 4 fogones a gas propano","Und",null,null,null,null,null,9500000,null,8353600]
["Región 1Estufa enana a gas propano","Mobiliario de Cocina","PRODUCTO","Región 1","Estufa enana a gas propano","Estufa enana a gas propano","Und",null,null,null,null,null,4200000,null,1344000]
["Región 2Estufa enana a gas propano","Mobiliario de Cocina","PRODUCTO","Región 2","Estufa enana a gas propano","Estufa enana a gas propano","Und",null,null,null,null,null,4800000,null,1478400]
["Región 3Estufa enana a gas propano","Mobiliario de Cocina","PRODUCTO","Región 3","Estufa enana a gas propano","Estufa enana a gas propano","Und",null,null,null,null,null,5300000,null,1545600]
["Región 1Refrigerador vertical","Mobiliario de Cocina","PRODUCTO","Región 1","Refrigerador vertical","Refrigerador vertical","Und",null,null,null,null,null,13500000,null,15680000]
["Región 2Refrigerador vertical","Mobiliario de Cocina","PRODUCTO","Región 2","Refrigerador vertical","Refrigerador vertical","Und",null,null,null,null,null,15500000,null,17248000]
["Región 3Refrigerador vertical","Mobiliario de Cocina","PRODUCTO","Región 3","Refrigerador vertical","Refrigerador vertical","Und",null,null,null,null,null,19000000,null,18032000]
["Región 1Congelador vertical","Mobiliario de Cocina","PRODUCTO","Región 1","Congelador vertical","Congelador vertical","Und",null,null,null,null,null,13500000,null,14240000]
["Región 2Congelador vertical","Mobiliario de Cocina","PRODUCTO","Región 2","Congelador vertical","Congelador vertical","Und",null,null,null,null,null,15500000,null,15664000]
["Región 3Congelador vertical","Mobiliario de Cocina","PRODUCTO","Región 3","Congelador vertical","Congelador vertical","Und",null,null,null,null,null,19000000,null,16376000]
["Región 1Lava vajilla","Mobiliario de Cocina","PRODUCTO","Región 1","Lava vajilla","Lava vajilla","Und",null,null,null,null,null,5500000,null,23648000]
["Región 2Lava vajilla","Mobiliario de Cocina","PRODUCTO","Región 2","Lava vajilla","Lava vajilla","Und",null,null,null,null,null,6200000,null,26012800]
["Región 3Lava vajilla","Mobiliario de Cocina","PRODUCTO","Región 3","Lava vajilla","Lava vajilla","Und",null,null,null,null,null,7300000,null,27195200]
["Región 1Mantenedor de alimentos","Mobiliario de Cocina","PRODUCTO","Región 1","Mantenedor de alimentos","Mantenedor de alimentos","Und",null,null,null,null,null,3500000,null,6720000]
["Región 2Mantenedor de alimentos","Mobiliario de Cocina","PRODUCTO","Región 2","Mantenedor de alimentos","Mantenedor de alimentos","Und",null,null,null,null,null,4200000,null,7392000]
["Región 3Mantenedor de alimentos","Mobiliario de Cocina","PRODUCTO","Región 3","Mantenedor de alimentos","Mantenedor de alimentos","Und",null,null,null,null,null,4800000,null,7728000]
["Región 1Peocesador de alimentos","Mobiliario de Cocina","PRODUCTO","Región 1","Peocesador de alimentos","Peocesador de alimentos","Und",null,null,null,null,null,3500000,null,5520000]
["Región 2Peocesador de alimentos","Mobiliario de Cocina","PRODUCTO","Región 2","Peocesador de alimentos","Peocesador de alimentos","Und",null,null,null,null,null,4200000,null,6072000]
["Región 3Peocesador de alimentos","Mobiliario de Cocina","PRODUCTO","Región 3","Peocesador de alimentos","Peocesador de alimentos","Und",null,null,null,null,null,4800000,null,6348000]
["Región 1Pelador de tuberculos","Mobiliario de Cocina","PRODUCTO","Región 1","Pelador de tuberculos","Pelador de tuberculos","Und",null,null,null,null,null,3500000,null,4960000]
["Región 2Pelador de tuberculos","Mobiliario de Cocina","PRODUCTO","Región 2","Pelador de tuberculos","Pelador de tuberculos","Und",null,null,null,null,null,4200000,null,5456000]
["Región 3Pelador de tuberculos","Mobiliario de Cocina","PRODUCTO","Región 3","Pelador de tuberculos","Pelador de tuberculos","Und",null,null,null,null,null,4800000,null,5704000]
["Región 1Licuadora indistrial","Mobiliario de Cocina","PRODUCTO","Región 1","Licuadora indistrial","Licuadora indistrial","Und",null,null,null,null,null,5500000,null,4160000]
["Región 2Licuadora indistrial","Mobiliario de Cocina","PRODUCTO","Región 2","Licuadora indistrial","Licuadora indistrial","Und",null,null,null,null,null,6200000,null,4576000]
["Región 3Licuadora indistrial","Mobiliario de Cocina","PRODUCTO","Región 3","Licuadora indistrial","Licuadora indistrial","Und",null,null,null,null,null,7300000,null,4784000]
["Región 1Báscula dogital con lector de pie","Mobiliario de Cocina","PRODUCTO","Región 1","Báscula dogital con lector de pie","Báscula dogital con lector de pie","Und",null,null,null,null,null,2800000,null,1152000]
["Región 2Báscula dogital con lector de pie","Mobiliario de Cocina","PRODUCTO","Región 2","Báscula dogital con lector de pie","Báscula dogital con lector de pie","Und",null,null,null,null,null,3200000,null,1267200]
["Región 3Báscula dogital con lector de pie","Mobiliario de Cocina","PRODUCTO","Región 3","Báscula dogital con lector de pie","Báscula dogital con lector de pie","Und",null,null,null,null,null,3400000,null,1324800]
["Región 1Gramera digital","Mobiliario de Cocina","PRODUCTO","Región 1","Gramera digital","Gramera digital","Und",null,null,null,null,null,1400000,null,224000]
["Región 2Gramera digital","Mobiliario de Cocina","PRODUCTO","Región 2","Gramera digital","Gramera digital","Und",null,null,null,null,null,1800000,null,246400]
["Región 3Gramera digital","Mobiliario de Cocina","PRODUCTO","Región 3","Gramera digital","Gramera digital","Und",null,null,null,null,null,2100000,null,257600]
["Región 1Carro cubiertero","Mobiliario de Cocina","PRODUCTO","Región 1","Carro cubiertero","Carro cubiertero","Und",null,null,null,null,null,1900000]
["Región 2Carro cubiertero","Mobiliario de Cocina","PRODUCTO","Región 2","Carro cubiertero","Carro cubiertero","Und",null,null,null,null,null,2100000]
["Región 3Carro cubiertero","Mobiliario de Cocina","PRODUCTO","Región 3","Carro cubiertero","Carro cubiertero","Und",null,null,null,null,null,2500000]
["Región 1Carro porta bandejas","Mobiliario de Cocina","PRODUCTO","Región 1","Carro porta bandejas","Carro porta bandejas","Und",null,null,null,null,null,1750000]
["Región 2Carro porta bandejas","Mobiliario de Cocina","PRODUCTO","Región 2","Carro porta bandejas","Carro porta bandejas","Und",null,null,null,null,null,1950000]
["Región 3Carro porta bandejas","Mobiliario de Cocina","PRODUCTO","Región 3","Carro porta bandejas","Carro porta bandejas","Und",null,null,null,null,null,2100000]
["Región 1Carro porta azafates","Mobiliario de Cocina","PRODUCTO","Región 1","Carro porta azafates","Carro porta azafates","Und",null,null,null,null,null,1750000]
["Región 2Carro porta azafates","Mobiliario de Cocina","PRODUCTO","Región 2","Carro porta azafates","Carro porta azafates","Und",null,null,null,null,null,1950000]
[{"$f":"D492&E492","v":"Región 3Carro porta azafates"},"Mobiliario de Cocina","PRODUCTO","Región 3","Carro porta azafates","Carro porta azafates","Und",null,null,null,null,null,2100000]
["Región 1Escabiladero","Mobiliario de Cocina","PRODUCTO","Región 1","Escabiladero","Escabiladero","Und",null,null,null,null,null,3300000]
["Región 2Escabiladero","Mobiliario de Cocina","PRODUCTO","Región 2","Escabiladero","Escabiladero","Und",null,null,null,null,null,3700000]
["Región 3Escabiladero","Mobiliario de Cocina","PRODUCTO","Región 3","Escabiladero","Escabiladero","Und",null,null,null,null,null,3900000]